Workbook

Sheet Instructions
B2: INSTRUCTIONS FOR COMPLETING
B3: TOXICS SCREENING ANALYSIS
C5: This spreadsheet may be used to evaluate toxic parameters of concern for water quality modeling and to facilitate determinations of "reasonable potential" to cause an excursion above water quality standards, in accordance with the SOPs for Establishing Effluent Limits. Every parameter that is listed with at least one water quality criterion in Chapter 93 is available for selection plus others. In addition, parameters with provisional criteria may be manually entered by users. Questions on the use of this spreadsheet can be directed to the Bureau of Clean Water, NPDES Permitting Division, at (717) 787-5017.
C11: There are 3 possible worksheets that can be used - "Major Sewage" (contains a list of some Group 1 and all Groups 2 - 7 parameters from the Major Sewage application), "Industrial" (contains a list of some Group 1 and all Groups 2 - 7 parameters from the Industrial Waste application), and "Other Discharges" (may be used for manually entering parameters).
C15: General Instructions
C17: The fields and columns that are available to users for data input are highlighted in yellow.
C19: 1. | D19: Enter the name of the facility, the NPDES permit number, the applicable outfall number, and the discharge flow1 ("design flow" in MGD).
C21: 2. | D21: If necessary, modify the Analysis Hardness (mg/L as CaCO3) and pH (S.U.). These values are used to calculate criteria for certain parameters and are based on in-stream hardness and pH following mixing with the receiving water. On the Reference worksheet you must select the name of the worksheet you are working on in order for the Analysis Hardness and pH values to be used to calculate criteria for hardness- and pH-dependent parameters (e.g., metals).
C26: 3. | D26: Enter the Discharge Flow (MGD) and Stream Flow (cfs). These values are used to determine the amount of assimilative capacity the stream will provide. The determination of whether a parameter is a candidate for modeling in PENTOXSD is based partly on available assimilative capacity.
C29: 4. | D29: If using the "Other Discharges" worksheet, select parameters from the drop-down menus within the "Parameter" column. The most stringent criterion in Chapter 93 is automatically displayed. (The parameters and criteria are pre-populated for the "Major Sewage" and "Industrial" worksheets).
C33: 5. | D33: Enter the maximum concentration reported in the permit application or Discharge Monitoring Reports (DMRs) in the column labeled "Maximum Concentration in Application or DMRs (µg/L)." Make sure the values are in terms of µg/L. Alternatively, if there are sufficient data (10 or more data points), enter the "AMEC" concentration calculated by the TOXCONC.xls spreadsheet. If the maximum concentration is a "non-detect" result, enter the less than symbol (<) in the left side of the cell (double-click to toggle < on and off). The program will evaluate whether the parameter is a candidate for PENTOXSD modeling based on the entered maximum value, the Target Quantitation Limit (QL), and the most stringent Chapter 93 criterion. Possible values are "Yes", "No", and "No (Value < QL)".
C39: 6. | D39: After PENTOXSD modeling for the candidate pollutants, enter the most stringent WQBEL into the column of the same name. The program then provides a recommendation for how to treat the parameter in the permit. Possible values are "No Limits/Monitoring" (no limits or monitoring recommended), "Establish Limits", and "Monitor". The logic is based on procedures in DEP's SOPs.
C43: Reference Worksheet
C45: The columns that are available to users for data input are highlighted in yellow.
C47: All available water quality criteria and Target QLs for parameters identified in Chapter 93 can be found in this table, as well as other parameters that do not have criteria. Users may add provisional criteria and new chemicals to the bottom of the list. Once entered, the new parameter(s) should be available in the drop-down menus in the worksheets. Users may also indicate "Y" where they believe a parameter should be treated conservatively, if not already indicated.
C52: 1 - Discharge flow is used as part of a screening analysis for Total Dissolved Solids (TDS), Bromide and 1,4-Dioxane. Bromide and 1,4-Dioxane do not have Chapter 93 criteria but have been identified as potential pollutants of concern that may warrant monitoring in permits. The screening thresholds for Bromide are 1 mg/L (for discharge flows > 0.1 MGD) and 10 mg/L (for discharge flows <= 0.1 MGD). The screening thresholds for 1,4-Dioxane are 0.01 mg/L (for discharge flows > 0.1 MGD) and 0.1 mg/L (for discharge flows <= 0.1 MGD). The screening thresholds for TDS are 1,000 mg/L or 20,000 lbs/day (for discharge flows > 0.1 MGD) and 5,000 mg/L (for discharge flows <= 0.1 MGD). If TDS will be monitored, the Toxics Screening Analysis spreadsheet automatically recommends that Sulfate, Chloride and Bromide be monitored as well.

Sheet Major Sewage
AN1: <
C2: TOXICS SCREENING ANALYSIS
C3: WATER QUALITY POLLUTANTS OF CONCERN
C4: VERSION 2.7
C6: Facility: | T6: NPDES Permit No.: | AH6: Outfall:
C7: Analysis Hardness (mg/L): | J7: 100 | T7: Discharge Flow (MGD): | AE7: Analysis pH (SU): | AJ7: 7 | AN7: Stream Flow (MGD) | AP7: =IF(J8<>"",IF(J8<>0,J8*0.64631,0.000001),"") -> 
C8: Stream Flow, Q7-10 (cfs): | AN8: Stream:Discharge | AP8: =IF(AND(AP7<>"",Z7<>""),AP7/Z7,"") -> 
AN9: Assimilative Capacity? | AP9: =IF(AP7=0,"No",IF(AP8<3,"No","Yes")) -> Yes
C10: Parameter | M10: Maximum Concentration in Application or DMRs (µg/L) | T10: Most Stringent Criterion (µg/L) | X10: Candidate for PENTOXSD Modeling? | AC10: Most Stringent WQBEL (µg/L) | AG10: Screening Recommendation
AN11: QL | AO11: Conservative? | AP11: BCS1M Screen 1 | AQ11: Screening Low | AR11: Screening High | AS11: BCS1M Screen 2 | AT11: Final Rec.
B12: Group 1 | C12: Total Dissolved Solids | T12: =IF(C12<>"",IF(VLOOKUP(C12,Reference!$A$3:$B$188,2,FALSE)="","N/A",VLOOKUP(C12,Reference!$A$3:$B$188,2,FALSE)),"") -> 500000 | X12: =IF(AND(C12<>"",N12<>"",$J$8<>"",$Z$7<>""),IF(T12<>"N/A",IF(AND(N12<=VALUE(AN12),M12="<"),"No (Value < QL)",IF($AP$9="No",IF(N12>=(0.5*T12),IF(AND(M12="<",N12=(0.5*T12)),"No","Yes"),"No"),IF(N12>=T12,IF(AND(M12="<",N12=T12),"No","Yes"),"No"))),"No"),"") ->  | AG12: =IF($N12<>"",AT12,"") ->  | AN12: =IF(C12<>"",IF(VLOOKUP(C12,Reference!$I$3:$J$188,2,FALSE)=" ",0,VLOOKUP(C12,Reference!$I$3:$J$188,2,FALSE)),"") -> 2000 | AO12: =IF(C12<>"",IF(VLOOKUP(C12,Reference!$M$3:$Q$188,5,FALSE)=" ",0,VLOOKUP(C12,Reference!$M$3:$Q$188,5,FALSE)),"") -> Y | AP12: =IF(AND(X12="Yes",AC12<>""),IF((N12/AC12)>=0.5,"Establish Limits",IF(AND(AO12="Y",(N12/AC12)>0.1),"Monitor",IF(AND(AO12<>"Y",(N12/AC12)>0.25),"Monitor","No Limits/Monitoring"))),"") ->  | AQ12: 1000000 | AR12: 5000000 | AS12: =IF(AND(N12<>"",$Z$7<>""),IF(OR(AND($Z$7>0.1,N12>AQ12),AND($Z$7<=0.1,N12>AR12),(($Z$7*(N12/1000)*8.34)>20000)),"Monitor",""),"") ->  | AT12: =IF(OR(AP12="Establish Limits",AP12="Monitor"),AP12,IF(AND(AP12="No Limits/Monitoring",AS12="Monitor"),AS12,IF(AND(AP12="",AS12=""),"",IF(AND(AP12="",AS12="Monitor"),"Monitor",IF(AND(AP12="No Limits/Monitoring",AS12=""),"No Limits/Monitoring",""))))) -> 
C13: Chloride | T13: =IF(C13<>"",IF(VLOOKUP(C13,Reference!$A$3:$B$188,2,FALSE)="","N/A",VLOOKUP(C13,Reference!$A$3:$B$188,2,FALSE)),"") -> 250000 | AG13: =AT13 ->  | AN13: =IF(C13<>"",IF(VLOOKUP(C13,Reference!$I$3:$J$188,2,FALSE)=" ",0,VLOOKUP(C13,Reference!$I$3:$J$188,2,FALSE)),"") -> 500 | AO13: =IF(C13<>"",IF(VLOOKUP(C13,Reference!$M$3:$Q$188,5,FALSE)=" ",0,VLOOKUP(C13,Reference!$M$3:$Q$188,5,FALSE)),"") -> Y | AP13: =IF(AND(X13="Yes",AC13<>""),IF((N13/AC13)>=0.5,"Establish Limits",IF(AND(AO13="Y",(N13/AC13)>0.1),"Monitor",IF(AND(AO13<>"Y",(N13/AC13)>0.25),"Monitor","No Limits/Monitoring"))),"") ->  | AT13: =IF(OR(AP13="Establish Limits",AP13="Monitor"),AP13,IF(AND(AP13="",OR($AT$12="No Limits/Monitoring",$AT$12="")),"",IF(AND(OR(AP13="",AP13="No Limits/Monitoring"),OR($AT$12="Monitor",$AT$12="Establish Limits")),"Monitor",IF(AND(AP13="No Limits/Monitoring",$AT$12=""),AP13)))) -> 
C14: Bromide | T14: =IF(C14<>"",IF(VLOOKUP(C14,Reference!$A$3:$B$188,2,FALSE)="","N/A",VLOOKUP(C14,Reference!$A$3:$B$188,2,FALSE)),"") -> N/A | AG14: =AT14 ->  | AN14: =IF(C14<>"",IF(VLOOKUP(C14,Reference!$I$3:$J$188,2,FALSE)=" ",0,VLOOKUP(C14,Reference!$I$3:$J$188,2,FALSE)),"") -> 200 | AO14: =IF(C14<>"",IF(VLOOKUP(C14,Reference!$M$3:$Q$188,5,FALSE)=" ",0,VLOOKUP(C14,Reference!$M$3:$Q$188,5,FALSE)),"") -> Y | AQ14: 1000 | AR14: 10000 | AS14: =IF(AND(N14<>"",$Z$7<>""),IF(OR(AND($Z$7>0.1,N14>AQ14),AND($Z$7<=0.1,N14>AR14)),"Monitor",""),"") ->  | AT14: =IF(OR(AP14="Establish Limits",AP14="Monitor"),AP14,IF(AND(AP14="No Limits/Monitoring",AS14="Monitor"),AS14,IF(AND(AP14="",AS14="",$AT$12=""),"",IF(AND(AP14="",AS14="Monitor"),"Monitor",IF(AND(AP14="",AS14="",OR($AT$12="Monitor",$AT$12="Establish Limits")),"Monitor",""))))) -> 
C15: Sulfate | T15: =IF(C15<>"",IF(VLOOKUP(C15,Reference!$A$3:$B$188,2,FALSE)="","N/A",VLOOKUP(C15,Reference!$A$3:$B$188,2,FALSE)),"") -> 250000 | AG15: =AT15 ->  | AN15: =IF(C15<>"",IF(VLOOKUP(C15,Reference!$I$3:$J$188,2,FALSE)=" ",0,VLOOKUP(C15,Reference!$I$3:$J$188,2,FALSE)),"") -> 1000 | AO15: =IF(C15<>"",IF(VLOOKUP(C15,Reference!$M$3:$Q$188,5,FALSE)=" ",0,VLOOKUP(C15,Reference!$M$3:$Q$188,5,FALSE)),"") -> Y | AP15: =IF(AND(X15="Yes",AC15<>""),IF((N15/AC15)>=0.5,"Establish Limits",IF(AND(AO15="Y",(N15/AC15)>0.1),"Monitor",IF(AND(AO15<>"Y",(N15/AC15)>0.25),"Monitor","No Limits/Monitoring"))),"") ->  | AT15: =IF(OR(AP15="Establish Limits",AP15="Monitor"),AP15,IF(AND(AP15="",OR($AT$12="No Limits/Monitoring",$AT$12="")),"",IF(AND(OR(AP15="",AP15="No Limits/Monitoring"),OR($AT$12="Monitor",$AT$12="Establish Limits")),"Monitor",IF(AND(AP15="No Limits/Monitoring",$AT$12=""),AP15)))) -> 
B16: Group 2 | C16: Total Aluminum | T16: =IF(C16<>"",IF(VLOOKUP(C16,Reference!$A$3:$B$188,2,FALSE)="","N/A",VLOOKUP(C16,Reference!$A$3:$B$188,2,FALSE)),"") -> 750 | AG16: =IF($N16<>"",IF(AND(X16="Yes",AC16<>""),IF(($N16/$AC16)>=0.5,"Establish Limits",IF(AND($AO16="Y",($N16/$AC16)>=0.1),"Monitor",IF(AND($AO16<>"Y",($N16/$AC16)>=0.25),"Monitor","No Limits/Monitoring"))),""),"") ->  | AN16: =IF(C16<>"",IF(VLOOKUP(C16,Reference!$I$3:$J$188,2,FALSE)=" ",0,VLOOKUP(C16,Reference!$I$3:$J$188,2,FALSE)),"") -> 10 | AO16: =IF(C16<>"",IF(VLOOKUP(C16,Reference!$M$3:$Q$188,5,FALSE)=" ",0,VLOOKUP(C16,Reference!$M$3:$Q$188,5,FALSE)),"") -> Y | AP16: =IF(AND(X16="Yes",AC16<>""),IF((N16/AC16)>0.5,"Establish Limits",IF(AND(AO16="Y",(N16/AC16)>0.1),"Monitor",IF(AND(AO16<>"Y",(N16/AC16)>0.25),"Monitor","No Limits/Monitoring"))),"") -> 
C17: Total Antimony | T17: =IF(C17<>"",IF(VLOOKUP(C17,Reference!$A$3:$B$188,2,FALSE)="","N/A",VLOOKUP(C17,Reference!$A$3:$B$188,2,FALSE)),"") -> 5.6 | X17: =IF(AND(C17<>"",N17<>"",$J$8<>"",$Z$7<>""),IF(T17<>"N/A",IF(AND(N17<=VALUE(AN17),M17="<"),"No (Value < QL)",IF($AP$9="No",IF(N17>=(0.5*T17),IF(AND(M17="<",N17=(0.5*T17)),"No","Yes"),"No"),IF(N17>=T17,IF(AND(M17="<",N17=T17),"No","Yes"),"No"))),"No"),"") ->  | AG17: =IF($N17<>"",IF(AND(X17="Yes",AC17<>""),IF(($N17/$AC17)>=0.5,"Establish Limits",IF(AND($AO17="Y",($N17/$AC17)>0.1),"Monitor",IF(AND($AO17<>"Y",($N17/$AC17)>0.25),"Monitor","No Limits/Monitoring"))),""),"") ->  | AN17: =IF(C17<>"",IF(VLOOKUP(C17,Reference!$I$3:$J$188,2,FALSE)=" ",0,VLOOKUP(C17,Reference!$I$3:$J$188,2,FALSE)),"") -> 2 | AO17: =IF(C17<>"",IF(VLOOKUP(C17,Reference!$M$3:$Q$188,5,FALSE)=" ",0,VLOOKUP(C17,Reference!$M$3:$Q$188,5,FALSE)),"") -> Y | AP17: =IF(AND(X17="Yes",AC17<>""),IF((N17/AC17)>=0.5,"Establish Limits",IF(AND(AO17="Y",(N17/AC17)>0.1),"Monitor",IF(AND(AO17<>"Y",(N17/AC17)>0.25),"Monitor","No Limits/Monitoring"))),"") -> 
C18: Total Arsenic | T18: =IF(C18<>"",IF(VLOOKUP(C18,Reference!$A$3:$B$188,2,FALSE)="","N/A",VLOOKUP(C18,Reference!$A$3:$B$188,2,FALSE)),"") -> 10 | AG18: =IF($N18<>"",IF(AND(X18="Yes",AC18<>""),IF(($N18/$AC18)>=0.5,"Establish Limits",IF(AND($AO18="Y",($N18/$AC18)>0.1),"Monitor",IF(AND($AO18<>"Y",($N18/$AC18)>0.25),"Monitor","No Limits/Monitoring"))),""),"") ->  | AN18: =IF(C18<>"",IF(VLOOKUP(C18,Reference!$I$3:$J$188,2,FALSE)=" ",0,VLOOKUP(C18,Reference!$I$3:$J$188,2,FALSE)),"") -> 3 | AO18: =IF(C18<>"",IF(VLOOKUP(C18,Reference!$M$3:$Q$188,5,FALSE)=" ",0,VLOOKUP(C18,Reference!$M$3:$Q$188,5,FALSE)),"") -> Y | AP18: =IF(AND(X18="Yes",AC18<>""),IF((N18/AC18)>=0.5,"Establish Limits",IF(AND(AO18="Y",(N18/AC18)>0.1),"Monitor",IF(AND(AO18<>"Y",(N18/AC18)>0.25),"Monitor","No Limits/Monitoring"))),"") -> 
C19: Total Barium | T19: =IF(C19<>"",IF(VLOOKUP(C19,Reference!$A$3:$B$188,2,FALSE)="","N/A",VLOOKUP(C19,Reference!$A$3:$B$188,2,FALSE)),"") -> 2400 | AG19: =IF($N19<>"",IF(AND(X19="Yes",AC19<>""),IF(($N19/$AC19)>=0.5,"Establish Limits",IF(AND($AO19="Y",($N19/$AC19)>0.1),"Monitor",IF(AND($AO19<>"Y",($N19/$AC19)>0.25),"Monitor","No Limits/Monitoring"))),""),"") ->  | AN19: =IF(C19<>"",IF(VLOOKUP(C19,Reference!$I$3:$J$188,2,FALSE)=" ",0,VLOOKUP(C19,Reference!$I$3:$J$188,2,FALSE)),"") -> 2 | AO19: =IF(C19<>"",IF(VLOOKUP(C19,Reference!$M$3:$Q$188,5,FALSE)=" ",0,VLOOKUP(C19,Reference!$M$3:$Q$188,5,FALSE)),"") -> Y | AP19: =IF(AND(X19="Yes",AC19<>""),IF((N19/AC19)>=0.5,"Establish Limits",IF(AND(AO19="Y",(N19/AC19)>0.1),"Monitor",IF(AND(AO19<>"Y",(N19/AC19)>0.25),"Monitor","No Limits/Monitoring"))),"") -> 
C20: Total Beryllium | T20: =IF(C20<>"",IF(VLOOKUP(C20,Reference!$A$3:$B$188,2,FALSE)="","N/A",VLOOKUP(C20,Reference!$A$3:$B$188,2,FALSE)),"") -> N/A | AN20: =IF(C20<>"",IF(VLOOKUP(C20,Reference!$I$3:$J$188,2,FALSE)=" ",0,VLOOKUP(C20,Reference!$I$3:$J$188,2,FALSE)),"") -> 1 | AO20: =IF(C20<>"",IF(VLOOKUP(C20,Reference!$M$3:$Q$188,5,FALSE)=" ",0,VLOOKUP(C20,Reference!$M$3:$Q$188,5,FALSE)),"") -> Y
C21: Total Boron | T21: =IF(C21<>"",IF(VLOOKUP(C21,Reference!$A$3:$B$188,2,FALSE)="","N/A",VLOOKUP(C21,Reference!$A$3:$B$188,2,FALSE)),"") -> 1600 | AN21: =IF(C21<>"",IF(VLOOKUP(C21,Reference!$I$3:$J$188,2,FALSE)=" ",0,VLOOKUP(C21,Reference!$I$3:$J$188,2,FALSE)),"") -> 200 | AO21: =IF(C21<>"",IF(VLOOKUP(C21,Reference!$M$3:$Q$188,5,FALSE)=" ",0,VLOOKUP(C21,Reference!$M$3:$Q$188,5,FALSE)),"") -> Y
C22: Total Cadmium | T22: =IF(C22<>"",IF(VLOOKUP(C22,Reference!$A$3:$B$188,2,FALSE)="","N/A",VLOOKUP(C22,Reference!$A$3:$B$188,2,FALSE)),"") -> 0.271 | AG22: =IF($N22<>"",IF(AND(X22="Yes",AC22<>""),IF(($N22/$AC22)>=0.5,"Establish Limits",IF(AND($AO22="Y",($N22/$AC22)>0.1),"Monitor",IF(AND($AO22<>"Y",($N22/$AC22)>0.25),"Monitor","No Limits/Monitoring"))),""),"") ->  | AN22: =IF(C22<>"",IF(VLOOKUP(C22,Reference!$I$3:$J$188,2,FALSE)=" ",0,VLOOKUP(C22,Reference!$I$3:$J$188,2,FALSE)),"") -> 0.2 | AO22: =IF(C22<>"",IF(VLOOKUP(C22,Reference!$M$3:$Q$188,5,FALSE)=" ",0,VLOOKUP(C22,Reference!$M$3:$Q$188,5,FALSE)),"") -> Y
C23: Total Chromium | T23: =IF(C23<>"",IF(VLOOKUP(C23,Reference!$A$3:$B$188,2,FALSE)="","N/A",VLOOKUP(C23,Reference!$A$3:$B$188,2,FALSE)),"") -> N/A | AN23: =IF(C23<>"",IF(VLOOKUP(C23,Reference!$I$3:$J$188,2,FALSE)=" ",0,VLOOKUP(C23,Reference!$I$3:$J$188,2,FALSE)),"") -> 4 | AO23: =IF(C23<>"",IF(VLOOKUP(C23,Reference!$M$3:$Q$188,5,FALSE)=" ",0,VLOOKUP(C23,Reference!$M$3:$Q$188,5,FALSE)),"") -> Y
C24: Hexavalent Chromium | T24: =IF(C24<>"",IF(VLOOKUP(C24,Reference!$A$3:$B$188,2,FALSE)="","N/A",VLOOKUP(C24,Reference!$A$3:$B$188,2,FALSE)),"") -> 10.3950104 | AN24: =IF(C24<>"",IF(VLOOKUP(C24,Reference!$I$3:$J$188,2,FALSE)=" ",0,VLOOKUP(C24,Reference!$I$3:$J$188,2,FALSE)),"") -> 1 | AO24: =IF(C24<>"",IF(VLOOKUP(C24,Reference!$M$3:$Q$188,5,FALSE)=" ",0,VLOOKUP(C24,Reference!$M$3:$Q$188,5,FALSE)),"") -> Y
C25: Total Cobalt | T25: =IF(C25<>"",IF(VLOOKUP(C25,Reference!$A$3:$B$188,2,FALSE)="","N/A",VLOOKUP(C25,Reference!$A$3:$B$188,2,FALSE)),"") -> 19 | AN25: =IF(C25<>"",IF(VLOOKUP(C25,Reference!$I$3:$J$188,2,FALSE)=" ",0,VLOOKUP(C25,Reference!$I$3:$J$188,2,FALSE)),"") -> 1 | AO25: =IF(C25<>"",IF(VLOOKUP(C25,Reference!$M$3:$Q$188,5,FALSE)=" ",0,VLOOKUP(C25,Reference!$M$3:$Q$188,5,FALSE)),"") -> Y
C26: Total Copper | T26: =IF(C26<>"",IF(VLOOKUP(C26,Reference!$A$3:$B$188,2,FALSE)="","N/A",VLOOKUP(C26,Reference!$A$3:$B$188,2,FALSE)),"") -> 9.33 | AN26: =IF(C26<>"",IF(VLOOKUP(C26,Reference!$I$3:$J$188,2,FALSE)=" ",0,VLOOKUP(C26,Reference!$I$3:$J$188,2,FALSE)),"") -> 4 | AO26: =IF(C26<>"",IF(VLOOKUP(C26,Reference!$M$3:$Q$188,5,FALSE)=" ",0,VLOOKUP(C26,Reference!$M$3:$Q$188,5,FALSE)),"") -> Y
C27: Free Available Cyanide | T27: =IF(C27<>"",IF(VLOOKUP(C27,Reference!$A$3:$B$188,2,FALSE)="","N/A",VLOOKUP(C27,Reference!$A$3:$B$188,2,FALSE)),"") -> 5.2 | X27: =IF(AND(C27<>"",N27<>"",$J$8<>"",$Z$7<>""),IF(T27<>"N/A",IF(AND(N27<=VALUE(AN27),M27="<"),"No (Value < QL)",IF($AP$9="No",IF(N27>=(0.5*T27),IF(AND(M27="<",N27=(0.5*T27)),"No","Yes"),"No"),IF(N27>=T27,IF(AND(M27="<",N27=T27),"No","Yes"),"No"))),"No"),"") ->  | AN27: =IF(C27<>"",IF(VLOOKUP(C27,Reference!$I$3:$J$188,2,FALSE)=" ",0,VLOOKUP(C27,Reference!$I$3:$J$188,2,FALSE)),"") -> 1 | AO27: =IF(C27<>"",IF(VLOOKUP(C27,Reference!$M$3:$Q$188,5,FALSE)=" ",0,VLOOKUP(C27,Reference!$M$3:$Q$188,5,FALSE)),"") -> 0
C28: Total Cyanide | T28: =IF(C28<>"",IF(VLOOKUP(C28,Reference!$A$3:$B$188,2,FALSE)="","N/A",VLOOKUP(C28,Reference!$A$3:$B$188,2,FALSE)),"") -> N/A | AN28: =IF(C28<>"",IF(VLOOKUP(C28,Reference!$I$3:$J$188,2,FALSE)=" ",0,VLOOKUP(C28,Reference!$I$3:$J$188,2,FALSE)),"") -> 10 | AO28: =IF(C28<>"",IF(VLOOKUP(C28,Reference!$M$3:$Q$188,5,FALSE)=" ",0,VLOOKUP(C28,Reference!$M$3:$Q$188,5,FALSE)),"") -> 0
C29: Dissolved Iron | T29: =IF(C29<>"",IF(VLOOKUP(C29,Reference!$A$3:$B$188,2,FALSE)="","N/A",VLOOKUP(C29,Reference!$A$3:$B$188,2,FALSE)),"") -> 300 | AN29: =IF(C29<>"",IF(VLOOKUP(C29,Reference!$I$3:$J$188,2,FALSE)=" ",0,VLOOKUP(C29,Reference!$I$3:$J$188,2,FALSE)),"") -> 20 | AO29: =IF(C29<>"",IF(VLOOKUP(C29,Reference!$M$3:$Q$188,5,FALSE)=" ",0,VLOOKUP(C29,Reference!$M$3:$Q$188,5,FALSE)),"") -> Y
C30: Total Iron | T30: =IF(C30<>"",IF(VLOOKUP(C30,Reference!$A$3:$B$188,2,FALSE)="","N/A",VLOOKUP(C30,Reference!$A$3:$B$188,2,FALSE)),"") -> 1500 | AN30: =IF(C30<>"",IF(VLOOKUP(C30,Reference!$I$3:$J$188,2,FALSE)=" ",0,VLOOKUP(C30,Reference!$I$3:$J$188,2,FALSE)),"") -> 20 | AO30: =IF(C30<>"",IF(VLOOKUP(C30,Reference!$M$3:$Q$188,5,FALSE)=" ",0,VLOOKUP(C30,Reference!$M$3:$Q$188,5,FALSE)),"") -> Y
C31: Total Lead | T31: =IF(C31<>"",IF(VLOOKUP(C31,Reference!$A$3:$B$188,2,FALSE)="","N/A",VLOOKUP(C31,Reference!$A$3:$B$188,2,FALSE)),"") -> 3.18 | AN31: =IF(C31<>"",IF(VLOOKUP(C31,Reference!$I$3:$J$188,2,FALSE)=" ",0,VLOOKUP(C31,Reference!$I$3:$J$188,2,FALSE)),"") -> 1 | AO31: =IF(C31<>"",IF(VLOOKUP(C31,Reference!$M$3:$Q$188,5,FALSE)=" ",0,VLOOKUP(C31,Reference!$M$3:$Q$188,5,FALSE)),"") -> Y
C32: Total Manganese | T32: =IF(C32<>"",IF(VLOOKUP(C32,Reference!$A$3:$B$188,2,FALSE)="","N/A",VLOOKUP(C32,Reference!$A$3:$B$188,2,FALSE)),"") -> 1000 | AN32: =IF(C32<>"",IF(VLOOKUP(C32,Reference!$I$3:$J$188,2,FALSE)=" ",0,VLOOKUP(C32,Reference!$I$3:$J$188,2,FALSE)),"") -> 2 | AO32: =IF(C32<>"",IF(VLOOKUP(C32,Reference!$M$3:$Q$188,5,FALSE)=" ",0,VLOOKUP(C32,Reference!$M$3:$Q$188,5,FALSE)),"") -> Y
C33: Total Mercury | T33: =IF(C33<>"",IF(VLOOKUP(C33,Reference!$A$3:$B$188,2,FALSE)="","N/A",VLOOKUP(C33,Reference!$A$3:$B$188,2,FALSE)),"") -> 0.05 | AN33: =IF(C33<>"",IF(VLOOKUP(C33,Reference!$I$3:$J$188,2,FALSE)=" ",0,VLOOKUP(C33,Reference!$I$3:$J$188,2,FALSE)),"") -> 0.2 | AO33: =IF(C33<>"",IF(VLOOKUP(C33,Reference!$M$3:$Q$188,5,FALSE)=" ",0,VLOOKUP(C33,Reference!$M$3:$Q$188,5,FALSE)),"") -> Y
C34: Total Nickel | T34: =IF(C34<>"",IF(VLOOKUP(C34,Reference!$A$3:$B$188,2,FALSE)="","N/A",VLOOKUP(C34,Reference!$A$3:$B$188,2,FALSE)),"") -> 52.2 | AN34: =IF(C34<>"",IF(VLOOKUP(C34,Reference!$I$3:$J$188,2,FALSE)=" ",0,VLOOKUP(C34,Reference!$I$3:$J$188,2,FALSE)),"") -> 4 | AO34: =IF(C34<>"",IF(VLOOKUP(C34,Reference!$M$3:$Q$188,5,FALSE)=" ",0,VLOOKUP(C34,Reference!$M$3:$Q$188,5,FALSE)),"") -> Y
C35: Total Phenols (Phenolics) | T35: =IF(C35<>"",IF(VLOOKUP(C35,Reference!$A$3:$B$188,2,FALSE)="","N/A",VLOOKUP(C35,Reference!$A$3:$B$188,2,FALSE)),"") -> 5 | AN35: 5 | AO35: =IF(C35<>"",IF(VLOOKUP(C35,Reference!$M$3:$Q$188,5,FALSE)=" ",0,VLOOKUP(C35,Reference!$M$3:$Q$188,5,FALSE)),"") -> 0
C36: Total Selenium | T36: =IF(C36<>"",IF(VLOOKUP(C36,Reference!$A$3:$B$188,2,FALSE)="","N/A",VLOOKUP(C36,Reference!$A$3:$B$188,2,FALSE)),"") -> 4.989154013 | AN36: =IF(C36<>"",IF(VLOOKUP(C36,Reference!$I$3:$J$188,2,FALSE)=" ",0,VLOOKUP(C36,Reference!$I$3:$J$188,2,FALSE)),"") -> 5 | AO36: =IF(C36<>"",IF(VLOOKUP(C36,Reference!$M$3:$Q$188,5,FALSE)=" ",0,VLOOKUP(C36,Reference!$M$3:$Q$188,5,FALSE)),"") -> Y
C37: Total Silver | T37: =IF(C37<>"",IF(VLOOKUP(C37,Reference!$A$3:$B$188,2,FALSE)="","N/A",VLOOKUP(C37,Reference!$A$3:$B$188,2,FALSE)),"") -> 3.78 | AN37: =IF(C37<>"",IF(VLOOKUP(C37,Reference!$I$3:$J$188,2,FALSE)=" ",0,VLOOKUP(C37,Reference!$I$3:$J$188,2,FALSE)),"") -> 0.4 | AO37: =IF(C37<>"",IF(VLOOKUP(C37,Reference!$M$3:$Q$188,5,FALSE)=" ",0,VLOOKUP(C37,Reference!$M$3:$Q$188,5,FALSE)),"") -> Y
C38: Total Thallium | T38: =IF(C38<>"",IF(VLOOKUP(C38,Reference!$A$3:$B$188,2,FALSE)="","N/A",VLOOKUP(C38,Reference!$A$3:$B$188,2,FALSE)),"") -> 0.24 | AN38: =IF(C38<>"",IF(VLOOKUP(C38,Reference!$I$3:$J$188,2,FALSE)=" ",0,VLOOKUP(C38,Reference!$I$3:$J$188,2,FALSE)),"") -> 2 | AO38: =IF(C38<>"",IF(VLOOKUP(C38,Reference!$M$3:$Q$188,5,FALSE)=" ",0,VLOOKUP(C38,Reference!$M$3:$Q$188,5,FALSE)),"") -> Y
C39: Total Zinc | T39: =IF(C39<>"",IF(VLOOKUP(C39,Reference!$A$3:$B$188,2,FALSE)="","N/A",VLOOKUP(C39,Reference!$A$3:$B$188,2,FALSE)),"") -> 119.8 | AN39: =IF(C39<>"",IF(VLOOKUP(C39,Reference!$I$3:$J$188,2,FALSE)=" ",0,VLOOKUP(C39,Reference!$I$3:$J$188,2,FALSE)),"") -> 5 | AO39: =IF(C39<>"",IF(VLOOKUP(C39,Reference!$M$3:$Q$188,5,FALSE)=" ",0,VLOOKUP(C39,Reference!$M$3:$Q$188,5,FALSE)),"") -> Y
C40: Total Molybdenum | T40: =IF(C40<>"",IF(VLOOKUP(C40,Reference!$A$3:$B$188,2,FALSE)="","N/A",VLOOKUP(C40,Reference!$A$3:$B$188,2,FALSE)),"") -> N/A | AN40: =IF(C40<>"",IF(VLOOKUP(C40,Reference!$I$3:$J$188,2,FALSE)=" ",0,VLOOKUP(C40,Reference!$I$3:$J$188,2,FALSE)),"") -> 4 | AO40: =IF(C40<>"",IF(VLOOKUP(C40,Reference!$M$3:$Q$188,5,FALSE)=" ",0,VLOOKUP(C40,Reference!$M$3:$Q$188,5,FALSE)),"") -> Y
B41: Group 3 | C41: Acrolein | M41: < | T41: =IF(C41<>"",IF(VLOOKUP(C41,Reference!$A$3:$B$188,2,FALSE)="","N/A",VLOOKUP(C41,Reference!$A$3:$B$188,2,FALSE)),"") -> 3 | AN41: =IF(C41<>"",IF(VLOOKUP(C41,Reference!$I$3:$J$188,2,FALSE)=" ",0,VLOOKUP(C41,Reference!$I$3:$J$188,2,FALSE)),"") -> 2 | AO41: =IF(C41<>"",IF(VLOOKUP(C41,Reference!$M$3:$Q$188,5,FALSE)=" ",0,VLOOKUP(C41,Reference!$M$3:$Q$188,5,FALSE)),"") -> 0
C42: Acrylonitrile | M42: < | T42: =IF(C42<>"",IF(VLOOKUP(C42,Reference!$A$3:$B$188,2,FALSE)="","N/A",VLOOKUP(C42,Reference!$A$3:$B$188,2,FALSE)),"") -> 0.051 | AN42: =IF(C42<>"",IF(VLOOKUP(C42,Reference!$I$3:$J$188,2,FALSE)=" ",0,VLOOKUP(C42,Reference!$I$3:$J$188,2,FALSE)),"") -> 5 | AO42: =IF(C42<>"",IF(VLOOKUP(C42,Reference!$M$3:$Q$188,5,FALSE)=" ",0,VLOOKUP(C42,Reference!$M$3:$Q$188,5,FALSE)),"") -> 0
C43: Benzene | M43: < | T43: =IF(C43<>"",IF(VLOOKUP(C43,Reference!$A$3:$B$188,2,FALSE)="","N/A",VLOOKUP(C43,Reference!$A$3:$B$188,2,FALSE)),"") -> 1.2 | AN43: =IF(C43<>"",IF(VLOOKUP(C43,Reference!$I$3:$J$188,2,FALSE)=" ",0,VLOOKUP(C43,Reference!$I$3:$J$188,2,FALSE)),"") -> 0.5 | AO43: =IF(C43<>"",IF(VLOOKUP(C43,Reference!$M$3:$Q$188,5,FALSE)=" ",0,VLOOKUP(C43,Reference!$M$3:$Q$188,5,FALSE)),"") -> 0
C44: Bromoform | M44: < | T44: =IF(C44<>"",IF(VLOOKUP(C44,Reference!$A$3:$B$188,2,FALSE)="","N/A",VLOOKUP(C44,Reference!$A$3:$B$188,2,FALSE)),"") -> 4.3 | AN44: =IF(C44<>"",IF(VLOOKUP(C44,Reference!$I$3:$J$188,2,FALSE)=" ",0,VLOOKUP(C44,Reference!$I$3:$J$188,2,FALSE)),"") -> 0.5 | AO44: =IF(C44<>"",IF(VLOOKUP(C44,Reference!$M$3:$Q$188,5,FALSE)=" ",0,VLOOKUP(C44,Reference!$M$3:$Q$188,5,FALSE)),"") -> 0
C45: Carbon Tetrachloride | M45: < | T45: =IF(C45<>"",IF(VLOOKUP(C45,Reference!$A$3:$B$188,2,FALSE)="","N/A",VLOOKUP(C45,Reference!$A$3:$B$188,2,FALSE)),"") -> 0.23 | AN45: =IF(C45<>"",IF(VLOOKUP(C45,Reference!$I$3:$J$188,2,FALSE)=" ",0,VLOOKUP(C45,Reference!$I$3:$J$188,2,FALSE)),"") -> 0.5 | AO45: =IF(C45<>"",IF(VLOOKUP(C45,Reference!$M$3:$Q$188,5,FALSE)=" ",0,VLOOKUP(C45,Reference!$M$3:$Q$188,5,FALSE)),"") -> 0
C46: Chlorobenzene | M46: < | T46: =IF(C46<>"",IF(VLOOKUP(C46,Reference!$A$3:$B$188,2,FALSE)="","N/A",VLOOKUP(C46,Reference!$A$3:$B$188,2,FALSE)),"") -> 130 | AN46: =IF(C46<>"",IF(VLOOKUP(C46,Reference!$I$3:$J$188,2,FALSE)=" ",0,VLOOKUP(C46,Reference!$I$3:$J$188,2,FALSE)),"") -> 0.5 | AO46: =IF(C46<>"",IF(VLOOKUP(C46,Reference!$M$3:$Q$188,5,FALSE)=" ",0,VLOOKUP(C46,Reference!$M$3:$Q$188,5,FALSE)),"") -> 0
C47: Chlorodibromomethane | M47: < | T47: =IF(C47<>"",IF(VLOOKUP(C47,Reference!$A$3:$B$188,2,FALSE)="","N/A",VLOOKUP(C47,Reference!$A$3:$B$188,2,FALSE)),"") -> 0.4 | AN47: =IF(C47<>"",IF(VLOOKUP(C47,Reference!$I$3:$J$188,2,FALSE)=" ",0,VLOOKUP(C47,Reference!$I$3:$J$188,2,FALSE)),"") -> 0.5 | AO47: =IF(C47<>"",IF(VLOOKUP(C47,Reference!$M$3:$Q$188,5,FALSE)=" ",0,VLOOKUP(C47,Reference!$M$3:$Q$188,5,FALSE)),"") -> 0
C48: Chloroethane | M48: < | T48: =IF(C48<>"",IF(VLOOKUP(C48,Reference!$A$3:$B$188,2,FALSE)="","N/A",VLOOKUP(C48,Reference!$A$3:$B$188,2,FALSE)),"") -> N/A | AN48: =IF(C48<>"",IF(VLOOKUP(C48,Reference!$I$3:$J$188,2,FALSE)=" ",0,VLOOKUP(C48,Reference!$I$3:$J$188,2,FALSE)),"") -> 0.5 | AO48: =IF(C48<>"",IF(VLOOKUP(C48,Reference!$M$3:$Q$188,5,FALSE)=" ",0,VLOOKUP(C48,Reference!$M$3:$Q$188,5,FALSE)),"") -> 0
C49: 2-Chloroethyl Vinyl Ether | M49: < | T49: =IF(C49<>"",IF(VLOOKUP(C49,Reference!$A$3:$B$188,2,FALSE)="","N/A",VLOOKUP(C49,Reference!$A$3:$B$188,2,FALSE)),"") -> 3500 | AN49: =IF(C49<>"",IF(VLOOKUP(C49,Reference!$I$3:$J$188,2,FALSE)=" ",0,VLOOKUP(C49,Reference!$I$3:$J$188,2,FALSE)),"") -> 5 | AO49: =IF(C49<>"",IF(VLOOKUP(C49,Reference!$M$3:$Q$188,5,FALSE)=" ",0,VLOOKUP(C49,Reference!$M$3:$Q$188,5,FALSE)),"") -> 0
C50: Chloroform | M50: < | T50: =IF(C50<>"",IF(VLOOKUP(C50,Reference!$A$3:$B$188,2,FALSE)="","N/A",VLOOKUP(C50,Reference!$A$3:$B$188,2,FALSE)),"") -> 5.7 | AN50: =IF(C50<>"",IF(VLOOKUP(C50,Reference!$I$3:$J$188,2,FALSE)=" ",0,VLOOKUP(C50,Reference!$I$3:$J$188,2,FALSE)),"") -> 0.5 | AO50: =IF(C50<>"",IF(VLOOKUP(C50,Reference!$M$3:$Q$188,5,FALSE)=" ",0,VLOOKUP(C50,Reference!$M$3:$Q$188,5,FALSE)),"") -> 0
C51: Dichlorobromomethane | M51: < | T51: =IF(C51<>"",IF(VLOOKUP(C51,Reference!$A$3:$B$188,2,FALSE)="","N/A",VLOOKUP(C51,Reference!$A$3:$B$188,2,FALSE)),"") -> 0.55 | AN51: =IF(C51<>"",IF(VLOOKUP(C51,Reference!$I$3:$J$188,2,FALSE)=" ",0,VLOOKUP(C51,Reference!$I$3:$J$188,2,FALSE)),"") -> 0.5 | AO51: =IF(C51<>"",IF(VLOOKUP(C51,Reference!$M$3:$Q$188,5,FALSE)=" ",0,VLOOKUP(C51,Reference!$M$3:$Q$188,5,FALSE)),"") -> 0
C52: 1,1-Dichloroethane | M52: < | T52: =IF(C52<>"",IF(VLOOKUP(C52,Reference!$A$3:$B$188,2,FALSE)="","N/A",VLOOKUP(C52,Reference!$A$3:$B$188,2,FALSE)),"") -> N/A | AN52: =IF(C52<>"",IF(VLOOKUP(C52,Reference!$I$3:$J$188,2,FALSE)=" ",0,VLOOKUP(C52,Reference!$I$3:$J$188,2,FALSE)),"") -> 0.5 | AO52: =IF(C52<>"",IF(VLOOKUP(C52,Reference!$M$3:$Q$188,5,FALSE)=" ",0,VLOOKUP(C52,Reference!$M$3:$Q$188,5,FALSE)),"") -> 0
C53: 1,2-Dichloroethane | M53: < | T53: =IF(C53<>"",IF(VLOOKUP(C53,Reference!$A$3:$B$188,2,FALSE)="","N/A",VLOOKUP(C53,Reference!$A$3:$B$188,2,FALSE)),"") -> 0.38 | AN53: =IF(C53<>"",IF(VLOOKUP(C53,Reference!$I$3:$J$188,2,FALSE)=" ",0,VLOOKUP(C53,Reference!$I$3:$J$188,2,FALSE)),"") -> 0.5 | AO53: =IF(C53<>"",IF(VLOOKUP(C53,Reference!$M$3:$Q$188,5,FALSE)=" ",0,VLOOKUP(C53,Reference!$M$3:$Q$188,5,FALSE)),"") -> 0
C54: 1,1-Dichloroethylene | M54: < | T54: =IF(C54<>"",IF(VLOOKUP(C54,Reference!$A$3:$B$188,2,FALSE)="","N/A",VLOOKUP(C54,Reference!$A$3:$B$188,2,FALSE)),"") -> 33 | AN54: =IF(C54<>"",IF(VLOOKUP(C54,Reference!$I$3:$J$188,2,FALSE)=" ",0,VLOOKUP(C54,Reference!$I$3:$J$188,2,FALSE)),"") -> 0.5 | AO54: =IF(C54<>"",IF(VLOOKUP(C54,Reference!$M$3:$Q$188,5,FALSE)=" ",0,VLOOKUP(C54,Reference!$M$3:$Q$188,5,FALSE)),"") -> 0
C55: 1,2-Dichloropropane | M55: < | T55: =IF(C55<>"",IF(VLOOKUP(C55,Reference!$A$3:$B$188,2,FALSE)="","N/A",VLOOKUP(C55,Reference!$A$3:$B$188,2,FALSE)),"") -> 2200 | AN55: =IF(C55<>"",IF(VLOOKUP(C55,Reference!$I$3:$J$188,2,FALSE)=" ",0,VLOOKUP(C55,Reference!$I$3:$J$188,2,FALSE)),"") -> 0.5 | AO55: =IF(C55<>"",IF(VLOOKUP(C55,Reference!$M$3:$Q$188,5,FALSE)=" ",0,VLOOKUP(C55,Reference!$M$3:$Q$188,5,FALSE)),"") -> 0
C56: 1,3-Dichloropropylene | M56: < | T56: =IF(C56<>"",IF(VLOOKUP(C56,Reference!$A$3:$B$188,2,FALSE)="","N/A",VLOOKUP(C56,Reference!$A$3:$B$188,2,FALSE)),"") -> 0.34 | AN56: =IF(C56<>"",IF(VLOOKUP(C56,Reference!$I$3:$J$188,2,FALSE)=" ",0,VLOOKUP(C56,Reference!$I$3:$J$188,2,FALSE)),"") -> 0.5 | AO56: =IF(C56<>"",IF(VLOOKUP(C56,Reference!$M$3:$Q$188,5,FALSE)=" ",0,VLOOKUP(C56,Reference!$M$3:$Q$188,5,FALSE)),"") -> 0
C57: 1,4-Dioxane | M57: < | T57: =IF(C57<>"",IF(VLOOKUP(C57,Reference!$A$3:$B$188,2,FALSE)="","N/A",VLOOKUP(C57,Reference!$A$3:$B$188,2,FALSE)),"") -> N/A | AN57: =IF(C57<>"",IF(VLOOKUP(C57,Reference!$I$3:$J$188,2,FALSE)=" ",0,VLOOKUP(C57,Reference!$I$3:$J$188,2,FALSE)),"") -> 1 | AO57: =IF(C57<>"",IF(VLOOKUP(C57,Reference!$M$3:$Q$188,5,FALSE)=" ",0,VLOOKUP(C57,Reference!$M$3:$Q$188,5,FALSE)),"") -> 0 | AQ57: 10 | AR57: 100 | AS57: =IF(AND($Z$7<>"",N57<>""),IF(OR(AND($Z$7>0.1,N57>AQ57),(AND($Z$7<=0.1,N57>AR57))),"Monitor",""),"") ->  | AT57: =IF(OR(AP57="Establish Limits",AP57="Monitor"),AP57,IF(AND(AP57="No Limits/Monitoring",AS57="Monitor"),AS57,IF(AND(AP57="",AS57=""),"",IF(AND(AP57="",AS57="Monitor"),"Monitor",IF(AND(AP57="",AS57=""),"Monitor",""))))) -> 
C58: Ethylbenzene | M58: < | T58: =IF(C58<>"",IF(VLOOKUP(C58,Reference!$A$3:$B$188,2,FALSE)="","N/A",VLOOKUP(C58,Reference!$A$3:$B$188,2,FALSE)),"") -> 530 | AN58: =IF(C58<>"",IF(VLOOKUP(C58,Reference!$I$3:$J$188,2,FALSE)=" ",0,VLOOKUP(C58,Reference!$I$3:$J$188,2,FALSE)),"") -> 0.5 | AO58: =IF(C58<>"",IF(VLOOKUP(C58,Reference!$M$3:$Q$188,5,FALSE)=" ",0,VLOOKUP(C58,Reference!$M$3:$Q$188,5,FALSE)),"") -> 0
C59: Methyl Bromide | M59: < | T59: =IF(C59<>"",IF(VLOOKUP(C59,Reference!$A$3:$B$188,2,FALSE)="","N/A",VLOOKUP(C59,Reference!$A$3:$B$188,2,FALSE)),"") -> 47 | AN59: =IF(C59<>"",IF(VLOOKUP(C59,Reference!$I$3:$J$188,2,FALSE)=" ",0,VLOOKUP(C59,Reference!$I$3:$J$188,2,FALSE)),"") -> 0.5 | AO59: =IF(C59<>"",IF(VLOOKUP(C59,Reference!$M$3:$Q$188,5,FALSE)=" ",0,VLOOKUP(C59,Reference!$M$3:$Q$188,5,FALSE)),"") -> 0
C60: Methyl Chloride | M60: < | T60: =IF(C60<>"",IF(VLOOKUP(C60,Reference!$A$3:$B$188,2,FALSE)="","N/A",VLOOKUP(C60,Reference!$A$3:$B$188,2,FALSE)),"") -> 5500 | AN60: =IF(C60<>"",IF(VLOOKUP(C60,Reference!$I$3:$J$188,2,FALSE)=" ",0,VLOOKUP(C60,Reference!$I$3:$J$188,2,FALSE)),"") -> 0.5 | AO60: =IF(C60<>"",IF(VLOOKUP(C60,Reference!$M$3:$Q$188,5,FALSE)=" ",0,VLOOKUP(C60,Reference!$M$3:$Q$188,5,FALSE)),"") -> 0
C61: Methylene Chloride | M61: < | T61: =IF(C61<>"",IF(VLOOKUP(C61,Reference!$A$3:$B$188,2,FALSE)="","N/A",VLOOKUP(C61,Reference!$A$3:$B$188,2,FALSE)),"") -> 4.6 | AN61: =IF(C61<>"",IF(VLOOKUP(C61,Reference!$I$3:$J$188,2,FALSE)=" ",0,VLOOKUP(C61,Reference!$I$3:$J$188,2,FALSE)),"") -> 0.5 | AO61: =IF(C61<>"",IF(VLOOKUP(C61,Reference!$M$3:$Q$188,5,FALSE)=" ",0,VLOOKUP(C61,Reference!$M$3:$Q$188,5,FALSE)),"") -> 0
C62: 1,1,2,2-Tetrachloroethane | M62: < | T62: =IF(C62<>"",IF(VLOOKUP(C62,Reference!$A$3:$B$188,2,FALSE)="","N/A",VLOOKUP(C62,Reference!$A$3:$B$188,2,FALSE)),"") -> 0.17 | AN62: =IF(C62<>"",IF(VLOOKUP(C62,Reference!$I$3:$J$188,2,FALSE)=" ",0,VLOOKUP(C62,Reference!$I$3:$J$188,2,FALSE)),"") -> 0.5 | AO62: =IF(C62<>"",IF(VLOOKUP(C62,Reference!$M$3:$Q$188,5,FALSE)=" ",0,VLOOKUP(C62,Reference!$M$3:$Q$188,5,FALSE)),"") -> 0
C63: Tetrachloroethylene | M63: < | T63: =IF(C63<>"",IF(VLOOKUP(C63,Reference!$A$3:$B$188,2,FALSE)="","N/A",VLOOKUP(C63,Reference!$A$3:$B$188,2,FALSE)),"") -> 0.69 | AN63: =IF(C63<>"",IF(VLOOKUP(C63,Reference!$I$3:$J$188,2,FALSE)=" ",0,VLOOKUP(C63,Reference!$I$3:$J$188,2,FALSE)),"") -> 0.5 | AO63: =IF(C63<>"",IF(VLOOKUP(C63,Reference!$M$3:$Q$188,5,FALSE)=" ",0,VLOOKUP(C63,Reference!$M$3:$Q$188,5,FALSE)),"") -> 0
C64: Toluene | M64: < | T64: =IF(C64<>"",IF(VLOOKUP(C64,Reference!$A$3:$B$188,2,FALSE)="","N/A",VLOOKUP(C64,Reference!$A$3:$B$188,2,FALSE)),"") -> 330 | AN64: =IF(C64<>"",IF(VLOOKUP(C64,Reference!$I$3:$J$188,2,FALSE)=" ",0,VLOOKUP(C64,Reference!$I$3:$J$188,2,FALSE)),"") -> 0.5 | AO64: =IF(C64<>"",IF(VLOOKUP(C64,Reference!$M$3:$Q$188,5,FALSE)=" ",0,VLOOKUP(C64,Reference!$M$3:$Q$188,5,FALSE)),"") -> 0
C65: 1,2-trans-Dichloroethylene | M65: < | T65: =IF(C65<>"",IF(VLOOKUP(C65,Reference!$A$3:$B$188,2,FALSE)="","N/A",VLOOKUP(C65,Reference!$A$3:$B$188,2,FALSE)),"") -> 140 | AN65: =IF(C65<>"",IF(VLOOKUP(C65,Reference!$I$3:$J$188,2,FALSE)=" ",0,VLOOKUP(C65,Reference!$I$3:$J$188,2,FALSE)),"") -> 0.5 | AO65: =IF(C65<>"",IF(VLOOKUP(C65,Reference!$M$3:$Q$188,5,FALSE)=" ",0,VLOOKUP(C65,Reference!$M$3:$Q$188,5,FALSE)),"") -> 0
C66: 1,1,1-Trichloroethane | M66: < | T66: =IF(C66<>"",IF(VLOOKUP(C66,Reference!$A$3:$B$188,2,FALSE)="","N/A",VLOOKUP(C66,Reference!$A$3:$B$188,2,FALSE)),"") -> 610 | AN66: =IF(C66<>"",IF(VLOOKUP(C66,Reference!$I$3:$J$188,2,FALSE)=" ",0,VLOOKUP(C66,Reference!$I$3:$J$188,2,FALSE)),"") -> 0.5 | AO66: =IF(C66<>"",IF(VLOOKUP(C66,Reference!$M$3:$Q$188,5,FALSE)=" ",0,VLOOKUP(C66,Reference!$M$3:$Q$188,5,FALSE)),"") -> 0
C67: 1,1,2-Trichloroethane | M67: < | T67: =IF(C67<>"",IF(VLOOKUP(C67,Reference!$A$3:$B$188,2,FALSE)="","N/A",VLOOKUP(C67,Reference!$A$3:$B$188,2,FALSE)),"") -> 0.59 | AN67: =IF(C67<>"",IF(VLOOKUP(C67,Reference!$I$3:$J$188,2,FALSE)=" ",0,VLOOKUP(C67,Reference!$I$3:$J$188,2,FALSE)),"") -> 0.5 | AO67: =IF(C67<>"",IF(VLOOKUP(C67,Reference!$M$3:$Q$188,5,FALSE)=" ",0,VLOOKUP(C67,Reference!$M$3:$Q$188,5,FALSE)),"") -> 0
C68: Trichloroethylene | M68: < | T68: =IF(C68<>"",IF(VLOOKUP(C68,Reference!$A$3:$B$188,2,FALSE)="","N/A",VLOOKUP(C68,Reference!$A$3:$B$188,2,FALSE)),"") -> 2.5 | AN68: =IF(C68<>"",IF(VLOOKUP(C68,Reference!$I$3:$J$188,2,FALSE)=" ",0,VLOOKUP(C68,Reference!$I$3:$J$188,2,FALSE)),"") -> 0.5 | AO68: =IF(C68<>"",IF(VLOOKUP(C68,Reference!$M$3:$Q$188,5,FALSE)=" ",0,VLOOKUP(C68,Reference!$M$3:$Q$188,5,FALSE)),"") -> 0
C69: Vinyl Chloride | M69: < | T69: =IF(C69<>"",IF(VLOOKUP(C69,Reference!$A$3:$B$188,2,FALSE)="","N/A",VLOOKUP(C69,Reference!$A$3:$B$188,2,FALSE)),"") -> 0.025 | AN69: =IF(C69<>"",IF(VLOOKUP(C69,Reference!$I$3:$J$188,2,FALSE)=" ",0,VLOOKUP(C69,Reference!$I$3:$J$188,2,FALSE)),"") -> 0.5 | AO69: =IF(C69<>"",IF(VLOOKUP(C69,Reference!$M$3:$Q$188,5,FALSE)=" ",0,VLOOKUP(C69,Reference!$M$3:$Q$188,5,FALSE)),"") -> 0
B70: Group 4 | C70: 2-Chlorophenol | M70: < | T70: =IF(C70<>"",IF(VLOOKUP(C70,Reference!$A$3:$B$188,2,FALSE)="","N/A",VLOOKUP(C70,Reference!$A$3:$B$188,2,FALSE)),"") -> 81 | AN70: =IF(C70<>"",IF(VLOOKUP(C70,Reference!$I$3:$J$188,2,FALSE)=" ",0,VLOOKUP(C70,Reference!$I$3:$J$188,2,FALSE)),"") -> 10 | AO70: =IF(C70<>"",IF(VLOOKUP(C70,Reference!$M$3:$Q$188,5,FALSE)=" ",0,VLOOKUP(C70,Reference!$M$3:$Q$188,5,FALSE)),"") -> 0
C71: 2,4-Dichlorophenol | M71: < | T71: =IF(C71<>"",IF(VLOOKUP(C71,Reference!$A$3:$B$188,2,FALSE)="","N/A",VLOOKUP(C71,Reference!$A$3:$B$188,2,FALSE)),"") -> 77 | AN71: =IF(C71<>"",IF(VLOOKUP(C71,Reference!$I$3:$J$188,2,FALSE)=" ",0,VLOOKUP(C71,Reference!$I$3:$J$188,2,FALSE)),"") -> 10 | AO71: =IF(C71<>"",IF(VLOOKUP(C71,Reference!$M$3:$Q$188,5,FALSE)=" ",0,VLOOKUP(C71,Reference!$M$3:$Q$188,5,FALSE)),"") -> 0
C72: 2,4-Dimethylphenol | M72: < | T72: =IF(C72<>"",IF(VLOOKUP(C72,Reference!$A$3:$B$188,2,FALSE)="","N/A",VLOOKUP(C72,Reference!$A$3:$B$188,2,FALSE)),"") -> 130 | AN72: =IF(C72<>"",IF(VLOOKUP(C72,Reference!$I$3:$J$188,2,FALSE)=" ",0,VLOOKUP(C72,Reference!$I$3:$J$188,2,FALSE)),"") -> 10 | AO72: =IF(C72<>"",IF(VLOOKUP(C72,Reference!$M$3:$Q$188,5,FALSE)=" ",0,VLOOKUP(C72,Reference!$M$3:$Q$188,5,FALSE)),"") -> 0
C73: 4,6-Dinitro-o-Cresol | M73: < | T73: =IF(C73<>"",IF(VLOOKUP(C73,Reference!$A$3:$B$188,2,FALSE)="","N/A",VLOOKUP(C73,Reference!$A$3:$B$188,2,FALSE)),"") -> 13 | AN73: =IF(C73<>"",IF(VLOOKUP(C73,Reference!$I$3:$J$188,2,FALSE)=" ",0,VLOOKUP(C73,Reference!$I$3:$J$188,2,FALSE)),"") -> 10 | AO73: =IF(C73<>"",IF(VLOOKUP(C73,Reference!$M$3:$Q$188,5,FALSE)=" ",0,VLOOKUP(C73,Reference!$M$3:$Q$188,5,FALSE)),"") -> 0
C74: 2,4-Dinitrophenol | M74: < | T74: =IF(C74<>"",IF(VLOOKUP(C74,Reference!$A$3:$B$188,2,FALSE)="","N/A",VLOOKUP(C74,Reference!$A$3:$B$188,2,FALSE)),"") -> 69 | AN74: =IF(C74<>"",IF(VLOOKUP(C74,Reference!$I$3:$J$188,2,FALSE)=" ",0,VLOOKUP(C74,Reference!$I$3:$J$188,2,FALSE)),"") -> 10 | AO74: =IF(C74<>"",IF(VLOOKUP(C74,Reference!$M$3:$Q$188,5,FALSE)=" ",0,VLOOKUP(C74,Reference!$M$3:$Q$188,5,FALSE)),"") -> 0
C75: 2-Nitrophenol | M75: < | T75: =IF(C75<>"",IF(VLOOKUP(C75,Reference!$A$3:$B$188,2,FALSE)="","N/A",VLOOKUP(C75,Reference!$A$3:$B$188,2,FALSE)),"") -> 1600 | AN75: =IF(C75<>"",IF(VLOOKUP(C75,Reference!$I$3:$J$188,2,FALSE)=" ",0,VLOOKUP(C75,Reference!$I$3:$J$188,2,FALSE)),"") -> 10 | AO75: =IF(C75<>"",IF(VLOOKUP(C75,Reference!$M$3:$Q$188,5,FALSE)=" ",0,VLOOKUP(C75,Reference!$M$3:$Q$188,5,FALSE)),"") -> 0
C76: 4-Nitrophenol | M76: < | T76: =IF(C76<>"",IF(VLOOKUP(C76,Reference!$A$3:$B$188,2,FALSE)="","N/A",VLOOKUP(C76,Reference!$A$3:$B$188,2,FALSE)),"") -> 470 | AN76: =IF(C76<>"",IF(VLOOKUP(C76,Reference!$I$3:$J$188,2,FALSE)=" ",0,VLOOKUP(C76,Reference!$I$3:$J$188,2,FALSE)),"") -> 10 | AO76: =IF(C76<>"",IF(VLOOKUP(C76,Reference!$M$3:$Q$188,5,FALSE)=" ",0,VLOOKUP(C76,Reference!$M$3:$Q$188,5,FALSE)),"") -> 0
C77: p-Chloro-m-Cresol | M77: < | T77: =IF(C77<>"",IF(VLOOKUP(C77,Reference!$A$3:$B$188,2,FALSE)="","N/A",VLOOKUP(C77,Reference!$A$3:$B$188,2,FALSE)),"") -> 30 | AN77: =IF(C77<>"",IF(VLOOKUP(C77,Reference!$I$3:$J$188,2,FALSE)=" ",0,VLOOKUP(C77,Reference!$I$3:$J$188,2,FALSE)),"") -> 10 | AO77: =IF(C77<>"",IF(VLOOKUP(C77,Reference!$M$3:$Q$188,5,FALSE)=" ",0,VLOOKUP(C77,Reference!$M$3:$Q$188,5,FALSE)),"") -> 0
C78: Pentachlorophenol | M78: < | T78: =IF(C78<>"",IF(VLOOKUP(C78,Reference!$A$3:$B$188,2,FALSE)="","N/A",VLOOKUP(C78,Reference!$A$3:$B$188,2,FALSE)),"") -> 0.27 | AN78: =IF(C78<>"",IF(VLOOKUP(C78,Reference!$I$3:$J$188,2,FALSE)=" ",0,VLOOKUP(C78,Reference!$I$3:$J$188,2,FALSE)),"") -> 10 | AO78: =IF(C78<>"",IF(VLOOKUP(C78,Reference!$M$3:$Q$188,5,FALSE)=" ",0,VLOOKUP(C78,Reference!$M$3:$Q$188,5,FALSE)),"") -> 0
C79: Phenol | M79: < | T79: =IF(C79<>"",IF(VLOOKUP(C79,Reference!$A$3:$B$188,2,FALSE)="","N/A",VLOOKUP(C79,Reference!$A$3:$B$188,2,FALSE)),"") -> 10400 | AN79: =IF(C79<>"",IF(VLOOKUP(C79,Reference!$I$3:$J$188,2,FALSE)=" ",0,VLOOKUP(C79,Reference!$I$3:$J$188,2,FALSE)),"") -> 10 | AO79: =IF(C79<>"",IF(VLOOKUP(C79,Reference!$M$3:$Q$188,5,FALSE)=" ",0,VLOOKUP(C79,Reference!$M$3:$Q$188,5,FALSE)),"") -> 0
C80: 2,4,6-Trichlorophenol | M80: < | T80: =IF(C80<>"",IF(VLOOKUP(C80,Reference!$A$3:$B$188,2,FALSE)="","N/A",VLOOKUP(C80,Reference!$A$3:$B$188,2,FALSE)),"") -> 1.4 | AN80: =IF(C80<>"",IF(VLOOKUP(C80,Reference!$I$3:$J$188,2,FALSE)=" ",0,VLOOKUP(C80,Reference!$I$3:$J$188,2,FALSE)),"") -> 10 | AO80: =IF(C80<>"",IF(VLOOKUP(C80,Reference!$M$3:$Q$188,5,FALSE)=" ",0,VLOOKUP(C80,Reference!$M$3:$Q$188,5,FALSE)),"") -> 0
B81: Group 5 | C81: Acenaphthene | M81: < | T81: =IF(C81<>"",IF(VLOOKUP(C81,Reference!$A$3:$B$188,2,FALSE)="","N/A",VLOOKUP(C81,Reference!$A$3:$B$188,2,FALSE)),"") -> 17 | AN81: =IF(C81<>"",IF(VLOOKUP(C81,Reference!$I$3:$J$188,2,FALSE)=" ",0,VLOOKUP(C81,Reference!$I$3:$J$188,2,FALSE)),"") -> 2.5 | AO81: =IF(C81<>"",IF(VLOOKUP(C81,Reference!$M$3:$Q$188,5,FALSE)=" ",0,VLOOKUP(C81,Reference!$M$3:$Q$188,5,FALSE)),"") -> 0
C82: Acenaphthylene | M82: < | T82: =IF(C82<>"",IF(VLOOKUP(C82,Reference!$A$3:$B$188,2,FALSE)="","N/A",VLOOKUP(C82,Reference!$A$3:$B$188,2,FALSE)),"") -> N/A | AN82: =IF(C82<>"",IF(VLOOKUP(C82,Reference!$I$3:$J$188,2,FALSE)=" ",0,VLOOKUP(C82,Reference!$I$3:$J$188,2,FALSE)),"") -> 2.5 | AO82: =IF(C82<>"",IF(VLOOKUP(C82,Reference!$M$3:$Q$188,5,FALSE)=" ",0,VLOOKUP(C82,Reference!$M$3:$Q$188,5,FALSE)),"") -> 0
C83: Anthracene | M83: < | T83: =IF(C83<>"",IF(VLOOKUP(C83,Reference!$A$3:$B$188,2,FALSE)="","N/A",VLOOKUP(C83,Reference!$A$3:$B$188,2,FALSE)),"") -> 8300 | X83: =IF(AND(C83<>"",N83<>"",$J$8<>"",$Z$7<>""),IF(T83<>"N/A",IF(AND(N83<=VALUE(AN83),M83="<"),"No (Value < QL)",IF($AP$9="No",IF(N83>=(0.5*T83),IF(AND(M83="<",N83=(0.5*T83)),"No","Yes"),"No"),IF(N83>=T83,IF(AND(M83="<",N83=T83),"No","Yes"),"No"))),"No"),"") ->  | AN83: =IF(C83<>"",IF(VLOOKUP(C83,Reference!$I$3:$J$188,2,FALSE)=" ",0,VLOOKUP(C83,Reference!$I$3:$J$188,2,FALSE)),"") -> 2.5 | AO83: =IF(C83<>"",IF(VLOOKUP(C83,Reference!$M$3:$Q$188,5,FALSE)=" ",0,VLOOKUP(C83,Reference!$M$3:$Q$188,5,FALSE)),"") -> 0 | AP83: =IF(AND(X83="Yes",AC83<>""),IF((N83/AC83)>=0.5,"Establish Limits",IF(AND(AO83="Y",(N83/AC83)>0.1),"Monitor",IF(AND(AO83<>"Y",(N83/AC83)>0.25),"Monitor","No Limits/Monitoring"))),"") -> 
C84: Benzidine | M84: < | T84: =IF(C84<>"",IF(VLOOKUP(C84,Reference!$A$3:$B$188,2,FALSE)="","N/A",VLOOKUP(C84,Reference!$A$3:$B$188,2,FALSE)),"") -> 8.6e-05 | AN84: =IF(C84<>"",IF(VLOOKUP(C84,Reference!$I$3:$J$188,2,FALSE)=" ",0,VLOOKUP(C84,Reference!$I$3:$J$188,2,FALSE)),"") -> 50 | AO84: =IF(C84<>"",IF(VLOOKUP(C84,Reference!$M$3:$Q$188,5,FALSE)=" ",0,VLOOKUP(C84,Reference!$M$3:$Q$188,5,FALSE)),"") -> 0
C85: Benzo(a)Anthracene | M85: < | T85: =IF(C85<>"",IF(VLOOKUP(C85,Reference!$A$3:$B$188,2,FALSE)="","N/A",VLOOKUP(C85,Reference!$A$3:$B$188,2,FALSE)),"") -> 0.0038 | AN85: =IF(C85<>"",IF(VLOOKUP(C85,Reference!$I$3:$J$188,2,FALSE)=" ",0,VLOOKUP(C85,Reference!$I$3:$J$188,2,FALSE)),"") -> 2.5 | AO85: =IF(C85<>"",IF(VLOOKUP(C85,Reference!$M$3:$Q$188,5,FALSE)=" ",0,VLOOKUP(C85,Reference!$M$3:$Q$188,5,FALSE)),"") -> 0
C86: Benzo(a)Pyrene | M86: < | T86: =IF(C86<>"",IF(VLOOKUP(C86,Reference!$A$3:$B$188,2,FALSE)="","N/A",VLOOKUP(C86,Reference!$A$3:$B$188,2,FALSE)),"") -> 0.0038 | AG86: =IF($N86<>"",IF(AND(X86="Yes",AC86<>""),IF(($N86/$AC86)>=0.5,"Establish Limits",IF(AND($AO86="Y",($N86/$AC86)>0.1),"Monitor",IF(AND($AO86<>"Y",($N86/$AC86)>0.25),"Monitor","No Limits/Monitoring"))),""),"") ->  | AN86: =IF(C86<>"",IF(VLOOKUP(C86,Reference!$I$3:$J$188,2,FALSE)=" ",0,VLOOKUP(C86,Reference!$I$3:$J$188,2,FALSE)),"") -> 2.5 | AO86: =IF(C86<>"",IF(VLOOKUP(C86,Reference!$M$3:$Q$188,5,FALSE)=" ",0,VLOOKUP(C86,Reference!$M$3:$Q$188,5,FALSE)),"") -> 0
C87: 3,4-Benzofluoranthene | M87: < | T87: =IF(C87<>"",IF(VLOOKUP(C87,Reference!$A$3:$B$188,2,FALSE)="","N/A",VLOOKUP(C87,Reference!$A$3:$B$188,2,FALSE)),"") -> 0.0038 | AN87: =IF(C87<>"",IF(VLOOKUP(C87,Reference!$I$3:$J$188,2,FALSE)=" ",0,VLOOKUP(C87,Reference!$I$3:$J$188,2,FALSE)),"") -> 2.5 | AO87: =IF(C87<>"",IF(VLOOKUP(C87,Reference!$M$3:$Q$188,5,FALSE)=" ",0,VLOOKUP(C87,Reference!$M$3:$Q$188,5,FALSE)),"") -> 0
C88: Benzo(ghi)Perylene | M88: < | T88: =IF(C88<>"",IF(VLOOKUP(C88,Reference!$A$3:$B$188,2,FALSE)="","N/A",VLOOKUP(C88,Reference!$A$3:$B$188,2,FALSE)),"") -> N/A | AN88: =IF(C88<>"",IF(VLOOKUP(C88,Reference!$I$3:$J$188,2,FALSE)=" ",0,VLOOKUP(C88,Reference!$I$3:$J$188,2,FALSE)),"") -> 2.5 | AO88: =IF(C88<>"",IF(VLOOKUP(C88,Reference!$M$3:$Q$188,5,FALSE)=" ",0,VLOOKUP(C88,Reference!$M$3:$Q$188,5,FALSE)),"") -> 0
C89: Benzo(k)Fluoranthene | M89: < | T89: =IF(C89<>"",IF(VLOOKUP(C89,Reference!$A$3:$B$188,2,FALSE)="","N/A",VLOOKUP(C89,Reference!$A$3:$B$188,2,FALSE)),"") -> 0.0038 | AN89: =IF(C89<>"",IF(VLOOKUP(C89,Reference!$I$3:$J$188,2,FALSE)=" ",0,VLOOKUP(C89,Reference!$I$3:$J$188,2,FALSE)),"") -> 2.5 | AO89: =IF(C89<>"",IF(VLOOKUP(C89,Reference!$M$3:$Q$188,5,FALSE)=" ",0,VLOOKUP(C89,Reference!$M$3:$Q$188,5,FALSE)),"") -> 0
C90: Bis(2-Chloroethoxy)Methane | M90: < | T90: =IF(C90<>"",IF(VLOOKUP(C90,Reference!$A$3:$B$188,2,FALSE)="","N/A",VLOOKUP(C90,Reference!$A$3:$B$188,2,FALSE)),"") -> N/A | AN90: =IF(C90<>"",IF(VLOOKUP(C90,Reference!$I$3:$J$188,2,FALSE)=" ",0,VLOOKUP(C90,Reference!$I$3:$J$188,2,FALSE)),"") -> 5 | AO90: =IF(C90<>"",IF(VLOOKUP(C90,Reference!$M$3:$Q$188,5,FALSE)=" ",0,VLOOKUP(C90,Reference!$M$3:$Q$188,5,FALSE)),"") -> 0
C91: Bis(2-Chloroethyl)Ether | M91: < | T91: =IF(C91<>"",IF(VLOOKUP(C91,Reference!$A$3:$B$188,2,FALSE)="","N/A",VLOOKUP(C91,Reference!$A$3:$B$188,2,FALSE)),"") -> 0.03 | AN91: =IF(C91<>"",IF(VLOOKUP(C91,Reference!$I$3:$J$188,2,FALSE)=" ",0,VLOOKUP(C91,Reference!$I$3:$J$188,2,FALSE)),"") -> 5 | AO91: =IF(C91<>"",IF(VLOOKUP(C91,Reference!$M$3:$Q$188,5,FALSE)=" ",0,VLOOKUP(C91,Reference!$M$3:$Q$188,5,FALSE)),"") -> 0
C92: Bis(2-Chloroisopropyl)Ether | M92: < | T92: =IF(C92<>"",IF(VLOOKUP(C92,Reference!$A$3:$B$188,2,FALSE)="","N/A",VLOOKUP(C92,Reference!$A$3:$B$188,2,FALSE)),"") -> 1400 | AN92: =IF(C92<>"",IF(VLOOKUP(C92,Reference!$I$3:$J$188,2,FALSE)=" ",0,VLOOKUP(C92,Reference!$I$3:$J$188,2,FALSE)),"") -> 5 | AO92: =IF(C92<>"",IF(VLOOKUP(C92,Reference!$M$3:$Q$188,5,FALSE)=" ",0,VLOOKUP(C92,Reference!$M$3:$Q$188,5,FALSE)),"") -> 0
C93: Bis(2-Ethylhexyl)Phthalate | M93: < | T93: =IF(C93<>"",IF(VLOOKUP(C93,Reference!$A$3:$B$188,2,FALSE)="","N/A",VLOOKUP(C93,Reference!$A$3:$B$188,2,FALSE)),"") -> 1.2 | AN93: =IF(C93<>"",IF(VLOOKUP(C93,Reference!$I$3:$J$188,2,FALSE)=" ",0,VLOOKUP(C93,Reference!$I$3:$J$188,2,FALSE)),"") -> 5 | AO93: =IF(C93<>"",IF(VLOOKUP(C93,Reference!$M$3:$Q$188,5,FALSE)=" ",0,VLOOKUP(C93,Reference!$M$3:$Q$188,5,FALSE)),"") -> 0
C94: 4-Bromophenyl Phenyl Ether | M94: < | T94: =IF(C94<>"",IF(VLOOKUP(C94,Reference!$A$3:$B$188,2,FALSE)="","N/A",VLOOKUP(C94,Reference!$A$3:$B$188,2,FALSE)),"") -> 54 | AN94: =IF(C94<>"",IF(VLOOKUP(C94,Reference!$I$3:$J$188,2,FALSE)=" ",0,VLOOKUP(C94,Reference!$I$3:$J$188,2,FALSE)),"") -> 5 | AO94: =IF(C94<>"",IF(VLOOKUP(C94,Reference!$M$3:$Q$188,5,FALSE)=" ",0,VLOOKUP(C94,Reference!$M$3:$Q$188,5,FALSE)),"") -> 0
C95: Butyl Benzyl Phthalate | M95: < | T95: =IF(C95<>"",IF(VLOOKUP(C95,Reference!$A$3:$B$188,2,FALSE)="","N/A",VLOOKUP(C95,Reference!$A$3:$B$188,2,FALSE)),"") -> 35 | AN95: =IF(C95<>"",IF(VLOOKUP(C95,Reference!$I$3:$J$188,2,FALSE)=" ",0,VLOOKUP(C95,Reference!$I$3:$J$188,2,FALSE)),"") -> 5 | AO95: =IF(C95<>"",IF(VLOOKUP(C95,Reference!$M$3:$Q$188,5,FALSE)=" ",0,VLOOKUP(C95,Reference!$M$3:$Q$188,5,FALSE)),"") -> 0
C96: 2-Chloronaphthalene | M96: < | T96: =IF(C96<>"",IF(VLOOKUP(C96,Reference!$A$3:$B$188,2,FALSE)="","N/A",VLOOKUP(C96,Reference!$A$3:$B$188,2,FALSE)),"") -> 1000 | AN96: =IF(C96<>"",IF(VLOOKUP(C96,Reference!$I$3:$J$188,2,FALSE)=" ",0,VLOOKUP(C96,Reference!$I$3:$J$188,2,FALSE)),"") -> 5 | AO96: =IF(C96<>"",IF(VLOOKUP(C96,Reference!$M$3:$Q$188,5,FALSE)=" ",0,VLOOKUP(C96,Reference!$M$3:$Q$188,5,FALSE)),"") -> 0
C97: 4-Chlorophenyl Phenyl Ether | M97: < | T97: =IF(C97<>"",IF(VLOOKUP(C97,Reference!$A$3:$B$188,2,FALSE)="","N/A",VLOOKUP(C97,Reference!$A$3:$B$188,2,FALSE)),"") -> N/A | AN97: =IF(C97<>"",IF(VLOOKUP(C97,Reference!$I$3:$J$188,2,FALSE)=" ",0,VLOOKUP(C97,Reference!$I$3:$J$188,2,FALSE)),"") -> 5 | AO97: =IF(C97<>"",IF(VLOOKUP(C97,Reference!$M$3:$Q$188,5,FALSE)=" ",0,VLOOKUP(C97,Reference!$M$3:$Q$188,5,FALSE)),"") -> 0
C98: Chrysene | M98: < | T98: =IF(C98<>"",IF(VLOOKUP(C98,Reference!$A$3:$B$188,2,FALSE)="","N/A",VLOOKUP(C98,Reference!$A$3:$B$188,2,FALSE)),"") -> 0.0038 | AN98: =IF(C98<>"",IF(VLOOKUP(C98,Reference!$I$3:$J$188,2,FALSE)=" ",0,VLOOKUP(C98,Reference!$I$3:$J$188,2,FALSE)),"") -> 2.5 | AO98: =IF(C98<>"",IF(VLOOKUP(C98,Reference!$M$3:$Q$188,5,FALSE)=" ",0,VLOOKUP(C98,Reference!$M$3:$Q$188,5,FALSE)),"") -> 0
C99: Dibenzo(a,h)Anthrancene | M99: < | T99: =IF(C99<>"",IF(VLOOKUP(C99,Reference!$A$3:$B$188,2,FALSE)="","N/A",VLOOKUP(C99,Reference!$A$3:$B$188,2,FALSE)),"") -> 0.0038 | AN99: =IF(C99<>"",IF(VLOOKUP(C99,Reference!$I$3:$J$188,2,FALSE)=" ",0,VLOOKUP(C99,Reference!$I$3:$J$188,2,FALSE)),"") -> 2.5 | AO99: =IF(C99<>"",IF(VLOOKUP(C99,Reference!$M$3:$Q$188,5,FALSE)=" ",0,VLOOKUP(C99,Reference!$M$3:$Q$188,5,FALSE)),"") -> 0
C100: 1,2-Dichlorobenzene | M100: < | T100: =IF(C100<>"",IF(VLOOKUP(C100,Reference!$A$3:$B$188,2,FALSE)="","N/A",VLOOKUP(C100,Reference!$A$3:$B$188,2,FALSE)),"") -> 160 | AN100: =IF(C100<>"",IF(VLOOKUP(C100,Reference!$I$3:$J$188,2,FALSE)=" ",0,VLOOKUP(C100,Reference!$I$3:$J$188,2,FALSE)),"") -> 0.5 | AO100: =IF(C100<>"",IF(VLOOKUP(C100,Reference!$M$3:$Q$188,5,FALSE)=" ",0,VLOOKUP(C100,Reference!$M$3:$Q$188,5,FALSE)),"") -> 0
C101: 1,3-Dichlorobenzene | M101: < | T101: =IF(C101<>"",IF(VLOOKUP(C101,Reference!$A$3:$B$188,2,FALSE)="","N/A",VLOOKUP(C101,Reference!$A$3:$B$188,2,FALSE)),"") -> 69 | AN101: =IF(C101<>"",IF(VLOOKUP(C101,Reference!$I$3:$J$188,2,FALSE)=" ",0,VLOOKUP(C101,Reference!$I$3:$J$188,2,FALSE)),"") -> 0.5 | AO101: =IF(C101<>"",IF(VLOOKUP(C101,Reference!$M$3:$Q$188,5,FALSE)=" ",0,VLOOKUP(C101,Reference!$M$3:$Q$188,5,FALSE)),"") -> 0
C102: 1,4-Dichlorobenzene | M102: < | T102: =IF(C102<>"",IF(VLOOKUP(C102,Reference!$A$3:$B$188,2,FALSE)="","N/A",VLOOKUP(C102,Reference!$A$3:$B$188,2,FALSE)),"") -> 150 | AN102: =IF(C102<>"",IF(VLOOKUP(C102,Reference!$I$3:$J$188,2,FALSE)=" ",0,VLOOKUP(C102,Reference!$I$3:$J$188,2,FALSE)),"") -> 0.5 | AO102: =IF(C102<>"",IF(VLOOKUP(C102,Reference!$M$3:$Q$188,5,FALSE)=" ",0,VLOOKUP(C102,Reference!$M$3:$Q$188,5,FALSE)),"") -> 0
C103: 3,3-Dichlorobenzidine | M103: < | T103: =IF(C103<>"",IF(VLOOKUP(C103,Reference!$A$3:$B$188,2,FALSE)="","N/A",VLOOKUP(C103,Reference!$A$3:$B$188,2,FALSE)),"") -> 0.021 | AN103: =IF(C103<>"",IF(VLOOKUP(C103,Reference!$I$3:$J$188,2,FALSE)=" ",0,VLOOKUP(C103,Reference!$I$3:$J$188,2,FALSE)),"") -> 5 | AO103: =IF(C103<>"",IF(VLOOKUP(C103,Reference!$M$3:$Q$188,5,FALSE)=" ",0,VLOOKUP(C103,Reference!$M$3:$Q$188,5,FALSE)),"") -> 0
C104: Diethyl Phthalate | M104: < | T104: =IF(C104<>"",IF(VLOOKUP(C104,Reference!$A$3:$B$188,2,FALSE)="","N/A",VLOOKUP(C104,Reference!$A$3:$B$188,2,FALSE)),"") -> 800 | AN104: =IF(C104<>"",IF(VLOOKUP(C104,Reference!$I$3:$J$188,2,FALSE)=" ",0,VLOOKUP(C104,Reference!$I$3:$J$188,2,FALSE)),"") -> 5 | AO104: =IF(C104<>"",IF(VLOOKUP(C104,Reference!$M$3:$Q$188,5,FALSE)=" ",0,VLOOKUP(C104,Reference!$M$3:$Q$188,5,FALSE)),"") -> 0
C105: Dimethyl Phthalate | M105: < | T105: =IF(C105<>"",IF(VLOOKUP(C105,Reference!$A$3:$B$188,2,FALSE)="","N/A",VLOOKUP(C105,Reference!$A$3:$B$188,2,FALSE)),"") -> 500 | AN105: =IF(C105<>"",IF(VLOOKUP(C105,Reference!$I$3:$J$188,2,FALSE)=" ",0,VLOOKUP(C105,Reference!$I$3:$J$188,2,FALSE)),"") -> 5 | AO105: =IF(C105<>"",IF(VLOOKUP(C105,Reference!$M$3:$Q$188,5,FALSE)=" ",0,VLOOKUP(C105,Reference!$M$3:$Q$188,5,FALSE)),"") -> 0
C106: Di-n-Butyl Phthalate | M106: < | T106: =IF(C106<>"",IF(VLOOKUP(C106,Reference!$A$3:$B$188,2,FALSE)="","N/A",VLOOKUP(C106,Reference!$A$3:$B$188,2,FALSE)),"") -> 21 | AN106: =IF(C106<>"",IF(VLOOKUP(C106,Reference!$I$3:$J$188,2,FALSE)=" ",0,VLOOKUP(C106,Reference!$I$3:$J$188,2,FALSE)),"") -> 5 | AO106: =IF(C106<>"",IF(VLOOKUP(C106,Reference!$M$3:$Q$188,5,FALSE)=" ",0,VLOOKUP(C106,Reference!$M$3:$Q$188,5,FALSE)),"") -> 0
C107: 2,4-Dinitrotoluene | M107: < | T107: =IF(C107<>"",IF(VLOOKUP(C107,Reference!$A$3:$B$188,2,FALSE)="","N/A",VLOOKUP(C107,Reference!$A$3:$B$188,2,FALSE)),"") -> 0.05 | AN107: =IF(C107<>"",IF(VLOOKUP(C107,Reference!$I$3:$J$188,2,FALSE)=" ",0,VLOOKUP(C107,Reference!$I$3:$J$188,2,FALSE)),"") -> 5 | AO107: =IF(C107<>"",IF(VLOOKUP(C107,Reference!$M$3:$Q$188,5,FALSE)=" ",0,VLOOKUP(C107,Reference!$M$3:$Q$188,5,FALSE)),"") -> 0
C108: 2,6-Dinitrotoluene | M108: < | T108: =IF(C108<>"",IF(VLOOKUP(C108,Reference!$A$3:$B$188,2,FALSE)="","N/A",VLOOKUP(C108,Reference!$A$3:$B$188,2,FALSE)),"") -> 0.05 | AN108: =IF(C108<>"",IF(VLOOKUP(C108,Reference!$I$3:$J$188,2,FALSE)=" ",0,VLOOKUP(C108,Reference!$I$3:$J$188,2,FALSE)),"") -> 5 | AO108: =IF(C108<>"",IF(VLOOKUP(C108,Reference!$M$3:$Q$188,5,FALSE)=" ",0,VLOOKUP(C108,Reference!$M$3:$Q$188,5,FALSE)),"") -> 0
C109: Di-n-Octyl Phthalate | M109: < | T109: =IF(C109<>"",IF(VLOOKUP(C109,Reference!$A$3:$B$188,2,FALSE)="","N/A",VLOOKUP(C109,Reference!$A$3:$B$188,2,FALSE)),"") -> N/A | AN109: =IF(C109<>"",IF(VLOOKUP(C109,Reference!$I$3:$J$188,2,FALSE)=" ",0,VLOOKUP(C109,Reference!$I$3:$J$188,2,FALSE)),"") -> 5 | AO109: =IF(C109<>"",IF(VLOOKUP(C109,Reference!$M$3:$Q$188,5,FALSE)=" ",0,VLOOKUP(C109,Reference!$M$3:$Q$188,5,FALSE)),"") -> 0
C110: 1,2-Diphenylhydrazine | M110: < | T110: =IF(C110<>"",IF(VLOOKUP(C110,Reference!$A$3:$B$188,2,FALSE)="","N/A",VLOOKUP(C110,Reference!$A$3:$B$188,2,FALSE)),"") -> 0.036 | AN110: =IF(C110<>"",IF(VLOOKUP(C110,Reference!$I$3:$J$188,2,FALSE)=" ",0,VLOOKUP(C110,Reference!$I$3:$J$188,2,FALSE)),"") -> 10 | AO110: =IF(C110<>"",IF(VLOOKUP(C110,Reference!$M$3:$Q$188,5,FALSE)=" ",0,VLOOKUP(C110,Reference!$M$3:$Q$188,5,FALSE)),"") -> 0
C111: Fluoranthene | M111: < | T111: =IF(C111<>"",IF(VLOOKUP(C111,Reference!$A$3:$B$188,2,FALSE)="","N/A",VLOOKUP(C111,Reference!$A$3:$B$188,2,FALSE)),"") -> 40 | AN111: =IF(C111<>"",IF(VLOOKUP(C111,Reference!$I$3:$J$188,2,FALSE)=" ",0,VLOOKUP(C111,Reference!$I$3:$J$188,2,FALSE)),"") -> 2.5 | AO111: =IF(C111<>"",IF(VLOOKUP(C111,Reference!$M$3:$Q$188,5,FALSE)=" ",0,VLOOKUP(C111,Reference!$M$3:$Q$188,5,FALSE)),"") -> 0
C112: Fluorene | M112: < | T112: =IF(C112<>"",IF(VLOOKUP(C112,Reference!$A$3:$B$188,2,FALSE)="","N/A",VLOOKUP(C112,Reference!$A$3:$B$188,2,FALSE)),"") -> 1100 | AN112: =IF(C112<>"",IF(VLOOKUP(C112,Reference!$I$3:$J$188,2,FALSE)=" ",0,VLOOKUP(C112,Reference!$I$3:$J$188,2,FALSE)),"") -> 2.5 | AO112: =IF(C112<>"",IF(VLOOKUP(C112,Reference!$M$3:$Q$188,5,FALSE)=" ",0,VLOOKUP(C112,Reference!$M$3:$Q$188,5,FALSE)),"") -> 0
C113: Hexachlorobenzene | M113: < | T113: =IF(C113<>"",IF(VLOOKUP(C113,Reference!$A$3:$B$188,2,FALSE)="","N/A",VLOOKUP(C113,Reference!$A$3:$B$188,2,FALSE)),"") -> 0.00028 | AN113: =IF(C113<>"",IF(VLOOKUP(C113,Reference!$I$3:$J$188,2,FALSE)=" ",0,VLOOKUP(C113,Reference!$I$3:$J$188,2,FALSE)),"") -> 5 | AO113: =IF(C113<>"",IF(VLOOKUP(C113,Reference!$M$3:$Q$188,5,FALSE)=" ",0,VLOOKUP(C113,Reference!$M$3:$Q$188,5,FALSE)),"") -> 0
C114: Hexachlorobutadiene | M114: < | T114: =IF(C114<>"",IF(VLOOKUP(C114,Reference!$A$3:$B$188,2,FALSE)="","N/A",VLOOKUP(C114,Reference!$A$3:$B$188,2,FALSE)),"") -> 0.44 | AN114: =IF(C114<>"",IF(VLOOKUP(C114,Reference!$I$3:$J$188,2,FALSE)=" ",0,VLOOKUP(C114,Reference!$I$3:$J$188,2,FALSE)),"") -> 0.5 | AO114: =IF(C114<>"",IF(VLOOKUP(C114,Reference!$M$3:$Q$188,5,FALSE)=" ",0,VLOOKUP(C114,Reference!$M$3:$Q$188,5,FALSE)),"") -> 0
C115: Hexachlorocyclopentadiene | M115: < | T115: =IF(C115<>"",IF(VLOOKUP(C115,Reference!$A$3:$B$188,2,FALSE)="","N/A",VLOOKUP(C115,Reference!$A$3:$B$188,2,FALSE)),"") -> 1 | AN115: =IF(C115<>"",IF(VLOOKUP(C115,Reference!$I$3:$J$188,2,FALSE)=" ",0,VLOOKUP(C115,Reference!$I$3:$J$188,2,FALSE)),"") -> 5 | AO115: =IF(C115<>"",IF(VLOOKUP(C115,Reference!$M$3:$Q$188,5,FALSE)=" ",0,VLOOKUP(C115,Reference!$M$3:$Q$188,5,FALSE)),"") -> 0
C116: Hexachloroethane | M116: < | T116: =IF(C116<>"",IF(VLOOKUP(C116,Reference!$A$3:$B$188,2,FALSE)="","N/A",VLOOKUP(C116,Reference!$A$3:$B$188,2,FALSE)),"") -> 1.4 | AN116: =IF(C116<>"",IF(VLOOKUP(C116,Reference!$I$3:$J$188,2,FALSE)=" ",0,VLOOKUP(C116,Reference!$I$3:$J$188,2,FALSE)),"") -> 5 | AO116: =IF(C116<>"",IF(VLOOKUP(C116,Reference!$M$3:$Q$188,5,FALSE)=" ",0,VLOOKUP(C116,Reference!$M$3:$Q$188,5,FALSE)),"") -> 0
C117: Indeno(1,2,3-cd)Pyrene | M117: < | T117: =IF(C117<>"",IF(VLOOKUP(C117,Reference!$A$3:$B$188,2,FALSE)="","N/A",VLOOKUP(C117,Reference!$A$3:$B$188,2,FALSE)),"") -> 0.0038 | AN117: =IF(C117<>"",IF(VLOOKUP(C117,Reference!$I$3:$J$188,2,FALSE)=" ",0,VLOOKUP(C117,Reference!$I$3:$J$188,2,FALSE)),"") -> 2.5 | AO117: =IF(C117<>"",IF(VLOOKUP(C117,Reference!$M$3:$Q$188,5,FALSE)=" ",0,VLOOKUP(C117,Reference!$M$3:$Q$188,5,FALSE)),"") -> 0
C118: Isophorone | M118: < | T118: =IF(C118<>"",IF(VLOOKUP(C118,Reference!$A$3:$B$188,2,FALSE)="","N/A",VLOOKUP(C118,Reference!$A$3:$B$188,2,FALSE)),"") -> 35 | AN118: =IF(C118<>"",IF(VLOOKUP(C118,Reference!$I$3:$J$188,2,FALSE)=" ",0,VLOOKUP(C118,Reference!$I$3:$J$188,2,FALSE)),"") -> 5 | AO118: =IF(C118<>"",IF(VLOOKUP(C118,Reference!$M$3:$Q$188,5,FALSE)=" ",0,VLOOKUP(C118,Reference!$M$3:$Q$188,5,FALSE)),"") -> 0
C119: Naphthalene | M119: < | T119: =IF(C119<>"",IF(VLOOKUP(C119,Reference!$A$3:$B$188,2,FALSE)="","N/A",VLOOKUP(C119,Reference!$A$3:$B$188,2,FALSE)),"") -> 43 | AN119: =IF(C119<>"",IF(VLOOKUP(C119,Reference!$I$3:$J$188,2,FALSE)=" ",0,VLOOKUP(C119,Reference!$I$3:$J$188,2,FALSE)),"") -> 0.5 | AO119: =IF(C119<>"",IF(VLOOKUP(C119,Reference!$M$3:$Q$188,5,FALSE)=" ",0,VLOOKUP(C119,Reference!$M$3:$Q$188,5,FALSE)),"") -> 0
C120: Nitrobenzene | M120: < | T120: =IF(C120<>"",IF(VLOOKUP(C120,Reference!$A$3:$B$188,2,FALSE)="","N/A",VLOOKUP(C120,Reference!$A$3:$B$188,2,FALSE)),"") -> 17 | AN120: =IF(C120<>"",IF(VLOOKUP(C120,Reference!$I$3:$J$188,2,FALSE)=" ",0,VLOOKUP(C120,Reference!$I$3:$J$188,2,FALSE)),"") -> 5 | AO120: =IF(C120<>"",IF(VLOOKUP(C120,Reference!$M$3:$Q$188,5,FALSE)=" ",0,VLOOKUP(C120,Reference!$M$3:$Q$188,5,FALSE)),"") -> 0
C121: n-Nitrosodimethylamine | M121: < | T121: =IF(C121<>"",IF(VLOOKUP(C121,Reference!$A$3:$B$188,2,FALSE)="","N/A",VLOOKUP(C121,Reference!$A$3:$B$188,2,FALSE)),"") -> 0.00069 | AN121: =IF(C121<>"",IF(VLOOKUP(C121,Reference!$I$3:$J$188,2,FALSE)=" ",0,VLOOKUP(C121,Reference!$I$3:$J$188,2,FALSE)),"") -> 5 | AO121: =IF(C121<>"",IF(VLOOKUP(C121,Reference!$M$3:$Q$188,5,FALSE)=" ",0,VLOOKUP(C121,Reference!$M$3:$Q$188,5,FALSE)),"") -> 0
C122: n-Nitrosodi-n-Propylamine | M122: < | T122: =IF(C122<>"",IF(VLOOKUP(C122,Reference!$A$3:$B$188,2,FALSE)="","N/A",VLOOKUP(C122,Reference!$A$3:$B$188,2,FALSE)),"") -> 0.005 | AN122: =IF(C122<>"",IF(VLOOKUP(C122,Reference!$I$3:$J$188,2,FALSE)=" ",0,VLOOKUP(C122,Reference!$I$3:$J$188,2,FALSE)),"") -> 5 | AO122: =IF(C122<>"",IF(VLOOKUP(C122,Reference!$M$3:$Q$188,5,FALSE)=" ",0,VLOOKUP(C122,Reference!$M$3:$Q$188,5,FALSE)),"") -> 0
C123: n-Nitrosodiphenylamine | M123: < | T123: =IF(C123<>"",IF(VLOOKUP(C123,Reference!$A$3:$B$188,2,FALSE)="","N/A",VLOOKUP(C123,Reference!$A$3:$B$188,2,FALSE)),"") -> 3.3 | AN123: =IF(C123<>"",IF(VLOOKUP(C123,Reference!$I$3:$J$188,2,FALSE)=" ",0,VLOOKUP(C123,Reference!$I$3:$J$188,2,FALSE)),"") -> 5 | AO123: =IF(C123<>"",IF(VLOOKUP(C123,Reference!$M$3:$Q$188,5,FALSE)=" ",0,VLOOKUP(C123,Reference!$M$3:$Q$188,5,FALSE)),"") -> 0
C124: Phenanthrene | M124: < | T124: =IF(C124<>"",IF(VLOOKUP(C124,Reference!$A$3:$B$188,2,FALSE)="","N/A",VLOOKUP(C124,Reference!$A$3:$B$188,2,FALSE)),"") -> 1 | AN124: =IF(C124<>"",IF(VLOOKUP(C124,Reference!$I$3:$J$188,2,FALSE)=" ",0,VLOOKUP(C124,Reference!$I$3:$J$188,2,FALSE)),"") -> 2.5 | AO124: =IF(C124<>"",IF(VLOOKUP(C124,Reference!$M$3:$Q$188,5,FALSE)=" ",0,VLOOKUP(C124,Reference!$M$3:$Q$188,5,FALSE)),"") -> 0
C125: Pyrene | M125: < | T125: =IF(C125<>"",IF(VLOOKUP(C125,Reference!$A$3:$B$188,2,FALSE)="","N/A",VLOOKUP(C125,Reference!$A$3:$B$188,2,FALSE)),"") -> 830 | AN125: =IF(C125<>"",IF(VLOOKUP(C125,Reference!$I$3:$J$188,2,FALSE)=" ",0,VLOOKUP(C125,Reference!$I$3:$J$188,2,FALSE)),"") -> 2.5 | AO125: =IF(C125<>"",IF(VLOOKUP(C125,Reference!$M$3:$Q$188,5,FALSE)=" ",0,VLOOKUP(C125,Reference!$M$3:$Q$188,5,FALSE)),"") -> 0
C126: 1,2,4-Trichlorobenzene | M126: < | T126: =IF(C126<>"",IF(VLOOKUP(C126,Reference!$A$3:$B$188,2,FALSE)="","N/A",VLOOKUP(C126,Reference!$A$3:$B$188,2,FALSE)),"") -> 26 | AN126: =IF(C126<>"",IF(VLOOKUP(C126,Reference!$I$3:$J$188,2,FALSE)=" ",0,VLOOKUP(C126,Reference!$I$3:$J$188,2,FALSE)),"") -> 0.5 | AO126: =IF(C126<>"",IF(VLOOKUP(C126,Reference!$M$3:$Q$188,5,FALSE)=" ",0,VLOOKUP(C126,Reference!$M$3:$Q$188,5,FALSE)),"") -> 0
B127: Group 6 | C127: Aldrin | M127: < | T127: =IF(C127<>"",IF(VLOOKUP(C127,Reference!$A$3:$B$188,2,FALSE)="","N/A",VLOOKUP(C127,Reference!$A$3:$B$188,2,FALSE)),"") -> 4.9e-05 | AN127: =IF(C127<>"",IF(VLOOKUP(C127,Reference!$I$3:$J$188,2,FALSE)=" ",0,VLOOKUP(C127,Reference!$I$3:$J$188,2,FALSE)),"") -> 0.05 | AO127: =IF(C127<>"",IF(VLOOKUP(C127,Reference!$M$3:$Q$188,5,FALSE)=" ",0,VLOOKUP(C127,Reference!$M$3:$Q$188,5,FALSE)),"") -> 0
C128: alpha-BHC | M128: < | T128: =IF(C128<>"",IF(VLOOKUP(C128,Reference!$A$3:$B$188,2,FALSE)="","N/A",VLOOKUP(C128,Reference!$A$3:$B$188,2,FALSE)),"") -> 0.0026 | AN128: =IF(C128<>"",IF(VLOOKUP(C128,Reference!$I$3:$J$188,2,FALSE)=" ",0,VLOOKUP(C128,Reference!$I$3:$J$188,2,FALSE)),"") -> 0.05 | AO128: =IF(C128<>"",IF(VLOOKUP(C128,Reference!$M$3:$Q$188,5,FALSE)=" ",0,VLOOKUP(C128,Reference!$M$3:$Q$188,5,FALSE)),"") -> 0
C129: beta-BHC | M129: < | T129: =IF(C129<>"",IF(VLOOKUP(C129,Reference!$A$3:$B$188,2,FALSE)="","N/A",VLOOKUP(C129,Reference!$A$3:$B$188,2,FALSE)),"") -> 0.0091 | AN129: =IF(C129<>"",IF(VLOOKUP(C129,Reference!$I$3:$J$188,2,FALSE)=" ",0,VLOOKUP(C129,Reference!$I$3:$J$188,2,FALSE)),"") -> 0.05 | AO129: =IF(C129<>"",IF(VLOOKUP(C129,Reference!$M$3:$Q$188,5,FALSE)=" ",0,VLOOKUP(C129,Reference!$M$3:$Q$188,5,FALSE)),"") -> 0
C130: gamma-BHC | M130: < | T130: =IF(C130<>"",IF(VLOOKUP(C130,Reference!$A$3:$B$188,2,FALSE)="","N/A",VLOOKUP(C130,Reference!$A$3:$B$188,2,FALSE)),"") -> 0.098 | AN130: =IF(C130<>"",IF(VLOOKUP(C130,Reference!$I$3:$J$188,2,FALSE)=" ",0,VLOOKUP(C130,Reference!$I$3:$J$188,2,FALSE)),"") -> 0.05 | AO130: =IF(C130<>"",IF(VLOOKUP(C130,Reference!$M$3:$Q$188,5,FALSE)=" ",0,VLOOKUP(C130,Reference!$M$3:$Q$188,5,FALSE)),"") -> 0
C131: delta BHC | M131: < | T131: =IF(C131<>"",IF(VLOOKUP(C131,Reference!$A$3:$B$188,2,FALSE)="","N/A",VLOOKUP(C131,Reference!$A$3:$B$188,2,FALSE)),"") -> N/A | AN131: =IF(C131<>"",IF(VLOOKUP(C131,Reference!$I$3:$J$188,2,FALSE)=" ",0,VLOOKUP(C131,Reference!$I$3:$J$188,2,FALSE)),"") -> 0.05 | AO131: =IF(C131<>"",IF(VLOOKUP(C131,Reference!$M$3:$Q$188,5,FALSE)=" ",0,VLOOKUP(C131,Reference!$M$3:$Q$188,5,FALSE)),"") -> 0
C132: Chlordane | M132: < | T132: =IF(C132<>"",IF(VLOOKUP(C132,Reference!$A$3:$B$188,2,FALSE)="","N/A",VLOOKUP(C132,Reference!$A$3:$B$188,2,FALSE)),"") -> 0.0008 | AN132: =IF(C132<>"",IF(VLOOKUP(C132,Reference!$I$3:$J$188,2,FALSE)=" ",0,VLOOKUP(C132,Reference!$I$3:$J$188,2,FALSE)),"") -> 1 | AO132: =IF(C132<>"",IF(VLOOKUP(C132,Reference!$M$3:$Q$188,5,FALSE)=" ",0,VLOOKUP(C132,Reference!$M$3:$Q$188,5,FALSE)),"") -> 0
C133: 4,4-DDT | M133: < | T133: =IF(C133<>"",IF(VLOOKUP(C133,Reference!$A$3:$B$188,2,FALSE)="","N/A",VLOOKUP(C133,Reference!$A$3:$B$188,2,FALSE)),"") -> 0.00022 | AN133: =IF(C133<>"",IF(VLOOKUP(C133,Reference!$I$3:$J$188,2,FALSE)=" ",0,VLOOKUP(C133,Reference!$I$3:$J$188,2,FALSE)),"") -> 0.05 | AO133: =IF(C133<>"",IF(VLOOKUP(C133,Reference!$M$3:$Q$188,5,FALSE)=" ",0,VLOOKUP(C133,Reference!$M$3:$Q$188,5,FALSE)),"") -> 0
C134: 4,4-DDE | M134: < | T134: =IF(C134<>"",IF(VLOOKUP(C134,Reference!$A$3:$B$188,2,FALSE)="","N/A",VLOOKUP(C134,Reference!$A$3:$B$188,2,FALSE)),"") -> 0.00022 | AN134: =IF(C134<>"",IF(VLOOKUP(C134,Reference!$I$3:$J$188,2,FALSE)=" ",0,VLOOKUP(C134,Reference!$I$3:$J$188,2,FALSE)),"") -> 0.05 | AO134: =IF(C134<>"",IF(VLOOKUP(C134,Reference!$M$3:$Q$188,5,FALSE)=" ",0,VLOOKUP(C134,Reference!$M$3:$Q$188,5,FALSE)),"") -> 0
C135: 4,4-DDD | M135: < | T135: =IF(C135<>"",IF(VLOOKUP(C135,Reference!$A$3:$B$188,2,FALSE)="","N/A",VLOOKUP(C135,Reference!$A$3:$B$188,2,FALSE)),"") -> 0.00031 | AN135: =IF(C135<>"",IF(VLOOKUP(C135,Reference!$I$3:$J$188,2,FALSE)=" ",0,VLOOKUP(C135,Reference!$I$3:$J$188,2,FALSE)),"") -> 0.05 | AO135: =IF(C135<>"",IF(VLOOKUP(C135,Reference!$M$3:$Q$188,5,FALSE)=" ",0,VLOOKUP(C135,Reference!$M$3:$Q$188,5,FALSE)),"") -> 0
C136: Dieldrin | M136: < | T136: =IF(C136<>"",IF(VLOOKUP(C136,Reference!$A$3:$B$188,2,FALSE)="","N/A",VLOOKUP(C136,Reference!$A$3:$B$188,2,FALSE)),"") -> 5.2e-05 | AN136: =IF(C136<>"",IF(VLOOKUP(C136,Reference!$I$3:$J$188,2,FALSE)=" ",0,VLOOKUP(C136,Reference!$I$3:$J$188,2,FALSE)),"") -> 0.05 | AO136: =IF(C136<>"",IF(VLOOKUP(C136,Reference!$M$3:$Q$188,5,FALSE)=" ",0,VLOOKUP(C136,Reference!$M$3:$Q$188,5,FALSE)),"") -> 0
C137: alpha-Endosulfan | M137: < | T137: =IF(C137<>"",IF(VLOOKUP(C137,Reference!$A$3:$B$188,2,FALSE)="","N/A",VLOOKUP(C137,Reference!$A$3:$B$188,2,FALSE)),"") -> 0.056 | AN137: =IF(C137<>"",IF(VLOOKUP(C137,Reference!$I$3:$J$188,2,FALSE)=" ",0,VLOOKUP(C137,Reference!$I$3:$J$188,2,FALSE)),"") -> 0.05 | AO137: =IF(C137<>"",IF(VLOOKUP(C137,Reference!$M$3:$Q$188,5,FALSE)=" ",0,VLOOKUP(C137,Reference!$M$3:$Q$188,5,FALSE)),"") -> 0
C138: beta-Endosulfan | M138: < | T138: =IF(C138<>"",IF(VLOOKUP(C138,Reference!$A$3:$B$188,2,FALSE)="","N/A",VLOOKUP(C138,Reference!$A$3:$B$188,2,FALSE)),"") -> 0.056 | AN138: =IF(C138<>"",IF(VLOOKUP(C138,Reference!$I$3:$J$188,2,FALSE)=" ",0,VLOOKUP(C138,Reference!$I$3:$J$188,2,FALSE)),"") -> 0.05 | AO138: =IF(C138<>"",IF(VLOOKUP(C138,Reference!$M$3:$Q$188,5,FALSE)=" ",0,VLOOKUP(C138,Reference!$M$3:$Q$188,5,FALSE)),"") -> 0
C139: Endosulfan Sulfate | M139: < | T139: =IF(C139<>"",IF(VLOOKUP(C139,Reference!$A$3:$B$188,2,FALSE)="","N/A",VLOOKUP(C139,Reference!$A$3:$B$188,2,FALSE)),"") -> N/A | AN139: =IF(C139<>"",IF(VLOOKUP(C139,Reference!$I$3:$J$188,2,FALSE)=" ",0,VLOOKUP(C139,Reference!$I$3:$J$188,2,FALSE)),"") -> 0.05 | AO139: =IF(C139<>"",IF(VLOOKUP(C139,Reference!$M$3:$Q$188,5,FALSE)=" ",0,VLOOKUP(C139,Reference!$M$3:$Q$188,5,FALSE)),"") -> 0
C140: Endrin | M140: < | T140: =IF(C140<>"",IF(VLOOKUP(C140,Reference!$A$3:$B$188,2,FALSE)="","N/A",VLOOKUP(C140,Reference!$A$3:$B$188,2,FALSE)),"") -> 0.036 | AN140: =IF(C140<>"",IF(VLOOKUP(C140,Reference!$I$3:$J$188,2,FALSE)=" ",0,VLOOKUP(C140,Reference!$I$3:$J$188,2,FALSE)),"") -> 0.05 | AO140: =IF(C140<>"",IF(VLOOKUP(C140,Reference!$M$3:$Q$188,5,FALSE)=" ",0,VLOOKUP(C140,Reference!$M$3:$Q$188,5,FALSE)),"") -> 0
C141: Endrin Aldehyde | M141: < | T141: =IF(C141<>"",IF(VLOOKUP(C141,Reference!$A$3:$B$188,2,FALSE)="","N/A",VLOOKUP(C141,Reference!$A$3:$B$188,2,FALSE)),"") -> 0.29 | AN141: =IF(C141<>"",IF(VLOOKUP(C141,Reference!$I$3:$J$188,2,FALSE)=" ",0,VLOOKUP(C141,Reference!$I$3:$J$188,2,FALSE)),"") -> 0.05 | AO141: =IF(C141<>"",IF(VLOOKUP(C141,Reference!$M$3:$Q$188,5,FALSE)=" ",0,VLOOKUP(C141,Reference!$M$3:$Q$188,5,FALSE)),"") -> 0
C142: Heptachlor | M142: < | T142: =IF(C142<>"",IF(VLOOKUP(C142,Reference!$A$3:$B$188,2,FALSE)="","N/A",VLOOKUP(C142,Reference!$A$3:$B$188,2,FALSE)),"") -> 7.9e-05 | AN142: =IF(C142<>"",IF(VLOOKUP(C142,Reference!$I$3:$J$188,2,FALSE)=" ",0,VLOOKUP(C142,Reference!$I$3:$J$188,2,FALSE)),"") -> 0.05 | AO142: =IF(C142<>"",IF(VLOOKUP(C142,Reference!$M$3:$Q$188,5,FALSE)=" ",0,VLOOKUP(C142,Reference!$M$3:$Q$188,5,FALSE)),"") -> 0
C143: Heptachlor Epoxide | M143: < | T143: =IF(C143<>"",IF(VLOOKUP(C143,Reference!$A$3:$B$188,2,FALSE)="","N/A",VLOOKUP(C143,Reference!$A$3:$B$188,2,FALSE)),"") -> 3.9e-05 | AN143: =IF(C143<>"",IF(VLOOKUP(C143,Reference!$I$3:$J$188,2,FALSE)=" ",0,VLOOKUP(C143,Reference!$I$3:$J$188,2,FALSE)),"") -> 0.05 | AO143: =IF(C143<>"",IF(VLOOKUP(C143,Reference!$M$3:$Q$188,5,FALSE)=" ",0,VLOOKUP(C143,Reference!$M$3:$Q$188,5,FALSE)),"") -> 0
C144: Toxaphene | M144: < | T144: =IF(C144<>"",IF(VLOOKUP(C144,Reference!$A$3:$B$188,2,FALSE)="","N/A",VLOOKUP(C144,Reference!$A$3:$B$188,2,FALSE)),"") -> 0.0002 | AN144: =IF(C144<>"",IF(VLOOKUP(C144,Reference!$I$3:$J$188,2,FALSE)=" ",0,VLOOKUP(C144,Reference!$I$3:$J$188,2,FALSE)),"") -> 0.5 | AO144: =IF(C144<>"",IF(VLOOKUP(C144,Reference!$M$3:$Q$188,5,FALSE)=" ",0,VLOOKUP(C144,Reference!$M$3:$Q$188,5,FALSE)),"") -> 0
C145: 2,3,7,8-TCDD | M145: < | T145: =IF(C145<>"",IF(VLOOKUP(C145,Reference!$A$3:$B$188,2,FALSE)="","N/A",VLOOKUP(C145,Reference!$A$3:$B$188,2,FALSE)),"") -> 5e-09 | AN145: =IF(C145<>"",IF(VLOOKUP(C145,Reference!$I$3:$J$188,2,FALSE)=" ",0,VLOOKUP(C145,Reference!$I$3:$J$188,2,FALSE)),"") -> 5e-06 | AO145: =IF(C145<>"",IF(VLOOKUP(C145,Reference!$M$3:$Q$188,5,FALSE)=" ",0,VLOOKUP(C145,Reference!$M$3:$Q$188,5,FALSE)),"") -> 0
B146: Group 7 | C146: Gross Alpha (pCi/L) | M146: < | T146: =IF(C146<>"",IF(VLOOKUP(C146,Reference!$A$3:$B$188,2,FALSE)="","N/A",VLOOKUP(C146,Reference!$A$3:$B$188,2,FALSE)),"") -> N/A | AN146: =IF(C146<>"",IF(VLOOKUP(C146,Reference!$I$3:$J$188,2,FALSE)=" ",0,VLOOKUP(C146,Reference!$I$3:$J$188,2,FALSE)),"") -> 3 | AO146: =IF(C146<>"",IF(VLOOKUP(C146,Reference!$M$3:$Q$188,5,FALSE)=" ",0,VLOOKUP(C146,Reference!$M$3:$Q$188,5,FALSE)),"") -> 0
C147: Total Beta (pCi/L) | M147: < | T147: =IF(C147<>"",IF(VLOOKUP(C147,Reference!$A$3:$B$188,2,FALSE)="","N/A",VLOOKUP(C147,Reference!$A$3:$B$188,2,FALSE)),"") -> N/A | X147: =IF(AND(C147<>"",N147<>"",$J$8<>"",$Z$7<>""),IF(T147<>"N/A",IF(AND(N147<=VALUE(AN147),M147="<"),"No (Value < QL)",IF($AP$9="No",IF(N147>=(0.5*T147),IF(AND(M147="<",N147=(0.5*T147)),"No","Yes"),"No"),IF(N147>=T147,IF(AND(M147="<",N147=T147),"No","Yes"),"No"))),"No"),"") ->  | AN147: =IF(C147<>"",IF(VLOOKUP(C147,Reference!$I$3:$J$188,2,FALSE)=" ",0,VLOOKUP(C147,Reference!$I$3:$J$188,2,FALSE)),"") -> 4 | AO147: =IF(C147<>"",IF(VLOOKUP(C147,Reference!$M$3:$Q$188,5,FALSE)=" ",0,VLOOKUP(C147,Reference!$M$3:$Q$188,5,FALSE)),"") -> 0 | AP147: =IF(AND(X147="Yes",AC147<>""),IF((N147/AC147)>=0.5,"Establish Limits",IF(AND(AO147="Y",(N147/AC147)>0.1),"Monitor",IF(AND(AO147<>"Y",(N147/AC147)>0.25),"Monitor","No Limits/Monitoring"))),"") -> 
C148: Radium 226/228 (pCi/L) | M148: < | T148: =IF(C148<>"",IF(VLOOKUP(C148,Reference!$A$3:$B$188,2,FALSE)="","N/A",VLOOKUP(C148,Reference!$A$3:$B$188,2,FALSE)),"") -> N/A | AN148: =IF(C148<>"",IF(VLOOKUP(C148,Reference!$I$3:$J$188,2,FALSE)=" ",0,VLOOKUP(C148,Reference!$I$3:$J$188,2,FALSE)),"") -> 1 | AO148: =IF(C148<>"",IF(VLOOKUP(C148,Reference!$M$3:$Q$188,5,FALSE)=" ",0,VLOOKUP(C148,Reference!$M$3:$Q$188,5,FALSE)),"") -> 0
C149: Total Strontium | M149: < | T149: =IF(C149<>"",IF(VLOOKUP(C149,Reference!$A$3:$B$188,2,FALSE)="","N/A",VLOOKUP(C149,Reference!$A$3:$B$188,2,FALSE)),"") -> 4000 | AN149: =IF(C149<>"",IF(VLOOKUP(C149,Reference!$I$3:$J$188,2,FALSE)=" ",0,VLOOKUP(C149,Reference!$I$3:$J$188,2,FALSE)),"") -> 10 | AO149: =IF(C149<>"",IF(VLOOKUP(C149,Reference!$M$3:$Q$188,5,FALSE)=" ",0,VLOOKUP(C149,Reference!$M$3:$Q$188,5,FALSE)),"") -> Y
C150: Total Uranium | M150: < | T150: =IF(C150<>"",IF(VLOOKUP(C150,Reference!$A$3:$B$188,2,FALSE)="","N/A",VLOOKUP(C150,Reference!$A$3:$B$188,2,FALSE)),"") -> N/A | AG150: =IF($N150<>"",IF(AND(X150="Yes",AC150<>""),IF(($N150/$AC150)>=0.5,"Establish Limits",IF(AND($AO150="Y",($N150/$AC150)>0.1),"Monitor",IF(AND($AO150<>"Y",($N150/$AC150)>0.25),"Monitor","No Limits/Monitoring"))),""),"") ->  | AN150: =IF(C150<>"",IF(VLOOKUP(C150,Reference!$I$3:$J$188,2,FALSE)=" ",0,VLOOKUP(C150,Reference!$I$3:$J$188,2,FALSE)),"") -> 2 | AO150: =IF(C150<>"",IF(VLOOKUP(C150,Reference!$M$3:$Q$188,5,FALSE)=" ",0,VLOOKUP(C150,Reference!$M$3:$Q$188,5,FALSE)),"") -> Y
T151: =IF(C151<>"",IF(VLOOKUP(C151,Reference!$A$3:$B$188,2,FALSE)="","N/A",VLOOKUP(C151,Reference!$A$3:$B$188,2,FALSE)),"") ->  | AN151: =IF(C151<>"",IF(VLOOKUP(C151,Reference!$I$3:$J$188,2,FALSE)=" ",0,VLOOKUP(C151,Reference!$I$3:$J$188,2,FALSE)),"") ->  | AO151: =IF(C151<>"",IF(VLOOKUP(C151,Reference!$M$3:$Q$188,5,FALSE)=" ",0,VLOOKUP(C151,Reference!$M$3:$Q$188,5,FALSE)),"") -> 
T152: =IF(C152<>"",IF(VLOOKUP(C152,Reference!$A$3:$B$188,2,FALSE)="","N/A",VLOOKUP(C152,Reference!$A$3:$B$188,2,FALSE)),"") ->  | AN152: =IF(C152<>"",IF(VLOOKUP(C152,Reference!$I$3:$J$188,2,FALSE)=" ",0,VLOOKUP(C152,Reference!$I$3:$J$188,2,FALSE)),"") ->  | AO152: =IF(C152<>"",IF(VLOOKUP(C152,Reference!$M$3:$Q$188,5,FALSE)=" ",0,VLOOKUP(C152,Reference!$M$3:$Q$188,5,FALSE)),"") -> 
T153: =IF(C153<>"",IF(VLOOKUP(C153,Reference!$A$3:$B$188,2,FALSE)="","N/A",VLOOKUP(C153,Reference!$A$3:$B$188,2,FALSE)),"") ->  | AN153: =IF(C153<>"",IF(VLOOKUP(C153,Reference!$I$3:$J$188,2,FALSE)=" ",0,VLOOKUP(C153,Reference!$I$3:$J$188,2,FALSE)),"") ->  | AO153: =IF(C153<>"",IF(VLOOKUP(C153,Reference!$M$3:$Q$188,5,FALSE)=" ",0,VLOOKUP(C153,Reference!$M$3:$Q$188,5,FALSE)),"") -> 
T154: =IF(C154<>"",IF(VLOOKUP(C154,Reference!$A$3:$B$188,2,FALSE)="","N/A",VLOOKUP(C154,Reference!$A$3:$B$188,2,FALSE)),"") ->  | AN154: =IF(C154<>"",IF(VLOOKUP(C154,Reference!$I$3:$J$188,2,FALSE)=" ",0,VLOOKUP(C154,Reference!$I$3:$J$188,2,FALSE)),"") ->  | AO154: =IF(C154<>"",IF(VLOOKUP(C154,Reference!$M$3:$Q$188,5,FALSE)=" ",0,VLOOKUP(C154,Reference!$M$3:$Q$188,5,FALSE)),"") -> 
T155: =IF(C155<>"",IF(VLOOKUP(C155,Reference!$A$3:$B$188,2,FALSE)="","N/A",VLOOKUP(C155,Reference!$A$3:$B$188,2,FALSE)),"") ->  | AN155: =IF(C155<>"",IF(VLOOKUP(C155,Reference!$I$3:$J$188,2,FALSE)=" ",0,VLOOKUP(C155,Reference!$I$3:$J$188,2,FALSE)),"") ->  | AO155: =IF(C155<>"",IF(VLOOKUP(C155,Reference!$M$3:$Q$188,5,FALSE)=" ",0,VLOOKUP(C155,Reference!$M$3:$Q$188,5,FALSE)),"") -> 
T156: =IF(C156<>"",IF(VLOOKUP(C156,Reference!$A$3:$B$188,2,FALSE)="","N/A",VLOOKUP(C156,Reference!$A$3:$B$188,2,FALSE)),"") ->  | AN156: =IF(C156<>"",IF(VLOOKUP(C156,Reference!$I$3:$J$188,2,FALSE)=" ",0,VLOOKUP(C156,Reference!$I$3:$J$188,2,FALSE)),"") ->  | AO156: =IF(C156<>"",IF(VLOOKUP(C156,Reference!$M$3:$Q$188,5,FALSE)=" ",0,VLOOKUP(C156,Reference!$M$3:$Q$188,5,FALSE)),"") -> 
T157: =IF(C157<>"",IF(VLOOKUP(C157,Reference!$A$3:$B$188,2,FALSE)="","N/A",VLOOKUP(C157,Reference!$A$3:$B$188,2,FALSE)),"") ->  | AN157: =IF(C157<>"",IF(VLOOKUP(C157,Reference!$I$3:$J$188,2,FALSE)=" ",0,VLOOKUP(C157,Reference!$I$3:$J$188,2,FALSE)),"") ->  | AO157: =IF(C157<>"",IF(VLOOKUP(C157,Reference!$M$3:$Q$188,5,FALSE)=" ",0,VLOOKUP(C157,Reference!$M$3:$Q$188,5,FALSE)),"") -> 
T158: =IF(C158<>"",IF(VLOOKUP(C158,Reference!$A$3:$B$188,2,FALSE)="","N/A",VLOOKUP(C158,Reference!$A$3:$B$188,2,FALSE)),"") ->  | AN158: =IF(C158<>"",IF(VLOOKUP(C158,Reference!$I$3:$J$188,2,FALSE)=" ",0,VLOOKUP(C158,Reference!$I$3:$J$188,2,FALSE)),"") ->  | AO158: =IF(C158<>"",IF(VLOOKUP(C158,Reference!$M$3:$Q$188,5,FALSE)=" ",0,VLOOKUP(C158,Reference!$M$3:$Q$188,5,FALSE)),"") -> 
T159: =IF(C159<>"",IF(VLOOKUP(C159,Reference!$A$3:$B$188,2,FALSE)="","N/A",VLOOKUP(C159,Reference!$A$3:$B$188,2,FALSE)),"") ->  | AN159: =IF(C159<>"",IF(VLOOKUP(C159,Reference!$I$3:$J$188,2,FALSE)=" ",0,VLOOKUP(C159,Reference!$I$3:$J$188,2,FALSE)),"") ->  | AO159: =IF(C159<>"",IF(VLOOKUP(C159,Reference!$M$3:$Q$188,5,FALSE)=" ",0,VLOOKUP(C159,Reference!$M$3:$Q$188,5,FALSE)),"") -> 
T160: =IF(C160<>"",IF(VLOOKUP(C160,Reference!$A$3:$B$188,2,FALSE)="","N/A",VLOOKUP(C160,Reference!$A$3:$B$188,2,FALSE)),"") ->  | AN160: =IF(C160<>"",IF(VLOOKUP(C160,Reference!$I$3:$J$188,2,FALSE)=" ",0,VLOOKUP(C160,Reference!$I$3:$J$188,2,FALSE)),"") ->  | AO160: =IF(C160<>"",IF(VLOOKUP(C160,Reference!$M$3:$Q$188,5,FALSE)=" ",0,VLOOKUP(C160,Reference!$M$3:$Q$188,5,FALSE)),"") -> 
T161: =IF(C161<>"",IF(VLOOKUP(C161,Reference!$A$3:$B$188,2,FALSE)="","N/A",VLOOKUP(C161,Reference!$A$3:$B$188,2,FALSE)),"") ->  | AN161: =IF(C161<>"",IF(VLOOKUP(C161,Reference!$I$3:$J$188,2,FALSE)=" ",0,VLOOKUP(C161,Reference!$I$3:$J$188,2,FALSE)),"") ->  | AO161: =IF(C161<>"",IF(VLOOKUP(C161,Reference!$M$3:$Q$188,5,FALSE)=" ",0,VLOOKUP(C161,Reference!$M$3:$Q$188,5,FALSE)),"") -> 
T162: =IF(C162<>"",IF(VLOOKUP(C162,Reference!$A$3:$B$188,2,FALSE)="","N/A",VLOOKUP(C162,Reference!$A$3:$B$188,2,FALSE)),"") ->  | AN162: =IF(C162<>"",IF(VLOOKUP(C162,Reference!$I$3:$J$188,2,FALSE)=" ",0,VLOOKUP(C162,Reference!$I$3:$J$188,2,FALSE)),"") ->  | AO162: =IF(C162<>"",IF(VLOOKUP(C162,Reference!$M$3:$Q$188,5,FALSE)=" ",0,VLOOKUP(C162,Reference!$M$3:$Q$188,5,FALSE)),"") -> 

Sheet Industrial
AN1: <
C2: TOXICS SCREENING ANALYSIS
C3: WATER QUALITY POLLUTANTS OF CONCERN
C4: VERSION 2.7
C6: Facility: | T6: NPDES Permit No.: | AH6: Outfall:
C7: Analysis Hardness (mg/L): | J7: 100 | T7: Discharge Flow (MGD): | AE7: Analysis pH (SU): | AJ7: 7 | AN7: Stream Flow (MGD) | AP7: =IF(J8<>"",IF(J8<>0,J8*0.64631,0.000001),"") -> 
C8: Stream Flow, Q7-10 (cfs): | AN8: Stream:Discharge | AP8: =IF(AND(AP7<>"",Z7<>""),AP7/Z7,"") -> 
AN9: Assimilative Capacity? | AP9: =IF(AP7=0,"No",IF(AP8<3,"No","Yes")) -> Yes
C10: Parameter | M10: Maximum Concentration in Application or DMRs (µg/L) | T10: Most Stringent Criterion (µg/L) | X10: Candidate for PENTOXSD Modeling? | AC10: Most Stringent WQBEL (µg/L) | AG10: Screening Recommendation
AN11: QL | AO11: Conservative? | AP11: BCS1M Screen 1 | AQ11: Screening Low | AR11: Screening High | AS11: BCS1M Screen 2 | AT11: Final Rec.
B12: Group 1 | C12: Total Dissolved Solids | T12: =IF(C12<>"",IF(VLOOKUP(C12,Reference!$A$3:$B$188,2,FALSE)="","N/A",VLOOKUP(C12,Reference!$A$3:$B$188,2,FALSE)),"") -> 500000 | X12: =IF(AND(C12<>"",N12<>"",$J$8<>"",$Z$7<>""),IF(T12<>"N/A",IF(AND(N12<=VALUE(AN12),M12="<"),"No (Value < QL)",IF($AP$9="No",IF(N12>=(0.5*T12),IF(AND(M12="<",N12=(0.5*T12)),"No","Yes"),"No"),IF(N12>=T12,IF(AND(M12="<",N12=T12),"No","Yes"),"No"))),"No"),"") ->  | AG12: =IF($N12<>"",AT12,"") ->  | AN12: =IF(C12<>"",IF(VLOOKUP(C12,Reference!$I$3:$J$188,2,FALSE)=" ",0,VLOOKUP(C12,Reference!$I$3:$J$188,2,FALSE)),"") -> 2000 | AO12: =IF(C12<>"",IF(VLOOKUP(C12,Reference!$M$3:$Q$188,5,FALSE)=" ",0,VLOOKUP(C12,Reference!$M$3:$Q$188,5,FALSE)),"") -> Y | AP12: =IF(AND(X12="Yes",AC12<>""),IF((N12/AC12)>=0.5,"Establish Limits",IF(AND(AO12="Y",(N12/AC12)>0.1),"Monitor",IF(AND(AO12<>"Y",(N12/AC12)>0.25),"Monitor","No Limits/Monitoring"))),"") ->  | AQ12: 1000000 | AR12: 5000000 | AS12: =IF(AND(N12<>"",$Z$7<>""),IF(OR(AND($Z$7>0.1,N12>AQ12),AND($Z$7<=0.1,N12>AR12),(($Z$7*(N12/1000)*8.34)>20000)),"Monitor",""),"") ->  | AT12: =IF(OR(AP12="Establish Limits",AP12="Monitor"),AP12,IF(AND(AP12="No Limits/Monitoring",AS12="Monitor"),AS12,IF(AND(AP12="",AS12=""),"",IF(AND(AP12="",AS12="Monitor"),"Monitor",IF(AND(AP12="No Limits/Monitoring",AS12=""),"No Limits/Monitoring",""))))) -> 
C13: Chloride | T13: =IF(C13<>"",IF(VLOOKUP(C13,Reference!$A$3:$B$188,2,FALSE)="","N/A",VLOOKUP(C13,Reference!$A$3:$B$188,2,FALSE)),"") -> 250000 | X13: =IF(AND(C13<>"",N13<>"",$J$8<>"",$Z$7<>""),IF(T13<>"N/A",IF(AND(N13<=VALUE(AN13),M13="<"),"No (Value < QL)",IF($AP$9="No",IF(N13>=(0.5*T13),IF(AND(M13="<",N13=(0.5*T13)),"No","Yes"),"No"),IF(N13>=T13,IF(AND(M13="<",N13=T13),"No","Yes"),"No"))),"No"),"") ->  | AG13: =AT13 ->  | AN13: =IF(C13<>"",IF(VLOOKUP(C13,Reference!$I$3:$J$188,2,FALSE)=" ",0,VLOOKUP(C13,Reference!$I$3:$J$188,2,FALSE)),"") -> 500 | AO13: =IF(C13<>"",IF(VLOOKUP(C13,Reference!$M$3:$Q$188,5,FALSE)=" ",0,VLOOKUP(C13,Reference!$M$3:$Q$188,5,FALSE)),"") -> Y | AP13: =IF(AND(X13="Yes",AC13<>""),IF((N13/AC13)>=0.5,"Establish Limits",IF(AND(AO13="Y",(N13/AC13)>0.1),"Monitor",IF(AND(AO13<>"Y",(N13/AC13)>0.25),"Monitor","No Limits/Monitoring"))),"") ->  | AT13: =IF(OR(AP13="Establish Limits",AP13="Monitor"),AP13,IF(AND(AP13="",OR($AT$12="No Limits/Monitoring",$AT$12="")),"",IF(AND(OR(AP13="",AP13="No Limits/Monitoring"),OR($AT$12="Monitor",$AT$12="Establish Limits")),"Monitor",IF(AND(AP13="No Limits/Monitoring",$AT$12=""),AP13)))) -> 
C14: Bromide | T14: =IF(C14<>"",IF(VLOOKUP(C14,Reference!$A$3:$B$188,2,FALSE)="","N/A",VLOOKUP(C14,Reference!$A$3:$B$188,2,FALSE)),"") -> N/A | AG14: =AT14 ->  | AN14: =IF(C14<>"",IF(VLOOKUP(C14,Reference!$I$3:$J$188,2,FALSE)=" ",0,VLOOKUP(C14,Reference!$I$3:$J$188,2,FALSE)),"") -> 200 | AO14: =IF(C14<>"",IF(VLOOKUP(C14,Reference!$M$3:$Q$188,5,FALSE)=" ",0,VLOOKUP(C14,Reference!$M$3:$Q$188,5,FALSE)),"") -> Y | AQ14: 1000 | AR14: 10000 | AS14: =IF(AND(N14<>"",$Z$7<>""),IF(OR(AND($Z$7>0.1,N14>AQ14),AND($Z$7<=0.1,N14>AR14)),"Monitor",""),"") ->  | AT14: =IF(OR(AP14="Establish Limits",AP14="Monitor"),AP14,IF(AND(AP14="No Limits/Monitoring",AS14="Monitor"),AS14,IF(AND(AP14="",AS14="",$AT$12=""),"",IF(AND(AP14="",AS14="Monitor"),"Monitor",IF(AND(AP14="",AS14="",OR($AT$12="Monitor",$AT$12="Establish Limits")),"Monitor",""))))) -> 
C15: Sulfate | T15: =IF(C15<>"",IF(VLOOKUP(C15,Reference!$A$3:$B$188,2,FALSE)="","N/A",VLOOKUP(C15,Reference!$A$3:$B$188,2,FALSE)),"") -> 250000 | AG15: =AT15 ->  | AN15: =IF(C15<>"",IF(VLOOKUP(C15,Reference!$I$3:$J$188,2,FALSE)=" ",0,VLOOKUP(C15,Reference!$I$3:$J$188,2,FALSE)),"") -> 1000 | AO15: =IF(C15<>"",IF(VLOOKUP(C15,Reference!$M$3:$Q$188,5,FALSE)=" ",0,VLOOKUP(C15,Reference!$M$3:$Q$188,5,FALSE)),"") -> Y | AT15: =IF(OR(AP15="Establish Limits",AP15="Monitor"),AP15,IF(AND(AP15="",OR($AT$12="No Limits/Monitoring",$AT$12="")),"",IF(AND(OR(AP15="",AP15="No Limits/Monitoring"),OR($AT$12="Monitor",$AT$12="Establish Limits")),"Monitor",IF(AND(AP15="No Limits/Monitoring",$AT$12=""),AP15)))) -> 
C16: Fluoride | T16: =IF(C16<>"",IF(VLOOKUP(C16,Reference!$A$3:$B$188,2,FALSE)="","N/A",VLOOKUP(C16,Reference!$A$3:$B$188,2,FALSE)),"") -> 2000 | AG16: =IF($N16<>"",IF(AND(X16="Yes",AC16<>""),IF(($N16/$AC16)>=0.5,"Establish Limits",IF(AND($AO16="Y",($N16/$AC16)>=0.1),"Monitor",IF(AND($AO16<>"Y",($N16/$AC16)>=0.25),"Monitor","No Limits/Monitoring"))),""),"") ->  | AN16: =IF(C16<>"",IF(VLOOKUP(C16,Reference!$I$3:$J$188,2,FALSE)=" ",0,VLOOKUP(C16,Reference!$I$3:$J$188,2,FALSE)),"") -> 200 | AO16: =IF(C16<>"",IF(VLOOKUP(C16,Reference!$M$3:$Q$188,5,FALSE)=" ",0,VLOOKUP(C16,Reference!$M$3:$Q$188,5,FALSE)),"") -> Y
B17: Group 2 | C17: Total Aluminum | T17: =IF(C17<>"",IF(VLOOKUP(C17,Reference!$A$3:$B$188,2,FALSE)="","N/A",VLOOKUP(C17,Reference!$A$3:$B$188,2,FALSE)),"") -> 750 | AG17: =IF($N17<>"",IF(AND(X17="Yes",AC17<>""),IF(($N17/$AC17)>=0.5,"Establish Limits",IF(AND($AO17="Y",($N17/$AC17)>0.1),"Monitor",IF(AND($AO17<>"Y",($N17/$AC17)>0.25),"Monitor","No Limits/Monitoring"))),""),"") ->  | AN17: =IF(C17<>"",IF(VLOOKUP(C17,Reference!$I$3:$J$188,2,FALSE)=" ",0,VLOOKUP(C17,Reference!$I$3:$J$188,2,FALSE)),"") -> 10 | AO17: =IF(C17<>"",IF(VLOOKUP(C17,Reference!$M$3:$Q$188,5,FALSE)=" ",0,VLOOKUP(C17,Reference!$M$3:$Q$188,5,FALSE)),"") -> Y
C18: Total Antimony | T18: =IF(C18<>"",IF(VLOOKUP(C18,Reference!$A$3:$B$188,2,FALSE)="","N/A",VLOOKUP(C18,Reference!$A$3:$B$188,2,FALSE)),"") -> 5.6 | AG18: =IF($N18<>"",IF(AND(X18="Yes",AC18<>""),IF(($N18/$AC18)>=0.5,"Establish Limits",IF(AND($AO18="Y",($N18/$AC18)>0.1),"Monitor",IF(AND($AO18<>"Y",($N18/$AC18)>0.25),"Monitor","No Limits/Monitoring"))),""),"") ->  | AN18: =IF(C18<>"",IF(VLOOKUP(C18,Reference!$I$3:$J$188,2,FALSE)=" ",0,VLOOKUP(C18,Reference!$I$3:$J$188,2,FALSE)),"") -> 2 | AO18: =IF(C18<>"",IF(VLOOKUP(C18,Reference!$M$3:$Q$188,5,FALSE)=" ",0,VLOOKUP(C18,Reference!$M$3:$Q$188,5,FALSE)),"") -> Y
C19: Total Arsenic | T19: =IF(C19<>"",IF(VLOOKUP(C19,Reference!$A$3:$B$188,2,FALSE)="","N/A",VLOOKUP(C19,Reference!$A$3:$B$188,2,FALSE)),"") -> 10 | AN19: =IF(C19<>"",IF(VLOOKUP(C19,Reference!$I$3:$J$188,2,FALSE)=" ",0,VLOOKUP(C19,Reference!$I$3:$J$188,2,FALSE)),"") -> 3 | AO19: =IF(C19<>"",IF(VLOOKUP(C19,Reference!$M$3:$Q$188,5,FALSE)=" ",0,VLOOKUP(C19,Reference!$M$3:$Q$188,5,FALSE)),"") -> Y
C20: Total Barium | T20: =IF(C20<>"",IF(VLOOKUP(C20,Reference!$A$3:$B$188,2,FALSE)="","N/A",VLOOKUP(C20,Reference!$A$3:$B$188,2,FALSE)),"") -> 2400 | AN20: =IF(C20<>"",IF(VLOOKUP(C20,Reference!$I$3:$J$188,2,FALSE)=" ",0,VLOOKUP(C20,Reference!$I$3:$J$188,2,FALSE)),"") -> 2 | AO20: =IF(C20<>"",IF(VLOOKUP(C20,Reference!$M$3:$Q$188,5,FALSE)=" ",0,VLOOKUP(C20,Reference!$M$3:$Q$188,5,FALSE)),"") -> Y
C21: Total Beryllium | T21: =IF(C21<>"",IF(VLOOKUP(C21,Reference!$A$3:$B$188,2,FALSE)="","N/A",VLOOKUP(C21,Reference!$A$3:$B$188,2,FALSE)),"") -> N/A | X21: =IF(AND(C21<>"",N21<>"",$J$8<>"",$Z$7<>""),IF(T21<>"N/A",IF(AND(N21<=VALUE(AN21),M21="<"),"No (Value < QL)",IF($AP$9="No",IF(N21>=(0.5*T21),IF(AND(M21="<",N21=(0.5*T21)),"No","Yes"),"No"),IF(N21>=T21,IF(AND(M21="<",N21=T21),"No","Yes"),"No"))),"No"),"") ->  | AN21: =IF(C21<>"",IF(VLOOKUP(C21,Reference!$I$3:$J$188,2,FALSE)=" ",0,VLOOKUP(C21,Reference!$I$3:$J$188,2,FALSE)),"") -> 1 | AO21: =IF(C21<>"",IF(VLOOKUP(C21,Reference!$M$3:$Q$188,5,FALSE)=" ",0,VLOOKUP(C21,Reference!$M$3:$Q$188,5,FALSE)),"") -> Y
C22: Total Boron | T22: =IF(C22<>"",IF(VLOOKUP(C22,Reference!$A$3:$B$188,2,FALSE)="","N/A",VLOOKUP(C22,Reference!$A$3:$B$188,2,FALSE)),"") -> 1600 | AN22: =IF(C22<>"",IF(VLOOKUP(C22,Reference!$I$3:$J$188,2,FALSE)=" ",0,VLOOKUP(C22,Reference!$I$3:$J$188,2,FALSE)),"") -> 200 | AO22: =IF(C22<>"",IF(VLOOKUP(C22,Reference!$M$3:$Q$188,5,FALSE)=" ",0,VLOOKUP(C22,Reference!$M$3:$Q$188,5,FALSE)),"") -> Y
C23: Total Cadmium | T23: =IF(C23<>"",IF(VLOOKUP(C23,Reference!$A$3:$B$188,2,FALSE)="","N/A",VLOOKUP(C23,Reference!$A$3:$B$188,2,FALSE)),"") -> 0.271 | AN23: =IF(C23<>"",IF(VLOOKUP(C23,Reference!$I$3:$J$188,2,FALSE)=" ",0,VLOOKUP(C23,Reference!$I$3:$J$188,2,FALSE)),"") -> 0.2 | AO23: =IF(C23<>"",IF(VLOOKUP(C23,Reference!$M$3:$Q$188,5,FALSE)=" ",0,VLOOKUP(C23,Reference!$M$3:$Q$188,5,FALSE)),"") -> Y
C24: Total Chromium | T24: =IF(C24<>"",IF(VLOOKUP(C24,Reference!$A$3:$B$188,2,FALSE)="","N/A",VLOOKUP(C24,Reference!$A$3:$B$188,2,FALSE)),"") -> N/A | AN24: =IF(C24<>"",IF(VLOOKUP(C24,Reference!$I$3:$J$188,2,FALSE)=" ",0,VLOOKUP(C24,Reference!$I$3:$J$188,2,FALSE)),"") -> 4 | AO24: =IF(C24<>"",IF(VLOOKUP(C24,Reference!$M$3:$Q$188,5,FALSE)=" ",0,VLOOKUP(C24,Reference!$M$3:$Q$188,5,FALSE)),"") -> Y
C25: Hexavalent Chromium | T25: =IF(C25<>"",IF(VLOOKUP(C25,Reference!$A$3:$B$188,2,FALSE)="","N/A",VLOOKUP(C25,Reference!$A$3:$B$188,2,FALSE)),"") -> 10.3950104 | AN25: =IF(C25<>"",IF(VLOOKUP(C25,Reference!$I$3:$J$188,2,FALSE)=" ",0,VLOOKUP(C25,Reference!$I$3:$J$188,2,FALSE)),"") -> 1 | AO25: =IF(C25<>"",IF(VLOOKUP(C25,Reference!$M$3:$Q$188,5,FALSE)=" ",0,VLOOKUP(C25,Reference!$M$3:$Q$188,5,FALSE)),"") -> Y
C26: Total Cobalt | T26: =IF(C26<>"",IF(VLOOKUP(C26,Reference!$A$3:$B$188,2,FALSE)="","N/A",VLOOKUP(C26,Reference!$A$3:$B$188,2,FALSE)),"") -> 19 | AN26: =IF(C26<>"",IF(VLOOKUP(C26,Reference!$I$3:$J$188,2,FALSE)=" ",0,VLOOKUP(C26,Reference!$I$3:$J$188,2,FALSE)),"") -> 1 | AO26: =IF(C26<>"",IF(VLOOKUP(C26,Reference!$M$3:$Q$188,5,FALSE)=" ",0,VLOOKUP(C26,Reference!$M$3:$Q$188,5,FALSE)),"") -> Y
C27: Total Copper | T27: =IF(C27<>"",IF(VLOOKUP(C27,Reference!$A$3:$B$188,2,FALSE)="","N/A",VLOOKUP(C27,Reference!$A$3:$B$188,2,FALSE)),"") -> 9.33 | AN27: =IF(C27<>"",IF(VLOOKUP(C27,Reference!$I$3:$J$188,2,FALSE)=" ",0,VLOOKUP(C27,Reference!$I$3:$J$188,2,FALSE)),"") -> 4 | AO27: =IF(C27<>"",IF(VLOOKUP(C27,Reference!$M$3:$Q$188,5,FALSE)=" ",0,VLOOKUP(C27,Reference!$M$3:$Q$188,5,FALSE)),"") -> Y
C28: Total Cyanide | T28: =IF(C28<>"",IF(VLOOKUP(C28,Reference!$A$3:$B$188,2,FALSE)="","N/A",VLOOKUP(C28,Reference!$A$3:$B$188,2,FALSE)),"") -> N/A | AN28: =IF(C28<>"",IF(VLOOKUP(C28,Reference!$I$3:$J$188,2,FALSE)=" ",0,VLOOKUP(C28,Reference!$I$3:$J$188,2,FALSE)),"") -> 10 | AO28: =IF(C28<>"",IF(VLOOKUP(C28,Reference!$M$3:$Q$188,5,FALSE)=" ",0,VLOOKUP(C28,Reference!$M$3:$Q$188,5,FALSE)),"") -> 0
C29: Total Iron | T29: =IF(C29<>"",IF(VLOOKUP(C29,Reference!$A$3:$B$188,2,FALSE)="","N/A",VLOOKUP(C29,Reference!$A$3:$B$188,2,FALSE)),"") -> 1500 | AN29: =IF(C29<>"",IF(VLOOKUP(C29,Reference!$I$3:$J$188,2,FALSE)=" ",0,VLOOKUP(C29,Reference!$I$3:$J$188,2,FALSE)),"") -> 20 | AO29: =IF(C29<>"",IF(VLOOKUP(C29,Reference!$M$3:$Q$188,5,FALSE)=" ",0,VLOOKUP(C29,Reference!$M$3:$Q$188,5,FALSE)),"") -> Y
C30: Dissolved Iron | T30: =IF(C30<>"",IF(VLOOKUP(C30,Reference!$A$3:$B$188,2,FALSE)="","N/A",VLOOKUP(C30,Reference!$A$3:$B$188,2,FALSE)),"") -> 300 | AN30: =IF(C30<>"",IF(VLOOKUP(C30,Reference!$I$3:$J$188,2,FALSE)=" ",0,VLOOKUP(C30,Reference!$I$3:$J$188,2,FALSE)),"") -> 20 | AO30: =IF(C30<>"",IF(VLOOKUP(C30,Reference!$M$3:$Q$188,5,FALSE)=" ",0,VLOOKUP(C30,Reference!$M$3:$Q$188,5,FALSE)),"") -> Y
C31: Total Lead | T31: =IF(C31<>"",IF(VLOOKUP(C31,Reference!$A$3:$B$188,2,FALSE)="","N/A",VLOOKUP(C31,Reference!$A$3:$B$188,2,FALSE)),"") -> 3.18 | AN31: =IF(C31<>"",IF(VLOOKUP(C31,Reference!$I$3:$J$188,2,FALSE)=" ",0,VLOOKUP(C31,Reference!$I$3:$J$188,2,FALSE)),"") -> 1 | AO31: =IF(C31<>"",IF(VLOOKUP(C31,Reference!$M$3:$Q$188,5,FALSE)=" ",0,VLOOKUP(C31,Reference!$M$3:$Q$188,5,FALSE)),"") -> Y
C32: Total Manganese | T32: =IF(C32<>"",IF(VLOOKUP(C32,Reference!$A$3:$B$188,2,FALSE)="","N/A",VLOOKUP(C32,Reference!$A$3:$B$188,2,FALSE)),"") -> 1000 | AN32: =IF(C32<>"",IF(VLOOKUP(C32,Reference!$I$3:$J$188,2,FALSE)=" ",0,VLOOKUP(C32,Reference!$I$3:$J$188,2,FALSE)),"") -> 2 | AO32: =IF(C32<>"",IF(VLOOKUP(C32,Reference!$M$3:$Q$188,5,FALSE)=" ",0,VLOOKUP(C32,Reference!$M$3:$Q$188,5,FALSE)),"") -> Y
C33: Total Mercury | T33: =IF(C33<>"",IF(VLOOKUP(C33,Reference!$A$3:$B$188,2,FALSE)="","N/A",VLOOKUP(C33,Reference!$A$3:$B$188,2,FALSE)),"") -> 0.05 | AN33: =IF(C33<>"",IF(VLOOKUP(C33,Reference!$I$3:$J$188,2,FALSE)=" ",0,VLOOKUP(C33,Reference!$I$3:$J$188,2,FALSE)),"") -> 0.2 | AO33: =IF(C33<>"",IF(VLOOKUP(C33,Reference!$M$3:$Q$188,5,FALSE)=" ",0,VLOOKUP(C33,Reference!$M$3:$Q$188,5,FALSE)),"") -> Y
C34: Total Molybdenum | T34: =IF(C34<>"",IF(VLOOKUP(C34,Reference!$A$3:$B$188,2,FALSE)="","N/A",VLOOKUP(C34,Reference!$A$3:$B$188,2,FALSE)),"") -> N/A | AN34: =IF(C34<>"",IF(VLOOKUP(C34,Reference!$I$3:$J$188,2,FALSE)=" ",0,VLOOKUP(C34,Reference!$I$3:$J$188,2,FALSE)),"") -> 4 | AO34: =IF(C34<>"",IF(VLOOKUP(C34,Reference!$M$3:$Q$188,5,FALSE)=" ",0,VLOOKUP(C34,Reference!$M$3:$Q$188,5,FALSE)),"") -> Y
C35: Total Nickel | T35: =IF(C35<>"",IF(VLOOKUP(C35,Reference!$A$3:$B$188,2,FALSE)="","N/A",VLOOKUP(C35,Reference!$A$3:$B$188,2,FALSE)),"") -> 52.2 | AN35: =IF(C35<>"",IF(VLOOKUP(C35,Reference!$I$3:$J$188,2,FALSE)=" ",0,VLOOKUP(C35,Reference!$I$3:$J$188,2,FALSE)),"") -> 4 | AO35: =IF(C35<>"",IF(VLOOKUP(C35,Reference!$M$3:$Q$188,5,FALSE)=" ",0,VLOOKUP(C35,Reference!$M$3:$Q$188,5,FALSE)),"") -> Y
C36: Total Phenols (Phenolics) | T36: =IF(C36<>"",IF(VLOOKUP(C36,Reference!$A$3:$B$188,2,FALSE)="","N/A",VLOOKUP(C36,Reference!$A$3:$B$188,2,FALSE)),"") -> 5 | AN36: =IF(C36<>"",IF(VLOOKUP(C36,Reference!$I$3:$J$188,2,FALSE)=" ",0,VLOOKUP(C36,Reference!$I$3:$J$188,2,FALSE)),"") -> 5 | AO36: =IF(C36<>"",IF(VLOOKUP(C36,Reference!$M$3:$Q$188,5,FALSE)=" ",0,VLOOKUP(C36,Reference!$M$3:$Q$188,5,FALSE)),"") -> 0
C37: Total Selenium | T37: =IF(C37<>"",IF(VLOOKUP(C37,Reference!$A$3:$B$188,2,FALSE)="","N/A",VLOOKUP(C37,Reference!$A$3:$B$188,2,FALSE)),"") -> 4.989154013 | AN37: =IF(C37<>"",IF(VLOOKUP(C37,Reference!$I$3:$J$188,2,FALSE)=" ",0,VLOOKUP(C37,Reference!$I$3:$J$188,2,FALSE)),"") -> 5 | AO37: =IF(C37<>"",IF(VLOOKUP(C37,Reference!$M$3:$Q$188,5,FALSE)=" ",0,VLOOKUP(C37,Reference!$M$3:$Q$188,5,FALSE)),"") -> Y
C38: Total Silver | T38: =IF(C38<>"",IF(VLOOKUP(C38,Reference!$A$3:$B$188,2,FALSE)="","N/A",VLOOKUP(C38,Reference!$A$3:$B$188,2,FALSE)),"") -> 3.78 | AN38: =IF(C38<>"",IF(VLOOKUP(C38,Reference!$I$3:$J$188,2,FALSE)=" ",0,VLOOKUP(C38,Reference!$I$3:$J$188,2,FALSE)),"") -> 0.4 | AO38: =IF(C38<>"",IF(VLOOKUP(C38,Reference!$M$3:$Q$188,5,FALSE)=" ",0,VLOOKUP(C38,Reference!$M$3:$Q$188,5,FALSE)),"") -> Y
C39: Total Thallium | T39: =IF(C39<>"",IF(VLOOKUP(C39,Reference!$A$3:$B$188,2,FALSE)="","N/A",VLOOKUP(C39,Reference!$A$3:$B$188,2,FALSE)),"") -> 0.24 | AN39: =IF(C39<>"",IF(VLOOKUP(C39,Reference!$I$3:$J$188,2,FALSE)=" ",0,VLOOKUP(C39,Reference!$I$3:$J$188,2,FALSE)),"") -> 2 | AO39: =IF(C39<>"",IF(VLOOKUP(C39,Reference!$M$3:$Q$188,5,FALSE)=" ",0,VLOOKUP(C39,Reference!$M$3:$Q$188,5,FALSE)),"") -> Y
C40: Total Zinc | T40: =IF(C40<>"",IF(VLOOKUP(C40,Reference!$A$3:$B$188,2,FALSE)="","N/A",VLOOKUP(C40,Reference!$A$3:$B$188,2,FALSE)),"") -> 119.8 | AN40: =IF(C40<>"",IF(VLOOKUP(C40,Reference!$I$3:$J$188,2,FALSE)=" ",0,VLOOKUP(C40,Reference!$I$3:$J$188,2,FALSE)),"") -> 5 | AO40: =IF(C40<>"",IF(VLOOKUP(C40,Reference!$M$3:$Q$188,5,FALSE)=" ",0,VLOOKUP(C40,Reference!$M$3:$Q$188,5,FALSE)),"") -> Y
B41: Group 3 | C41: Acrolein | M41: < | T41: =IF(C41<>"",IF(VLOOKUP(C41,Reference!$A$3:$B$188,2,FALSE)="","N/A",VLOOKUP(C41,Reference!$A$3:$B$188,2,FALSE)),"") -> 3 | AN41: =IF(C41<>"",IF(VLOOKUP(C41,Reference!$I$3:$J$188,2,FALSE)=" ",0,VLOOKUP(C41,Reference!$I$3:$J$188,2,FALSE)),"") -> 2 | AO41: =IF(C41<>"",IF(VLOOKUP(C41,Reference!$M$3:$Q$188,5,FALSE)=" ",0,VLOOKUP(C41,Reference!$M$3:$Q$188,5,FALSE)),"") -> 0
C42: Acrylamide | M42: < | T42: =IF(C42<>"",IF(VLOOKUP(C42,Reference!$A$3:$B$188,2,FALSE)="","N/A",VLOOKUP(C42,Reference!$A$3:$B$188,2,FALSE)),"") -> 0.07 | AN42: 5 | AO42: =IF(C42<>"",IF(VLOOKUP(C42,Reference!$M$3:$Q$188,5,FALSE)=" ",0,VLOOKUP(C42,Reference!$M$3:$Q$188,5,FALSE)),"") -> 0
C43: Acrylonitrile | M43: < | T43: =IF(C43<>"",IF(VLOOKUP(C43,Reference!$A$3:$B$188,2,FALSE)="","N/A",VLOOKUP(C43,Reference!$A$3:$B$188,2,FALSE)),"") -> 0.051 | AN43: =IF(C43<>"",IF(VLOOKUP(C43,Reference!$I$3:$J$188,2,FALSE)=" ",0,VLOOKUP(C43,Reference!$I$3:$J$188,2,FALSE)),"") -> 5 | AO43: =IF(C43<>"",IF(VLOOKUP(C43,Reference!$M$3:$Q$188,5,FALSE)=" ",0,VLOOKUP(C43,Reference!$M$3:$Q$188,5,FALSE)),"") -> 0
C44: Benzene | M44: < | T44: =IF(C44<>"",IF(VLOOKUP(C44,Reference!$A$3:$B$188,2,FALSE)="","N/A",VLOOKUP(C44,Reference!$A$3:$B$188,2,FALSE)),"") -> 1.2 | AN44: =IF(C44<>"",IF(VLOOKUP(C44,Reference!$I$3:$J$188,2,FALSE)=" ",0,VLOOKUP(C44,Reference!$I$3:$J$188,2,FALSE)),"") -> 0.5 | AO44: =IF(C44<>"",IF(VLOOKUP(C44,Reference!$M$3:$Q$188,5,FALSE)=" ",0,VLOOKUP(C44,Reference!$M$3:$Q$188,5,FALSE)),"") -> 0
C45: Bromoform | M45: < | T45: =IF(C45<>"",IF(VLOOKUP(C45,Reference!$A$3:$B$188,2,FALSE)="","N/A",VLOOKUP(C45,Reference!$A$3:$B$188,2,FALSE)),"") -> 4.3 | AN45: =IF(C45<>"",IF(VLOOKUP(C45,Reference!$I$3:$J$188,2,FALSE)=" ",0,VLOOKUP(C45,Reference!$I$3:$J$188,2,FALSE)),"") -> 0.5 | AO45: =IF(C45<>"",IF(VLOOKUP(C45,Reference!$M$3:$Q$188,5,FALSE)=" ",0,VLOOKUP(C45,Reference!$M$3:$Q$188,5,FALSE)),"") -> 0
C46: Carbon Tetrachloride | M46: < | T46: =IF(C46<>"",IF(VLOOKUP(C46,Reference!$A$3:$B$188,2,FALSE)="","N/A",VLOOKUP(C46,Reference!$A$3:$B$188,2,FALSE)),"") -> 0.23 | AN46: =IF(C46<>"",IF(VLOOKUP(C46,Reference!$I$3:$J$188,2,FALSE)=" ",0,VLOOKUP(C46,Reference!$I$3:$J$188,2,FALSE)),"") -> 0.5 | AO46: =IF(C46<>"",IF(VLOOKUP(C46,Reference!$M$3:$Q$188,5,FALSE)=" ",0,VLOOKUP(C46,Reference!$M$3:$Q$188,5,FALSE)),"") -> 0
C47: Chlorobenzene | M47: < | T47: =IF(C47<>"",IF(VLOOKUP(C47,Reference!$A$3:$B$188,2,FALSE)="","N/A",VLOOKUP(C47,Reference!$A$3:$B$188,2,FALSE)),"") -> 130 | AN47: =IF(C47<>"",IF(VLOOKUP(C47,Reference!$I$3:$J$188,2,FALSE)=" ",0,VLOOKUP(C47,Reference!$I$3:$J$188,2,FALSE)),"") -> 0.5 | AO47: =IF(C47<>"",IF(VLOOKUP(C47,Reference!$M$3:$Q$188,5,FALSE)=" ",0,VLOOKUP(C47,Reference!$M$3:$Q$188,5,FALSE)),"") -> 0
C48: Chlorodibromomethane | M48: < | T48: =IF(C48<>"",IF(VLOOKUP(C48,Reference!$A$3:$B$188,2,FALSE)="","N/A",VLOOKUP(C48,Reference!$A$3:$B$188,2,FALSE)),"") -> 0.4 | AN48: =IF(C48<>"",IF(VLOOKUP(C48,Reference!$I$3:$J$188,2,FALSE)=" ",0,VLOOKUP(C48,Reference!$I$3:$J$188,2,FALSE)),"") -> 0.5 | AO48: =IF(C48<>"",IF(VLOOKUP(C48,Reference!$M$3:$Q$188,5,FALSE)=" ",0,VLOOKUP(C48,Reference!$M$3:$Q$188,5,FALSE)),"") -> 0
C49: Chloroethane | M49: < | T49: =IF(C49<>"",IF(VLOOKUP(C49,Reference!$A$3:$B$188,2,FALSE)="","N/A",VLOOKUP(C49,Reference!$A$3:$B$188,2,FALSE)),"") -> N/A | AN49: =IF(C49<>"",IF(VLOOKUP(C49,Reference!$I$3:$J$188,2,FALSE)=" ",0,VLOOKUP(C49,Reference!$I$3:$J$188,2,FALSE)),"") -> 0.5 | AO49: =IF(C49<>"",IF(VLOOKUP(C49,Reference!$M$3:$Q$188,5,FALSE)=" ",0,VLOOKUP(C49,Reference!$M$3:$Q$188,5,FALSE)),"") -> 0
C50: 2-Chloroethyl Vinyl Ether | M50: < | T50: =IF(C50<>"",IF(VLOOKUP(C50,Reference!$A$3:$B$188,2,FALSE)="","N/A",VLOOKUP(C50,Reference!$A$3:$B$188,2,FALSE)),"") -> 3500 | AN50: =IF(C50<>"",IF(VLOOKUP(C50,Reference!$I$3:$J$188,2,FALSE)=" ",0,VLOOKUP(C50,Reference!$I$3:$J$188,2,FALSE)),"") -> 5 | AO50: =IF(C50<>"",IF(VLOOKUP(C50,Reference!$M$3:$Q$188,5,FALSE)=" ",0,VLOOKUP(C50,Reference!$M$3:$Q$188,5,FALSE)),"") -> 0
C51: Chloroform | M51: < | T51: =IF(C51<>"",IF(VLOOKUP(C51,Reference!$A$3:$B$188,2,FALSE)="","N/A",VLOOKUP(C51,Reference!$A$3:$B$188,2,FALSE)),"") -> 5.7 | AN51: =IF(C51<>"",IF(VLOOKUP(C51,Reference!$I$3:$J$188,2,FALSE)=" ",0,VLOOKUP(C51,Reference!$I$3:$J$188,2,FALSE)),"") -> 0.5 | AO51: =IF(C51<>"",IF(VLOOKUP(C51,Reference!$M$3:$Q$188,5,FALSE)=" ",0,VLOOKUP(C51,Reference!$M$3:$Q$188,5,FALSE)),"") -> 0
C52: Dichlorobromomethane | M52: < | T52: =IF(C52<>"",IF(VLOOKUP(C52,Reference!$A$3:$B$188,2,FALSE)="","N/A",VLOOKUP(C52,Reference!$A$3:$B$188,2,FALSE)),"") -> 0.55 | AN52: =IF(C52<>"",IF(VLOOKUP(C52,Reference!$I$3:$J$188,2,FALSE)=" ",0,VLOOKUP(C52,Reference!$I$3:$J$188,2,FALSE)),"") -> 0.5 | AO52: =IF(C52<>"",IF(VLOOKUP(C52,Reference!$M$3:$Q$188,5,FALSE)=" ",0,VLOOKUP(C52,Reference!$M$3:$Q$188,5,FALSE)),"") -> 0
C53: 1,1-Dichloroethane | M53: < | T53: =IF(C53<>"",IF(VLOOKUP(C53,Reference!$A$3:$B$188,2,FALSE)="","N/A",VLOOKUP(C53,Reference!$A$3:$B$188,2,FALSE)),"") -> N/A | AN53: =IF(C53<>"",IF(VLOOKUP(C53,Reference!$I$3:$J$188,2,FALSE)=" ",0,VLOOKUP(C53,Reference!$I$3:$J$188,2,FALSE)),"") -> 0.5 | AO53: =IF(C53<>"",IF(VLOOKUP(C53,Reference!$M$3:$Q$188,5,FALSE)=" ",0,VLOOKUP(C53,Reference!$M$3:$Q$188,5,FALSE)),"") -> 0
C54: 1,2-Dichloroethane | M54: < | T54: =IF(C54<>"",IF(VLOOKUP(C54,Reference!$A$3:$B$188,2,FALSE)="","N/A",VLOOKUP(C54,Reference!$A$3:$B$188,2,FALSE)),"") -> 0.38 | AN54: =IF(C54<>"",IF(VLOOKUP(C54,Reference!$I$3:$J$188,2,FALSE)=" ",0,VLOOKUP(C54,Reference!$I$3:$J$188,2,FALSE)),"") -> 0.5 | AO54: =IF(C54<>"",IF(VLOOKUP(C54,Reference!$M$3:$Q$188,5,FALSE)=" ",0,VLOOKUP(C54,Reference!$M$3:$Q$188,5,FALSE)),"") -> 0
C55: 1,1-Dichloroethylene | M55: < | T55: =IF(C55<>"",IF(VLOOKUP(C55,Reference!$A$3:$B$188,2,FALSE)="","N/A",VLOOKUP(C55,Reference!$A$3:$B$188,2,FALSE)),"") -> 33 | AN55: =IF(C55<>"",IF(VLOOKUP(C55,Reference!$I$3:$J$188,2,FALSE)=" ",0,VLOOKUP(C55,Reference!$I$3:$J$188,2,FALSE)),"") -> 0.5 | AO55: =IF(C55<>"",IF(VLOOKUP(C55,Reference!$M$3:$Q$188,5,FALSE)=" ",0,VLOOKUP(C55,Reference!$M$3:$Q$188,5,FALSE)),"") -> 0
C56: 1,2-Dichloropropane | M56: < | T56: =IF(C56<>"",IF(VLOOKUP(C56,Reference!$A$3:$B$188,2,FALSE)="","N/A",VLOOKUP(C56,Reference!$A$3:$B$188,2,FALSE)),"") -> 2200 | AN56: =IF(C56<>"",IF(VLOOKUP(C56,Reference!$I$3:$J$188,2,FALSE)=" ",0,VLOOKUP(C56,Reference!$I$3:$J$188,2,FALSE)),"") -> 0.5 | AO56: =IF(C56<>"",IF(VLOOKUP(C56,Reference!$M$3:$Q$188,5,FALSE)=" ",0,VLOOKUP(C56,Reference!$M$3:$Q$188,5,FALSE)),"") -> 0
C57: 1,3-Dichloropropylene | M57: < | T57: =IF(C57<>"",IF(VLOOKUP(C57,Reference!$A$3:$B$188,2,FALSE)="","N/A",VLOOKUP(C57,Reference!$A$3:$B$188,2,FALSE)),"") -> 0.34 | AN57: =IF(C57<>"",IF(VLOOKUP(C57,Reference!$I$3:$J$188,2,FALSE)=" ",0,VLOOKUP(C57,Reference!$I$3:$J$188,2,FALSE)),"") -> 0.5 | AO57: =IF(C57<>"",IF(VLOOKUP(C57,Reference!$M$3:$Q$188,5,FALSE)=" ",0,VLOOKUP(C57,Reference!$M$3:$Q$188,5,FALSE)),"") -> 0
C58: Ethylbenzene | M58: < | T58: =IF(C58<>"",IF(VLOOKUP(C58,Reference!$A$3:$B$188,2,FALSE)="","N/A",VLOOKUP(C58,Reference!$A$3:$B$188,2,FALSE)),"") -> 530 | AN58: =IF(C58<>"",IF(VLOOKUP(C58,Reference!$I$3:$J$188,2,FALSE)=" ",0,VLOOKUP(C58,Reference!$I$3:$J$188,2,FALSE)),"") -> 0.5 | AO58: =IF(C58<>"",IF(VLOOKUP(C58,Reference!$M$3:$Q$188,5,FALSE)=" ",0,VLOOKUP(C58,Reference!$M$3:$Q$188,5,FALSE)),"") -> 0
C59: Methyl Bromide | M59: < | T59: =IF(C59<>"",IF(VLOOKUP(C59,Reference!$A$3:$B$188,2,FALSE)="","N/A",VLOOKUP(C59,Reference!$A$3:$B$188,2,FALSE)),"") -> 47 | AN59: =IF(C59<>"",IF(VLOOKUP(C59,Reference!$I$3:$J$188,2,FALSE)=" ",0,VLOOKUP(C59,Reference!$I$3:$J$188,2,FALSE)),"") -> 0.5 | AO59: =IF(C59<>"",IF(VLOOKUP(C59,Reference!$M$3:$Q$188,5,FALSE)=" ",0,VLOOKUP(C59,Reference!$M$3:$Q$188,5,FALSE)),"") -> 0
C60: Methyl Chloride | M60: < | T60: =IF(C60<>"",IF(VLOOKUP(C60,Reference!$A$3:$B$188,2,FALSE)="","N/A",VLOOKUP(C60,Reference!$A$3:$B$188,2,FALSE)),"") -> 5500 | AN60: =IF(C60<>"",IF(VLOOKUP(C60,Reference!$I$3:$J$188,2,FALSE)=" ",0,VLOOKUP(C60,Reference!$I$3:$J$188,2,FALSE)),"") -> 0.5 | AO60: =IF(C60<>"",IF(VLOOKUP(C60,Reference!$M$3:$Q$188,5,FALSE)=" ",0,VLOOKUP(C60,Reference!$M$3:$Q$188,5,FALSE)),"") -> 0
C61: Methylene Chloride | M61: < | T61: =IF(C61<>"",IF(VLOOKUP(C61,Reference!$A$3:$B$188,2,FALSE)="","N/A",VLOOKUP(C61,Reference!$A$3:$B$188,2,FALSE)),"") -> 4.6 | AN61: =IF(C61<>"",IF(VLOOKUP(C61,Reference!$I$3:$J$188,2,FALSE)=" ",0,VLOOKUP(C61,Reference!$I$3:$J$188,2,FALSE)),"") -> 0.5 | AO61: =IF(C61<>"",IF(VLOOKUP(C61,Reference!$M$3:$Q$188,5,FALSE)=" ",0,VLOOKUP(C61,Reference!$M$3:$Q$188,5,FALSE)),"") -> 0
C62: 1,1,2,2-Tetrachloroethane | M62: < | T62: =IF(C62<>"",IF(VLOOKUP(C62,Reference!$A$3:$B$188,2,FALSE)="","N/A",VLOOKUP(C62,Reference!$A$3:$B$188,2,FALSE)),"") -> 0.17 | AN62: =IF(C62<>"",IF(VLOOKUP(C62,Reference!$I$3:$J$188,2,FALSE)=" ",0,VLOOKUP(C62,Reference!$I$3:$J$188,2,FALSE)),"") -> 0.5 | AO62: =IF(C62<>"",IF(VLOOKUP(C62,Reference!$M$3:$Q$188,5,FALSE)=" ",0,VLOOKUP(C62,Reference!$M$3:$Q$188,5,FALSE)),"") -> 0
C63: Tetrachloroethylene | M63: < | T63: =IF(C63<>"",IF(VLOOKUP(C63,Reference!$A$3:$B$188,2,FALSE)="","N/A",VLOOKUP(C63,Reference!$A$3:$B$188,2,FALSE)),"") -> 0.69 | AN63: =IF(C63<>"",IF(VLOOKUP(C63,Reference!$I$3:$J$188,2,FALSE)=" ",0,VLOOKUP(C63,Reference!$I$3:$J$188,2,FALSE)),"") -> 0.5 | AO63: =IF(C63<>"",IF(VLOOKUP(C63,Reference!$M$3:$Q$188,5,FALSE)=" ",0,VLOOKUP(C63,Reference!$M$3:$Q$188,5,FALSE)),"") -> 0
C64: Toluene | M64: < | T64: =IF(C64<>"",IF(VLOOKUP(C64,Reference!$A$3:$B$188,2,FALSE)="","N/A",VLOOKUP(C64,Reference!$A$3:$B$188,2,FALSE)),"") -> 330 | AN64: =IF(C64<>"",IF(VLOOKUP(C64,Reference!$I$3:$J$188,2,FALSE)=" ",0,VLOOKUP(C64,Reference!$I$3:$J$188,2,FALSE)),"") -> 0.5 | AO64: =IF(C64<>"",IF(VLOOKUP(C64,Reference!$M$3:$Q$188,5,FALSE)=" ",0,VLOOKUP(C64,Reference!$M$3:$Q$188,5,FALSE)),"") -> 0
C65: 1,2-trans-Dichloroethylene | M65: < | T65: =IF(C65<>"",IF(VLOOKUP(C65,Reference!$A$3:$B$188,2,FALSE)="","N/A",VLOOKUP(C65,Reference!$A$3:$B$188,2,FALSE)),"") -> 140 | AN65: =IF(C65<>"",IF(VLOOKUP(C65,Reference!$I$3:$J$188,2,FALSE)=" ",0,VLOOKUP(C65,Reference!$I$3:$J$188,2,FALSE)),"") -> 0.5 | AO65: =IF(C65<>"",IF(VLOOKUP(C65,Reference!$M$3:$Q$188,5,FALSE)=" ",0,VLOOKUP(C65,Reference!$M$3:$Q$188,5,FALSE)),"") -> 0
C66: 1,1,1-Trichloroethane | M66: < | T66: =IF(C66<>"",IF(VLOOKUP(C66,Reference!$A$3:$B$188,2,FALSE)="","N/A",VLOOKUP(C66,Reference!$A$3:$B$188,2,FALSE)),"") -> 610 | AN66: =IF(C66<>"",IF(VLOOKUP(C66,Reference!$I$3:$J$188,2,FALSE)=" ",0,VLOOKUP(C66,Reference!$I$3:$J$188,2,FALSE)),"") -> 0.5 | AO66: =IF(C66<>"",IF(VLOOKUP(C66,Reference!$M$3:$Q$188,5,FALSE)=" ",0,VLOOKUP(C66,Reference!$M$3:$Q$188,5,FALSE)),"") -> 0
C67: 1,1,2-Trichloroethane | M67: < | T67: =IF(C67<>"",IF(VLOOKUP(C67,Reference!$A$3:$B$188,2,FALSE)="","N/A",VLOOKUP(C67,Reference!$A$3:$B$188,2,FALSE)),"") -> 0.59 | AN67: =IF(C67<>"",IF(VLOOKUP(C67,Reference!$I$3:$J$188,2,FALSE)=" ",0,VLOOKUP(C67,Reference!$I$3:$J$188,2,FALSE)),"") -> 0.5 | AO67: =IF(C67<>"",IF(VLOOKUP(C67,Reference!$M$3:$Q$188,5,FALSE)=" ",0,VLOOKUP(C67,Reference!$M$3:$Q$188,5,FALSE)),"") -> 0
C68: Trichloroethylene | M68: < | T68: =IF(C68<>"",IF(VLOOKUP(C68,Reference!$A$3:$B$188,2,FALSE)="","N/A",VLOOKUP(C68,Reference!$A$3:$B$188,2,FALSE)),"") -> 2.5 | AN68: =IF(C68<>"",IF(VLOOKUP(C68,Reference!$I$3:$J$188,2,FALSE)=" ",0,VLOOKUP(C68,Reference!$I$3:$J$188,2,FALSE)),"") -> 0.5 | AO68: =IF(C68<>"",IF(VLOOKUP(C68,Reference!$M$3:$Q$188,5,FALSE)=" ",0,VLOOKUP(C68,Reference!$M$3:$Q$188,5,FALSE)),"") -> 0
C69: Vinyl Chloride | M69: < | T69: =IF(C69<>"",IF(VLOOKUP(C69,Reference!$A$3:$B$188,2,FALSE)="","N/A",VLOOKUP(C69,Reference!$A$3:$B$188,2,FALSE)),"") -> 0.025 | AN69: =IF(C69<>"",IF(VLOOKUP(C69,Reference!$I$3:$J$188,2,FALSE)=" ",0,VLOOKUP(C69,Reference!$I$3:$J$188,2,FALSE)),"") -> 0.5 | AO69: =IF(C69<>"",IF(VLOOKUP(C69,Reference!$M$3:$Q$188,5,FALSE)=" ",0,VLOOKUP(C69,Reference!$M$3:$Q$188,5,FALSE)),"") -> 0
B70: Group 4 | C70: 2-Chlorophenol | M70: < | T70: =IF(C70<>"",IF(VLOOKUP(C70,Reference!$A$3:$B$188,2,FALSE)="","N/A",VLOOKUP(C70,Reference!$A$3:$B$188,2,FALSE)),"") -> 81 | AN70: =IF(C70<>"",IF(VLOOKUP(C70,Reference!$I$3:$J$188,2,FALSE)=" ",0,VLOOKUP(C70,Reference!$I$3:$J$188,2,FALSE)),"") -> 10 | AO70: =IF(C70<>"",IF(VLOOKUP(C70,Reference!$M$3:$Q$188,5,FALSE)=" ",0,VLOOKUP(C70,Reference!$M$3:$Q$188,5,FALSE)),"") -> 0
C71: 2,4-Dichlorophenol | M71: < | T71: =IF(C71<>"",IF(VLOOKUP(C71,Reference!$A$3:$B$188,2,FALSE)="","N/A",VLOOKUP(C71,Reference!$A$3:$B$188,2,FALSE)),"") -> 77 | AN71: =IF(C71<>"",IF(VLOOKUP(C71,Reference!$I$3:$J$188,2,FALSE)=" ",0,VLOOKUP(C71,Reference!$I$3:$J$188,2,FALSE)),"") -> 10 | AO71: =IF(C71<>"",IF(VLOOKUP(C71,Reference!$M$3:$Q$188,5,FALSE)=" ",0,VLOOKUP(C71,Reference!$M$3:$Q$188,5,FALSE)),"") -> 0
C72: 2,4-Dimethylphenol | M72: < | T72: =IF(C72<>"",IF(VLOOKUP(C72,Reference!$A$3:$B$188,2,FALSE)="","N/A",VLOOKUP(C72,Reference!$A$3:$B$188,2,FALSE)),"") -> 130 | AN72: =IF(C72<>"",IF(VLOOKUP(C72,Reference!$I$3:$J$188,2,FALSE)=" ",0,VLOOKUP(C72,Reference!$I$3:$J$188,2,FALSE)),"") -> 10 | AO72: =IF(C72<>"",IF(VLOOKUP(C72,Reference!$M$3:$Q$188,5,FALSE)=" ",0,VLOOKUP(C72,Reference!$M$3:$Q$188,5,FALSE)),"") -> 0
C73: 4,6-Dinitro-o-Cresol | M73: < | T73: =IF(C73<>"",IF(VLOOKUP(C73,Reference!$A$3:$B$188,2,FALSE)="","N/A",VLOOKUP(C73,Reference!$A$3:$B$188,2,FALSE)),"") -> 13 | AN73: =IF(C73<>"",IF(VLOOKUP(C73,Reference!$I$3:$J$188,2,FALSE)=" ",0,VLOOKUP(C73,Reference!$I$3:$J$188,2,FALSE)),"") -> 10 | AO73: =IF(C73<>"",IF(VLOOKUP(C73,Reference!$M$3:$Q$188,5,FALSE)=" ",0,VLOOKUP(C73,Reference!$M$3:$Q$188,5,FALSE)),"") -> 0
C74: 2,4-Dinitrophenol | M74: < | T74: =IF(C74<>"",IF(VLOOKUP(C74,Reference!$A$3:$B$188,2,FALSE)="","N/A",VLOOKUP(C74,Reference!$A$3:$B$188,2,FALSE)),"") -> 69 | AN74: =IF(C74<>"",IF(VLOOKUP(C74,Reference!$I$3:$J$188,2,FALSE)=" ",0,VLOOKUP(C74,Reference!$I$3:$J$188,2,FALSE)),"") -> 10 | AO74: =IF(C74<>"",IF(VLOOKUP(C74,Reference!$M$3:$Q$188,5,FALSE)=" ",0,VLOOKUP(C74,Reference!$M$3:$Q$188,5,FALSE)),"") -> 0
C75: 2-Nitrophenol | M75: < | T75: =IF(C75<>"",IF(VLOOKUP(C75,Reference!$A$3:$B$188,2,FALSE)="","N/A",VLOOKUP(C75,Reference!$A$3:$B$188,2,FALSE)),"") -> 1600 | AN75: =IF(C75<>"",IF(VLOOKUP(C75,Reference!$I$3:$J$188,2,FALSE)=" ",0,VLOOKUP(C75,Reference!$I$3:$J$188,2,FALSE)),"") -> 10 | AO75: =IF(C75<>"",IF(VLOOKUP(C75,Reference!$M$3:$Q$188,5,FALSE)=" ",0,VLOOKUP(C75,Reference!$M$3:$Q$188,5,FALSE)),"") -> 0
C76: 4-Nitrophenol | M76: < | T76: =IF(C76<>"",IF(VLOOKUP(C76,Reference!$A$3:$B$188,2,FALSE)="","N/A",VLOOKUP(C76,Reference!$A$3:$B$188,2,FALSE)),"") -> 470 | AN76: =IF(C76<>"",IF(VLOOKUP(C76,Reference!$I$3:$J$188,2,FALSE)=" ",0,VLOOKUP(C76,Reference!$I$3:$J$188,2,FALSE)),"") -> 10 | AO76: =IF(C76<>"",IF(VLOOKUP(C76,Reference!$M$3:$Q$188,5,FALSE)=" ",0,VLOOKUP(C76,Reference!$M$3:$Q$188,5,FALSE)),"") -> 0
C77: p-Chloro-m-Cresol | M77: < | T77: =IF(C77<>"",IF(VLOOKUP(C77,Reference!$A$3:$B$188,2,FALSE)="","N/A",VLOOKUP(C77,Reference!$A$3:$B$188,2,FALSE)),"") -> 30 | AN77: =IF(C77<>"",IF(VLOOKUP(C77,Reference!$I$3:$J$188,2,FALSE)=" ",0,VLOOKUP(C77,Reference!$I$3:$J$188,2,FALSE)),"") -> 10 | AO77: =IF(C77<>"",IF(VLOOKUP(C77,Reference!$M$3:$Q$188,5,FALSE)=" ",0,VLOOKUP(C77,Reference!$M$3:$Q$188,5,FALSE)),"") -> 0
C78: Pentachlorophenol | M78: < | T78: =IF(C78<>"",IF(VLOOKUP(C78,Reference!$A$3:$B$188,2,FALSE)="","N/A",VLOOKUP(C78,Reference!$A$3:$B$188,2,FALSE)),"") -> 0.27 | AN78: =IF(C78<>"",IF(VLOOKUP(C78,Reference!$I$3:$J$188,2,FALSE)=" ",0,VLOOKUP(C78,Reference!$I$3:$J$188,2,FALSE)),"") -> 10 | AO78: =IF(C78<>"",IF(VLOOKUP(C78,Reference!$M$3:$Q$188,5,FALSE)=" ",0,VLOOKUP(C78,Reference!$M$3:$Q$188,5,FALSE)),"") -> 0
C79: Phenol | M79: < | T79: =IF(C79<>"",IF(VLOOKUP(C79,Reference!$A$3:$B$188,2,FALSE)="","N/A",VLOOKUP(C79,Reference!$A$3:$B$188,2,FALSE)),"") -> 10400 | AN79: =IF(C79<>"",IF(VLOOKUP(C79,Reference!$I$3:$J$188,2,FALSE)=" ",0,VLOOKUP(C79,Reference!$I$3:$J$188,2,FALSE)),"") -> 10 | AO79: =IF(C79<>"",IF(VLOOKUP(C79,Reference!$M$3:$Q$188,5,FALSE)=" ",0,VLOOKUP(C79,Reference!$M$3:$Q$188,5,FALSE)),"") -> 0
C80: 2,4,6-Trichlorophenol | M80: < | T80: =IF(C80<>"",IF(VLOOKUP(C80,Reference!$A$3:$B$188,2,FALSE)="","N/A",VLOOKUP(C80,Reference!$A$3:$B$188,2,FALSE)),"") -> 1.4 | AN80: =IF(C80<>"",IF(VLOOKUP(C80,Reference!$I$3:$J$188,2,FALSE)=" ",0,VLOOKUP(C80,Reference!$I$3:$J$188,2,FALSE)),"") -> 10 | AO80: =IF(C80<>"",IF(VLOOKUP(C80,Reference!$M$3:$Q$188,5,FALSE)=" ",0,VLOOKUP(C80,Reference!$M$3:$Q$188,5,FALSE)),"") -> 0
B81: Group 5 | C81: Acenaphthene | M81: < | T81: =IF(C81<>"",IF(VLOOKUP(C81,Reference!$A$3:$B$188,2,FALSE)="","N/A",VLOOKUP(C81,Reference!$A$3:$B$188,2,FALSE)),"") -> 17 | AN81: =IF(C81<>"",IF(VLOOKUP(C81,Reference!$I$3:$J$188,2,FALSE)=" ",0,VLOOKUP(C81,Reference!$I$3:$J$188,2,FALSE)),"") -> 2.5 | AO81: =IF(C81<>"",IF(VLOOKUP(C81,Reference!$M$3:$Q$188,5,FALSE)=" ",0,VLOOKUP(C81,Reference!$M$3:$Q$188,5,FALSE)),"") -> 0
C82: Acenaphthylene | M82: < | T82: =IF(C82<>"",IF(VLOOKUP(C82,Reference!$A$3:$B$188,2,FALSE)="","N/A",VLOOKUP(C82,Reference!$A$3:$B$188,2,FALSE)),"") -> N/A | X82: =IF(AND(C82<>"",N82<>"",$J$8<>"",$Z$7<>""),IF(T82<>"N/A",IF(AND(N82<=VALUE(AN82),M82="<"),"No (Value < QL)",IF($AP$9="No",IF(N82>=(0.5*T82),IF(AND(M82="<",N82=(0.5*T82)),"No","Yes"),"No"),IF(N82>=T82,IF(AND(M82="<",N82=T82),"No","Yes"),"No"))),"No"),"") ->  | AG82: =IF($N82<>"",IF(AND(X82="Yes",AC82<>""),IF(($N82/$AC82)>=0.5,"Establish Limits",IF(AND($AO82="Y",($N82/$AC82)>0.1),"Monitor",IF(AND($AO82<>"Y",($N82/$AC82)>0.25),"Monitor","No Limits/Monitoring"))),""),"") ->  | AN82: =IF(C82<>"",IF(VLOOKUP(C82,Reference!$I$3:$J$188,2,FALSE)=" ",0,VLOOKUP(C82,Reference!$I$3:$J$188,2,FALSE)),"") -> 2.5 | AO82: =IF(C82<>"",IF(VLOOKUP(C82,Reference!$M$3:$Q$188,5,FALSE)=" ",0,VLOOKUP(C82,Reference!$M$3:$Q$188,5,FALSE)),"") -> 0
C83: Anthracene | M83: < | T83: =IF(C83<>"",IF(VLOOKUP(C83,Reference!$A$3:$B$188,2,FALSE)="","N/A",VLOOKUP(C83,Reference!$A$3:$B$188,2,FALSE)),"") -> 8300 | AN83: =IF(C83<>"",IF(VLOOKUP(C83,Reference!$I$3:$J$188,2,FALSE)=" ",0,VLOOKUP(C83,Reference!$I$3:$J$188,2,FALSE)),"") -> 2.5 | AO83: =IF(C83<>"",IF(VLOOKUP(C83,Reference!$M$3:$Q$188,5,FALSE)=" ",0,VLOOKUP(C83,Reference!$M$3:$Q$188,5,FALSE)),"") -> 0
C84: Benzidine | M84: < | T84: =IF(C84<>"",IF(VLOOKUP(C84,Reference!$A$3:$B$188,2,FALSE)="","N/A",VLOOKUP(C84,Reference!$A$3:$B$188,2,FALSE)),"") -> 8.6e-05 | AN84: =IF(C84<>"",IF(VLOOKUP(C84,Reference!$I$3:$J$188,2,FALSE)=" ",0,VLOOKUP(C84,Reference!$I$3:$J$188,2,FALSE)),"") -> 50 | AO84: =IF(C84<>"",IF(VLOOKUP(C84,Reference!$M$3:$Q$188,5,FALSE)=" ",0,VLOOKUP(C84,Reference!$M$3:$Q$188,5,FALSE)),"") -> 0
C85: Benzo(a)Anthracene | M85: < | T85: =IF(C85<>"",IF(VLOOKUP(C85,Reference!$A$3:$B$188,2,FALSE)="","N/A",VLOOKUP(C85,Reference!$A$3:$B$188,2,FALSE)),"") -> 0.0038 | AN85: =IF(C85<>"",IF(VLOOKUP(C85,Reference!$I$3:$J$188,2,FALSE)=" ",0,VLOOKUP(C85,Reference!$I$3:$J$188,2,FALSE)),"") -> 2.5 | AO85: =IF(C85<>"",IF(VLOOKUP(C85,Reference!$M$3:$Q$188,5,FALSE)=" ",0,VLOOKUP(C85,Reference!$M$3:$Q$188,5,FALSE)),"") -> 0
C86: Benzo(a)Pyrene | M86: < | T86: =IF(C86<>"",IF(VLOOKUP(C86,Reference!$A$3:$B$188,2,FALSE)="","N/A",VLOOKUP(C86,Reference!$A$3:$B$188,2,FALSE)),"") -> 0.0038 | AN86: =IF(C86<>"",IF(VLOOKUP(C86,Reference!$I$3:$J$188,2,FALSE)=" ",0,VLOOKUP(C86,Reference!$I$3:$J$188,2,FALSE)),"") -> 2.5 | AO86: =IF(C86<>"",IF(VLOOKUP(C86,Reference!$M$3:$Q$188,5,FALSE)=" ",0,VLOOKUP(C86,Reference!$M$3:$Q$188,5,FALSE)),"") -> 0
C87: 3,4-Benzofluoranthene | M87: < | T87: =IF(C87<>"",IF(VLOOKUP(C87,Reference!$A$3:$B$188,2,FALSE)="","N/A",VLOOKUP(C87,Reference!$A$3:$B$188,2,FALSE)),"") -> 0.0038 | AN87: =IF(C87<>"",IF(VLOOKUP(C87,Reference!$I$3:$J$188,2,FALSE)=" ",0,VLOOKUP(C87,Reference!$I$3:$J$188,2,FALSE)),"") -> 2.5 | AO87: =IF(C87<>"",IF(VLOOKUP(C87,Reference!$M$3:$Q$188,5,FALSE)=" ",0,VLOOKUP(C87,Reference!$M$3:$Q$188,5,FALSE)),"") -> 0
C88: Benzo(ghi)Perylene | M88: < | T88: =IF(C88<>"",IF(VLOOKUP(C88,Reference!$A$3:$B$188,2,FALSE)="","N/A",VLOOKUP(C88,Reference!$A$3:$B$188,2,FALSE)),"") -> N/A | AN88: =IF(C88<>"",IF(VLOOKUP(C88,Reference!$I$3:$J$188,2,FALSE)=" ",0,VLOOKUP(C88,Reference!$I$3:$J$188,2,FALSE)),"") -> 2.5 | AO88: =IF(C88<>"",IF(VLOOKUP(C88,Reference!$M$3:$Q$188,5,FALSE)=" ",0,VLOOKUP(C88,Reference!$M$3:$Q$188,5,FALSE)),"") -> 0
C89: Benzo(k)Fluoranthene | M89: < | T89: =IF(C89<>"",IF(VLOOKUP(C89,Reference!$A$3:$B$188,2,FALSE)="","N/A",VLOOKUP(C89,Reference!$A$3:$B$188,2,FALSE)),"") -> 0.0038 | AN89: =IF(C89<>"",IF(VLOOKUP(C89,Reference!$I$3:$J$188,2,FALSE)=" ",0,VLOOKUP(C89,Reference!$I$3:$J$188,2,FALSE)),"") -> 2.5 | AO89: =IF(C89<>"",IF(VLOOKUP(C89,Reference!$M$3:$Q$188,5,FALSE)=" ",0,VLOOKUP(C89,Reference!$M$3:$Q$188,5,FALSE)),"") -> 0
C90: Bis(2-Chloroethoxy)Methane | M90: < | T90: =IF(C90<>"",IF(VLOOKUP(C90,Reference!$A$3:$B$188,2,FALSE)="","N/A",VLOOKUP(C90,Reference!$A$3:$B$188,2,FALSE)),"") -> N/A | AN90: =IF(C90<>"",IF(VLOOKUP(C90,Reference!$I$3:$J$188,2,FALSE)=" ",0,VLOOKUP(C90,Reference!$I$3:$J$188,2,FALSE)),"") -> 5 | AO90: =IF(C90<>"",IF(VLOOKUP(C90,Reference!$M$3:$Q$188,5,FALSE)=" ",0,VLOOKUP(C90,Reference!$M$3:$Q$188,5,FALSE)),"") -> 0
C91: Bis(2-Chloroethyl)Ether | M91: < | T91: =IF(C91<>"",IF(VLOOKUP(C91,Reference!$A$3:$B$188,2,FALSE)="","N/A",VLOOKUP(C91,Reference!$A$3:$B$188,2,FALSE)),"") -> 0.03 | AN91: =IF(C91<>"",IF(VLOOKUP(C91,Reference!$I$3:$J$188,2,FALSE)=" ",0,VLOOKUP(C91,Reference!$I$3:$J$188,2,FALSE)),"") -> 5 | AO91: =IF(C91<>"",IF(VLOOKUP(C91,Reference!$M$3:$Q$188,5,FALSE)=" ",0,VLOOKUP(C91,Reference!$M$3:$Q$188,5,FALSE)),"") -> 0
C92: Bis(2-Chloroisopropyl)Ether | M92: < | T92: =IF(C92<>"",IF(VLOOKUP(C92,Reference!$A$3:$B$188,2,FALSE)="","N/A",VLOOKUP(C92,Reference!$A$3:$B$188,2,FALSE)),"") -> 1400 | AN92: =IF(C92<>"",IF(VLOOKUP(C92,Reference!$I$3:$J$188,2,FALSE)=" ",0,VLOOKUP(C92,Reference!$I$3:$J$188,2,FALSE)),"") -> 5 | AO92: =IF(C92<>"",IF(VLOOKUP(C92,Reference!$M$3:$Q$188,5,FALSE)=" ",0,VLOOKUP(C92,Reference!$M$3:$Q$188,5,FALSE)),"") -> 0
C93: Bis(2-Ethylhexyl)Phthalate | M93: < | T93: =IF(C93<>"",IF(VLOOKUP(C93,Reference!$A$3:$B$188,2,FALSE)="","N/A",VLOOKUP(C93,Reference!$A$3:$B$188,2,FALSE)),"") -> 1.2 | AN93: =IF(C93<>"",IF(VLOOKUP(C93,Reference!$I$3:$J$188,2,FALSE)=" ",0,VLOOKUP(C93,Reference!$I$3:$J$188,2,FALSE)),"") -> 5 | AO93: =IF(C93<>"",IF(VLOOKUP(C93,Reference!$M$3:$Q$188,5,FALSE)=" ",0,VLOOKUP(C93,Reference!$M$3:$Q$188,5,FALSE)),"") -> 0
C94: 4-Bromophenyl Phenyl Ether | M94: < | T94: =IF(C94<>"",IF(VLOOKUP(C94,Reference!$A$3:$B$188,2,FALSE)="","N/A",VLOOKUP(C94,Reference!$A$3:$B$188,2,FALSE)),"") -> 54 | AN94: =IF(C94<>"",IF(VLOOKUP(C94,Reference!$I$3:$J$188,2,FALSE)=" ",0,VLOOKUP(C94,Reference!$I$3:$J$188,2,FALSE)),"") -> 5 | AO94: =IF(C94<>"",IF(VLOOKUP(C94,Reference!$M$3:$Q$188,5,FALSE)=" ",0,VLOOKUP(C94,Reference!$M$3:$Q$188,5,FALSE)),"") -> 0
C95: Butyl Benzyl Phthalate | M95: < | T95: =IF(C95<>"",IF(VLOOKUP(C95,Reference!$A$3:$B$188,2,FALSE)="","N/A",VLOOKUP(C95,Reference!$A$3:$B$188,2,FALSE)),"") -> 35 | AN95: =IF(C95<>"",IF(VLOOKUP(C95,Reference!$I$3:$J$188,2,FALSE)=" ",0,VLOOKUP(C95,Reference!$I$3:$J$188,2,FALSE)),"") -> 5 | AO95: =IF(C95<>"",IF(VLOOKUP(C95,Reference!$M$3:$Q$188,5,FALSE)=" ",0,VLOOKUP(C95,Reference!$M$3:$Q$188,5,FALSE)),"") -> 0
C96: 2-Chloronaphthalene | M96: < | T96: =IF(C96<>"",IF(VLOOKUP(C96,Reference!$A$3:$B$188,2,FALSE)="","N/A",VLOOKUP(C96,Reference!$A$3:$B$188,2,FALSE)),"") -> 1000 | AN96: =IF(C96<>"",IF(VLOOKUP(C96,Reference!$I$3:$J$188,2,FALSE)=" ",0,VLOOKUP(C96,Reference!$I$3:$J$188,2,FALSE)),"") -> 5 | AO96: =IF(C96<>"",IF(VLOOKUP(C96,Reference!$M$3:$Q$188,5,FALSE)=" ",0,VLOOKUP(C96,Reference!$M$3:$Q$188,5,FALSE)),"") -> 0
C97: 4-Chlorophenyl Phenyl Ether | M97: < | T97: =IF(C97<>"",IF(VLOOKUP(C97,Reference!$A$3:$B$188,2,FALSE)="","N/A",VLOOKUP(C97,Reference!$A$3:$B$188,2,FALSE)),"") -> N/A | AN97: =IF(C97<>"",IF(VLOOKUP(C97,Reference!$I$3:$J$188,2,FALSE)=" ",0,VLOOKUP(C97,Reference!$I$3:$J$188,2,FALSE)),"") -> 5 | AO97: =IF(C97<>"",IF(VLOOKUP(C97,Reference!$M$3:$Q$188,5,FALSE)=" ",0,VLOOKUP(C97,Reference!$M$3:$Q$188,5,FALSE)),"") -> 0
C98: Chrysene | M98: < | T98: =IF(C98<>"",IF(VLOOKUP(C98,Reference!$A$3:$B$188,2,FALSE)="","N/A",VLOOKUP(C98,Reference!$A$3:$B$188,2,FALSE)),"") -> 0.0038 | AN98: =IF(C98<>"",IF(VLOOKUP(C98,Reference!$I$3:$J$188,2,FALSE)=" ",0,VLOOKUP(C98,Reference!$I$3:$J$188,2,FALSE)),"") -> 2.5 | AO98: =IF(C98<>"",IF(VLOOKUP(C98,Reference!$M$3:$Q$188,5,FALSE)=" ",0,VLOOKUP(C98,Reference!$M$3:$Q$188,5,FALSE)),"") -> 0
C99: Dibenzo(a,h)Anthrancene | M99: < | T99: =IF(C99<>"",IF(VLOOKUP(C99,Reference!$A$3:$B$188,2,FALSE)="","N/A",VLOOKUP(C99,Reference!$A$3:$B$188,2,FALSE)),"") -> 0.0038 | AN99: =IF(C99<>"",IF(VLOOKUP(C99,Reference!$I$3:$J$188,2,FALSE)=" ",0,VLOOKUP(C99,Reference!$I$3:$J$188,2,FALSE)),"") -> 2.5 | AO99: =IF(C99<>"",IF(VLOOKUP(C99,Reference!$M$3:$Q$188,5,FALSE)=" ",0,VLOOKUP(C99,Reference!$M$3:$Q$188,5,FALSE)),"") -> 0
C100: 1,2-Dichlorobenzene | M100: < | T100: =IF(C100<>"",IF(VLOOKUP(C100,Reference!$A$3:$B$188,2,FALSE)="","N/A",VLOOKUP(C100,Reference!$A$3:$B$188,2,FALSE)),"") -> 160 | AN100: =IF(C100<>"",IF(VLOOKUP(C100,Reference!$I$3:$J$188,2,FALSE)=" ",0,VLOOKUP(C100,Reference!$I$3:$J$188,2,FALSE)),"") -> 0.5 | AO100: =IF(C100<>"",IF(VLOOKUP(C100,Reference!$M$3:$Q$188,5,FALSE)=" ",0,VLOOKUP(C100,Reference!$M$3:$Q$188,5,FALSE)),"") -> 0
C101: 1,3-Dichlorobenzene | M101: < | T101: =IF(C101<>"",IF(VLOOKUP(C101,Reference!$A$3:$B$188,2,FALSE)="","N/A",VLOOKUP(C101,Reference!$A$3:$B$188,2,FALSE)),"") -> 69 | AN101: =IF(C101<>"",IF(VLOOKUP(C101,Reference!$I$3:$J$188,2,FALSE)=" ",0,VLOOKUP(C101,Reference!$I$3:$J$188,2,FALSE)),"") -> 0.5 | AO101: =IF(C101<>"",IF(VLOOKUP(C101,Reference!$M$3:$Q$188,5,FALSE)=" ",0,VLOOKUP(C101,Reference!$M$3:$Q$188,5,FALSE)),"") -> 0
C102: 1,4-Dichlorobenzene | M102: < | T102: =IF(C102<>"",IF(VLOOKUP(C102,Reference!$A$3:$B$188,2,FALSE)="","N/A",VLOOKUP(C102,Reference!$A$3:$B$188,2,FALSE)),"") -> 150 | AN102: =IF(C102<>"",IF(VLOOKUP(C102,Reference!$I$3:$J$188,2,FALSE)=" ",0,VLOOKUP(C102,Reference!$I$3:$J$188,2,FALSE)),"") -> 0.5 | AO102: =IF(C102<>"",IF(VLOOKUP(C102,Reference!$M$3:$Q$188,5,FALSE)=" ",0,VLOOKUP(C102,Reference!$M$3:$Q$188,5,FALSE)),"") -> 0
C103: 3,3-Dichlorobenzidine | M103: < | T103: =IF(C103<>"",IF(VLOOKUP(C103,Reference!$A$3:$B$188,2,FALSE)="","N/A",VLOOKUP(C103,Reference!$A$3:$B$188,2,FALSE)),"") -> 0.021 | AN103: =IF(C103<>"",IF(VLOOKUP(C103,Reference!$I$3:$J$188,2,FALSE)=" ",0,VLOOKUP(C103,Reference!$I$3:$J$188,2,FALSE)),"") -> 5 | AO103: =IF(C103<>"",IF(VLOOKUP(C103,Reference!$M$3:$Q$188,5,FALSE)=" ",0,VLOOKUP(C103,Reference!$M$3:$Q$188,5,FALSE)),"") -> 0
C104: Diethyl Phthalate | M104: < | T104: =IF(C104<>"",IF(VLOOKUP(C104,Reference!$A$3:$B$188,2,FALSE)="","N/A",VLOOKUP(C104,Reference!$A$3:$B$188,2,FALSE)),"") -> 800 | AN104: =IF(C104<>"",IF(VLOOKUP(C104,Reference!$I$3:$J$188,2,FALSE)=" ",0,VLOOKUP(C104,Reference!$I$3:$J$188,2,FALSE)),"") -> 5 | AO104: =IF(C104<>"",IF(VLOOKUP(C104,Reference!$M$3:$Q$188,5,FALSE)=" ",0,VLOOKUP(C104,Reference!$M$3:$Q$188,5,FALSE)),"") -> 0
C105: Dimethyl Phthalate | M105: < | T105: =IF(C105<>"",IF(VLOOKUP(C105,Reference!$A$3:$B$188,2,FALSE)="","N/A",VLOOKUP(C105,Reference!$A$3:$B$188,2,FALSE)),"") -> 500 | AN105: =IF(C105<>"",IF(VLOOKUP(C105,Reference!$I$3:$J$188,2,FALSE)=" ",0,VLOOKUP(C105,Reference!$I$3:$J$188,2,FALSE)),"") -> 5 | AO105: =IF(C105<>"",IF(VLOOKUP(C105,Reference!$M$3:$Q$188,5,FALSE)=" ",0,VLOOKUP(C105,Reference!$M$3:$Q$188,5,FALSE)),"") -> 0
C106: Di-n-Butyl Phthalate | M106: < | T106: =IF(C106<>"",IF(VLOOKUP(C106,Reference!$A$3:$B$188,2,FALSE)="","N/A",VLOOKUP(C106,Reference!$A$3:$B$188,2,FALSE)),"") -> 21 | AN106: =IF(C106<>"",IF(VLOOKUP(C106,Reference!$I$3:$J$188,2,FALSE)=" ",0,VLOOKUP(C106,Reference!$I$3:$J$188,2,FALSE)),"") -> 5 | AO106: =IF(C106<>"",IF(VLOOKUP(C106,Reference!$M$3:$Q$188,5,FALSE)=" ",0,VLOOKUP(C106,Reference!$M$3:$Q$188,5,FALSE)),"") -> 0
C107: 2,4-Dinitrotoluene | M107: < | T107: =IF(C107<>"",IF(VLOOKUP(C107,Reference!$A$3:$B$188,2,FALSE)="","N/A",VLOOKUP(C107,Reference!$A$3:$B$188,2,FALSE)),"") -> 0.05 | AN107: =IF(C107<>"",IF(VLOOKUP(C107,Reference!$I$3:$J$188,2,FALSE)=" ",0,VLOOKUP(C107,Reference!$I$3:$J$188,2,FALSE)),"") -> 5 | AO107: =IF(C107<>"",IF(VLOOKUP(C107,Reference!$M$3:$Q$188,5,FALSE)=" ",0,VLOOKUP(C107,Reference!$M$3:$Q$188,5,FALSE)),"") -> 0
C108: 2,6-Dinitrotoluene | M108: < | T108: =IF(C108<>"",IF(VLOOKUP(C108,Reference!$A$3:$B$188,2,FALSE)="","N/A",VLOOKUP(C108,Reference!$A$3:$B$188,2,FALSE)),"") -> 0.05 | AN108: =IF(C108<>"",IF(VLOOKUP(C108,Reference!$I$3:$J$188,2,FALSE)=" ",0,VLOOKUP(C108,Reference!$I$3:$J$188,2,FALSE)),"") -> 5 | AO108: =IF(C108<>"",IF(VLOOKUP(C108,Reference!$M$3:$Q$188,5,FALSE)=" ",0,VLOOKUP(C108,Reference!$M$3:$Q$188,5,FALSE)),"") -> 0
C109: 1,4-Dioxane | M109: < | T109: =IF(C109<>"",IF(VLOOKUP(C109,Reference!$A$3:$B$188,2,FALSE)="","N/A",VLOOKUP(C109,Reference!$A$3:$B$188,2,FALSE)),"") -> N/A | AN109: =IF(C109<>"",IF(VLOOKUP(C109,Reference!$I$3:$J$188,2,FALSE)=" ",0,VLOOKUP(C109,Reference!$I$3:$J$188,2,FALSE)),"") -> 1 | AO109: =IF(C109<>"",IF(VLOOKUP(C109,Reference!$M$3:$Q$188,5,FALSE)=" ",0,VLOOKUP(C109,Reference!$M$3:$Q$188,5,FALSE)),"") -> 0 | AQ109: 10 | AR109: 100 | AS109: =IF(AND($Z$7<>"",N109<>""),IF(OR(AND($Z$7>0.1,N109>AQ109),(AND($Z$7<=0.1,N109>AR109))),"Monitor",""),"") ->  | AT109: =IF(OR(AP109="Establish Limits",AP109="Monitor"),AP109,IF(AND(AP109="No Limits/Monitoring",AS109="Monitor"),AS109,IF(AND(AP109="",AS109=""),"",IF(AND(AP109="",AS109="Monitor"),"Monitor",IF(AND(AP109="",AS109=""),"Monitor",""))))) -> 
C110: Di-n-Octyl Phthalate | M110: < | T110: =IF(C110<>"",IF(VLOOKUP(C110,Reference!$A$3:$B$188,2,FALSE)="","N/A",VLOOKUP(C110,Reference!$A$3:$B$188,2,FALSE)),"") -> N/A | AN110: =IF(C110<>"",IF(VLOOKUP(C110,Reference!$I$3:$J$188,2,FALSE)=" ",0,VLOOKUP(C110,Reference!$I$3:$J$188,2,FALSE)),"") -> 5 | AO110: =IF(C110<>"",IF(VLOOKUP(C110,Reference!$M$3:$Q$188,5,FALSE)=" ",0,VLOOKUP(C110,Reference!$M$3:$Q$188,5,FALSE)),"") -> 0
C111: 1,2-Diphenylhydrazine | M111: < | T111: =IF(C111<>"",IF(VLOOKUP(C111,Reference!$A$3:$B$188,2,FALSE)="","N/A",VLOOKUP(C111,Reference!$A$3:$B$188,2,FALSE)),"") -> 0.036 | AN111: =IF(C111<>"",IF(VLOOKUP(C111,Reference!$I$3:$J$188,2,FALSE)=" ",0,VLOOKUP(C111,Reference!$I$3:$J$188,2,FALSE)),"") -> 10 | AO111: =IF(C111<>"",IF(VLOOKUP(C111,Reference!$M$3:$Q$188,5,FALSE)=" ",0,VLOOKUP(C111,Reference!$M$3:$Q$188,5,FALSE)),"") -> 0
C112: Fluoranthene | M112: < | T112: =IF(C112<>"",IF(VLOOKUP(C112,Reference!$A$3:$B$188,2,FALSE)="","N/A",VLOOKUP(C112,Reference!$A$3:$B$188,2,FALSE)),"") -> 40 | AN112: =IF(C112<>"",IF(VLOOKUP(C112,Reference!$I$3:$J$188,2,FALSE)=" ",0,VLOOKUP(C112,Reference!$I$3:$J$188,2,FALSE)),"") -> 2.5 | AO112: =IF(C112<>"",IF(VLOOKUP(C112,Reference!$M$3:$Q$188,5,FALSE)=" ",0,VLOOKUP(C112,Reference!$M$3:$Q$188,5,FALSE)),"") -> 0
C113: Fluorene | M113: < | T113: =IF(C113<>"",IF(VLOOKUP(C113,Reference!$A$3:$B$188,2,FALSE)="","N/A",VLOOKUP(C113,Reference!$A$3:$B$188,2,FALSE)),"") -> 1100 | AN113: =IF(C113<>"",IF(VLOOKUP(C113,Reference!$I$3:$J$188,2,FALSE)=" ",0,VLOOKUP(C113,Reference!$I$3:$J$188,2,FALSE)),"") -> 2.5 | AO113: =IF(C113<>"",IF(VLOOKUP(C113,Reference!$M$3:$Q$188,5,FALSE)=" ",0,VLOOKUP(C113,Reference!$M$3:$Q$188,5,FALSE)),"") -> 0
C114: Hexachlorobenzene | M114: < | T114: =IF(C114<>"",IF(VLOOKUP(C114,Reference!$A$3:$B$188,2,FALSE)="","N/A",VLOOKUP(C114,Reference!$A$3:$B$188,2,FALSE)),"") -> 0.00028 | AN114: =IF(C114<>"",IF(VLOOKUP(C114,Reference!$I$3:$J$188,2,FALSE)=" ",0,VLOOKUP(C114,Reference!$I$3:$J$188,2,FALSE)),"") -> 5 | AO114: =IF(C114<>"",IF(VLOOKUP(C114,Reference!$M$3:$Q$188,5,FALSE)=" ",0,VLOOKUP(C114,Reference!$M$3:$Q$188,5,FALSE)),"") -> 0
C115: Hexachlorobutadiene | M115: < | T115: =IF(C115<>"",IF(VLOOKUP(C115,Reference!$A$3:$B$188,2,FALSE)="","N/A",VLOOKUP(C115,Reference!$A$3:$B$188,2,FALSE)),"") -> 0.44 | AN115: =IF(C115<>"",IF(VLOOKUP(C115,Reference!$I$3:$J$188,2,FALSE)=" ",0,VLOOKUP(C115,Reference!$I$3:$J$188,2,FALSE)),"") -> 0.5 | AO115: =IF(C115<>"",IF(VLOOKUP(C115,Reference!$M$3:$Q$188,5,FALSE)=" ",0,VLOOKUP(C115,Reference!$M$3:$Q$188,5,FALSE)),"") -> 0
C116: Hexachlorocyclopentadiene | M116: < | T116: =IF(C116<>"",IF(VLOOKUP(C116,Reference!$A$3:$B$188,2,FALSE)="","N/A",VLOOKUP(C116,Reference!$A$3:$B$188,2,FALSE)),"") -> 1 | AN116: =IF(C116<>"",IF(VLOOKUP(C116,Reference!$I$3:$J$188,2,FALSE)=" ",0,VLOOKUP(C116,Reference!$I$3:$J$188,2,FALSE)),"") -> 5 | AO116: =IF(C116<>"",IF(VLOOKUP(C116,Reference!$M$3:$Q$188,5,FALSE)=" ",0,VLOOKUP(C116,Reference!$M$3:$Q$188,5,FALSE)),"") -> 0
C117: Hexachloroethane | M117: < | T117: =IF(C117<>"",IF(VLOOKUP(C117,Reference!$A$3:$B$188,2,FALSE)="","N/A",VLOOKUP(C117,Reference!$A$3:$B$188,2,FALSE)),"") -> 1.4 | AN117: =IF(C117<>"",IF(VLOOKUP(C117,Reference!$I$3:$J$188,2,FALSE)=" ",0,VLOOKUP(C117,Reference!$I$3:$J$188,2,FALSE)),"") -> 5 | AO117: =IF(C117<>"",IF(VLOOKUP(C117,Reference!$M$3:$Q$188,5,FALSE)=" ",0,VLOOKUP(C117,Reference!$M$3:$Q$188,5,FALSE)),"") -> 0
C118: Indeno(1,2,3-cd)Pyrene | M118: < | T118: =IF(C118<>"",IF(VLOOKUP(C118,Reference!$A$3:$B$188,2,FALSE)="","N/A",VLOOKUP(C118,Reference!$A$3:$B$188,2,FALSE)),"") -> 0.0038 | AN118: =IF(C118<>"",IF(VLOOKUP(C118,Reference!$I$3:$J$188,2,FALSE)=" ",0,VLOOKUP(C118,Reference!$I$3:$J$188,2,FALSE)),"") -> 2.5 | AO118: =IF(C118<>"",IF(VLOOKUP(C118,Reference!$M$3:$Q$188,5,FALSE)=" ",0,VLOOKUP(C118,Reference!$M$3:$Q$188,5,FALSE)),"") -> 0
C119: Isophorone | M119: < | T119: =IF(C119<>"",IF(VLOOKUP(C119,Reference!$A$3:$B$188,2,FALSE)="","N/A",VLOOKUP(C119,Reference!$A$3:$B$188,2,FALSE)),"") -> 35 | AN119: =IF(C119<>"",IF(VLOOKUP(C119,Reference!$I$3:$J$188,2,FALSE)=" ",0,VLOOKUP(C119,Reference!$I$3:$J$188,2,FALSE)),"") -> 5 | AO119: =IF(C119<>"",IF(VLOOKUP(C119,Reference!$M$3:$Q$188,5,FALSE)=" ",0,VLOOKUP(C119,Reference!$M$3:$Q$188,5,FALSE)),"") -> 0
C120: Naphthalene | M120: < | T120: =IF(C120<>"",IF(VLOOKUP(C120,Reference!$A$3:$B$188,2,FALSE)="","N/A",VLOOKUP(C120,Reference!$A$3:$B$188,2,FALSE)),"") -> 43 | AN120: =IF(C120<>"",IF(VLOOKUP(C120,Reference!$I$3:$J$188,2,FALSE)=" ",0,VLOOKUP(C120,Reference!$I$3:$J$188,2,FALSE)),"") -> 0.5 | AO120: =IF(C120<>"",IF(VLOOKUP(C120,Reference!$M$3:$Q$188,5,FALSE)=" ",0,VLOOKUP(C120,Reference!$M$3:$Q$188,5,FALSE)),"") -> 0
C121: Nitrobenzene | M121: < | T121: =IF(C121<>"",IF(VLOOKUP(C121,Reference!$A$3:$B$188,2,FALSE)="","N/A",VLOOKUP(C121,Reference!$A$3:$B$188,2,FALSE)),"") -> 17 | AN121: =IF(C121<>"",IF(VLOOKUP(C121,Reference!$I$3:$J$188,2,FALSE)=" ",0,VLOOKUP(C121,Reference!$I$3:$J$188,2,FALSE)),"") -> 5 | AO121: =IF(C121<>"",IF(VLOOKUP(C121,Reference!$M$3:$Q$188,5,FALSE)=" ",0,VLOOKUP(C121,Reference!$M$3:$Q$188,5,FALSE)),"") -> 0
C122: n-Nitrosodimethylamine | M122: < | T122: =IF(C122<>"",IF(VLOOKUP(C122,Reference!$A$3:$B$188,2,FALSE)="","N/A",VLOOKUP(C122,Reference!$A$3:$B$188,2,FALSE)),"") -> 0.00069 | AN122: =IF(C122<>"",IF(VLOOKUP(C122,Reference!$I$3:$J$188,2,FALSE)=" ",0,VLOOKUP(C122,Reference!$I$3:$J$188,2,FALSE)),"") -> 5 | AO122: =IF(C122<>"",IF(VLOOKUP(C122,Reference!$M$3:$Q$188,5,FALSE)=" ",0,VLOOKUP(C122,Reference!$M$3:$Q$188,5,FALSE)),"") -> 0
C123: n-Nitrosodi-n-Propylamine | M123: < | T123: =IF(C123<>"",IF(VLOOKUP(C123,Reference!$A$3:$B$188,2,FALSE)="","N/A",VLOOKUP(C123,Reference!$A$3:$B$188,2,FALSE)),"") -> 0.005 | AN123: =IF(C123<>"",IF(VLOOKUP(C123,Reference!$I$3:$J$188,2,FALSE)=" ",0,VLOOKUP(C123,Reference!$I$3:$J$188,2,FALSE)),"") -> 5 | AO123: =IF(C123<>"",IF(VLOOKUP(C123,Reference!$M$3:$Q$188,5,FALSE)=" ",0,VLOOKUP(C123,Reference!$M$3:$Q$188,5,FALSE)),"") -> 0
C124: n-Nitrosodiphenylamine | M124: < | T124: =IF(C124<>"",IF(VLOOKUP(C124,Reference!$A$3:$B$188,2,FALSE)="","N/A",VLOOKUP(C124,Reference!$A$3:$B$188,2,FALSE)),"") -> 3.3 | AN124: =IF(C124<>"",IF(VLOOKUP(C124,Reference!$I$3:$J$188,2,FALSE)=" ",0,VLOOKUP(C124,Reference!$I$3:$J$188,2,FALSE)),"") -> 5 | AO124: =IF(C124<>"",IF(VLOOKUP(C124,Reference!$M$3:$Q$188,5,FALSE)=" ",0,VLOOKUP(C124,Reference!$M$3:$Q$188,5,FALSE)),"") -> 0
C125: Phenanthrene | M125: < | T125: =IF(C125<>"",IF(VLOOKUP(C125,Reference!$A$3:$B$188,2,FALSE)="","N/A",VLOOKUP(C125,Reference!$A$3:$B$188,2,FALSE)),"") -> 1 | AN125: =IF(C125<>"",IF(VLOOKUP(C125,Reference!$I$3:$J$188,2,FALSE)=" ",0,VLOOKUP(C125,Reference!$I$3:$J$188,2,FALSE)),"") -> 2.5 | AO125: =IF(C125<>"",IF(VLOOKUP(C125,Reference!$M$3:$Q$188,5,FALSE)=" ",0,VLOOKUP(C125,Reference!$M$3:$Q$188,5,FALSE)),"") -> 0
C126: Pyrene | M126: < | T126: =IF(C126<>"",IF(VLOOKUP(C126,Reference!$A$3:$B$188,2,FALSE)="","N/A",VLOOKUP(C126,Reference!$A$3:$B$188,2,FALSE)),"") -> 830 | AN126: =IF(C126<>"",IF(VLOOKUP(C126,Reference!$I$3:$J$188,2,FALSE)=" ",0,VLOOKUP(C126,Reference!$I$3:$J$188,2,FALSE)),"") -> 2.5 | AO126: =IF(C126<>"",IF(VLOOKUP(C126,Reference!$M$3:$Q$188,5,FALSE)=" ",0,VLOOKUP(C126,Reference!$M$3:$Q$188,5,FALSE)),"") -> 0
C127: 1,2,4-Trichlorobenzene | M127: < | T127: =IF(C127<>"",IF(VLOOKUP(C127,Reference!$A$3:$B$188,2,FALSE)="","N/A",VLOOKUP(C127,Reference!$A$3:$B$188,2,FALSE)),"") -> 26 | AN127: =IF(C127<>"",IF(VLOOKUP(C127,Reference!$I$3:$J$188,2,FALSE)=" ",0,VLOOKUP(C127,Reference!$I$3:$J$188,2,FALSE)),"") -> 0.5 | AO127: =IF(C127<>"",IF(VLOOKUP(C127,Reference!$M$3:$Q$188,5,FALSE)=" ",0,VLOOKUP(C127,Reference!$M$3:$Q$188,5,FALSE)),"") -> 0
B128: Group 6 | C128: Aldrin | M128: < | T128: =IF(C128<>"",IF(VLOOKUP(C128,Reference!$A$3:$B$188,2,FALSE)="","N/A",VLOOKUP(C128,Reference!$A$3:$B$188,2,FALSE)),"") -> 4.9e-05 | AN128: =IF(C128<>"",IF(VLOOKUP(C128,Reference!$I$3:$J$188,2,FALSE)=" ",0,VLOOKUP(C128,Reference!$I$3:$J$188,2,FALSE)),"") -> 0.05 | AO128: =IF(C128<>"",IF(VLOOKUP(C128,Reference!$M$3:$Q$188,5,FALSE)=" ",0,VLOOKUP(C128,Reference!$M$3:$Q$188,5,FALSE)),"") -> 0
C129: alpha-BHC | M129: < | T129: =IF(C129<>"",IF(VLOOKUP(C129,Reference!$A$3:$B$188,2,FALSE)="","N/A",VLOOKUP(C129,Reference!$A$3:$B$188,2,FALSE)),"") -> 0.0026 | AN129: =IF(C129<>"",IF(VLOOKUP(C129,Reference!$I$3:$J$188,2,FALSE)=" ",0,VLOOKUP(C129,Reference!$I$3:$J$188,2,FALSE)),"") -> 0.05 | AO129: =IF(C129<>"",IF(VLOOKUP(C129,Reference!$M$3:$Q$188,5,FALSE)=" ",0,VLOOKUP(C129,Reference!$M$3:$Q$188,5,FALSE)),"") -> 0
C130: beta-BHC | M130: < | T130: =IF(C130<>"",IF(VLOOKUP(C130,Reference!$A$3:$B$188,2,FALSE)="","N/A",VLOOKUP(C130,Reference!$A$3:$B$188,2,FALSE)),"") -> 0.0091 | AN130: =IF(C130<>"",IF(VLOOKUP(C130,Reference!$I$3:$J$188,2,FALSE)=" ",0,VLOOKUP(C130,Reference!$I$3:$J$188,2,FALSE)),"") -> 0.05 | AO130: =IF(C130<>"",IF(VLOOKUP(C130,Reference!$M$3:$Q$188,5,FALSE)=" ",0,VLOOKUP(C130,Reference!$M$3:$Q$188,5,FALSE)),"") -> 0
C131: gamma-BHC | M131: < | T131: =IF(C131<>"",IF(VLOOKUP(C131,Reference!$A$3:$B$188,2,FALSE)="","N/A",VLOOKUP(C131,Reference!$A$3:$B$188,2,FALSE)),"") -> 0.098 | AN131: =IF(C131<>"",IF(VLOOKUP(C131,Reference!$I$3:$J$188,2,FALSE)=" ",0,VLOOKUP(C131,Reference!$I$3:$J$188,2,FALSE)),"") -> 0.05 | AO131: =IF(C131<>"",IF(VLOOKUP(C131,Reference!$M$3:$Q$188,5,FALSE)=" ",0,VLOOKUP(C131,Reference!$M$3:$Q$188,5,FALSE)),"") -> 0
C132: delta BHC | M132: < | T132: =IF(C132<>"",IF(VLOOKUP(C132,Reference!$A$3:$B$188,2,FALSE)="","N/A",VLOOKUP(C132,Reference!$A$3:$B$188,2,FALSE)),"") -> N/A | AN132: =IF(C132<>"",IF(VLOOKUP(C132,Reference!$I$3:$J$188,2,FALSE)=" ",0,VLOOKUP(C132,Reference!$I$3:$J$188,2,FALSE)),"") -> 0.05 | AO132: =IF(C132<>"",IF(VLOOKUP(C132,Reference!$M$3:$Q$188,5,FALSE)=" ",0,VLOOKUP(C132,Reference!$M$3:$Q$188,5,FALSE)),"") -> 0
C133: Chlordane | M133: < | T133: =IF(C133<>"",IF(VLOOKUP(C133,Reference!$A$3:$B$188,2,FALSE)="","N/A",VLOOKUP(C133,Reference!$A$3:$B$188,2,FALSE)),"") -> 0.0008 | AN133: =IF(C133<>"",IF(VLOOKUP(C133,Reference!$I$3:$J$188,2,FALSE)=" ",0,VLOOKUP(C133,Reference!$I$3:$J$188,2,FALSE)),"") -> 1 | AO133: =IF(C133<>"",IF(VLOOKUP(C133,Reference!$M$3:$Q$188,5,FALSE)=" ",0,VLOOKUP(C133,Reference!$M$3:$Q$188,5,FALSE)),"") -> 0
C134: 4,4-DDT | M134: < | T134: =IF(C134<>"",IF(VLOOKUP(C134,Reference!$A$3:$B$188,2,FALSE)="","N/A",VLOOKUP(C134,Reference!$A$3:$B$188,2,FALSE)),"") -> 0.00022 | AN134: =IF(C134<>"",IF(VLOOKUP(C134,Reference!$I$3:$J$188,2,FALSE)=" ",0,VLOOKUP(C134,Reference!$I$3:$J$188,2,FALSE)),"") -> 0.05 | AO134: =IF(C134<>"",IF(VLOOKUP(C134,Reference!$M$3:$Q$188,5,FALSE)=" ",0,VLOOKUP(C134,Reference!$M$3:$Q$188,5,FALSE)),"") -> 0
C135: 4,4-DDE | M135: < | T135: =IF(C135<>"",IF(VLOOKUP(C135,Reference!$A$3:$B$188,2,FALSE)="","N/A",VLOOKUP(C135,Reference!$A$3:$B$188,2,FALSE)),"") -> 0.00022 | AN135: =IF(C135<>"",IF(VLOOKUP(C135,Reference!$I$3:$J$188,2,FALSE)=" ",0,VLOOKUP(C135,Reference!$I$3:$J$188,2,FALSE)),"") -> 0.05 | AO135: =IF(C135<>"",IF(VLOOKUP(C135,Reference!$M$3:$Q$188,5,FALSE)=" ",0,VLOOKUP(C135,Reference!$M$3:$Q$188,5,FALSE)),"") -> 0
C136: 4,4-DDD | M136: < | T136: =IF(C136<>"",IF(VLOOKUP(C136,Reference!$A$3:$B$188,2,FALSE)="","N/A",VLOOKUP(C136,Reference!$A$3:$B$188,2,FALSE)),"") -> 0.00031 | AN136: =IF(C136<>"",IF(VLOOKUP(C136,Reference!$I$3:$J$188,2,FALSE)=" ",0,VLOOKUP(C136,Reference!$I$3:$J$188,2,FALSE)),"") -> 0.05 | AO136: =IF(C136<>"",IF(VLOOKUP(C136,Reference!$M$3:$Q$188,5,FALSE)=" ",0,VLOOKUP(C136,Reference!$M$3:$Q$188,5,FALSE)),"") -> 0
C137: Dieldrin | M137: < | T137: =IF(C137<>"",IF(VLOOKUP(C137,Reference!$A$3:$B$188,2,FALSE)="","N/A",VLOOKUP(C137,Reference!$A$3:$B$188,2,FALSE)),"") -> 5.2e-05 | AN137: =IF(C137<>"",IF(VLOOKUP(C137,Reference!$I$3:$J$188,2,FALSE)=" ",0,VLOOKUP(C137,Reference!$I$3:$J$188,2,FALSE)),"") -> 0.05 | AO137: =IF(C137<>"",IF(VLOOKUP(C137,Reference!$M$3:$Q$188,5,FALSE)=" ",0,VLOOKUP(C137,Reference!$M$3:$Q$188,5,FALSE)),"") -> 0
C138: alpha-Endosulfan | M138: < | T138: =IF(C138<>"",IF(VLOOKUP(C138,Reference!$A$3:$B$188,2,FALSE)="","N/A",VLOOKUP(C138,Reference!$A$3:$B$188,2,FALSE)),"") -> 0.056 | AN138: =IF(C138<>"",IF(VLOOKUP(C138,Reference!$I$3:$J$188,2,FALSE)=" ",0,VLOOKUP(C138,Reference!$I$3:$J$188,2,FALSE)),"") -> 0.05 | AO138: =IF(C138<>"",IF(VLOOKUP(C138,Reference!$M$3:$Q$188,5,FALSE)=" ",0,VLOOKUP(C138,Reference!$M$3:$Q$188,5,FALSE)),"") -> 0
C139: beta-Endosulfan | M139: < | T139: =IF(C139<>"",IF(VLOOKUP(C139,Reference!$A$3:$B$188,2,FALSE)="","N/A",VLOOKUP(C139,Reference!$A$3:$B$188,2,FALSE)),"") -> 0.056 | AN139: =IF(C139<>"",IF(VLOOKUP(C139,Reference!$I$3:$J$188,2,FALSE)=" ",0,VLOOKUP(C139,Reference!$I$3:$J$188,2,FALSE)),"") -> 0.05 | AO139: =IF(C139<>"",IF(VLOOKUP(C139,Reference!$M$3:$Q$188,5,FALSE)=" ",0,VLOOKUP(C139,Reference!$M$3:$Q$188,5,FALSE)),"") -> 0
C140: Endosulfan Sulfate | M140: < | T140: =IF(C140<>"",IF(VLOOKUP(C140,Reference!$A$3:$B$188,2,FALSE)="","N/A",VLOOKUP(C140,Reference!$A$3:$B$188,2,FALSE)),"") -> N/A | AN140: =IF(C140<>"",IF(VLOOKUP(C140,Reference!$I$3:$J$188,2,FALSE)=" ",0,VLOOKUP(C140,Reference!$I$3:$J$188,2,FALSE)),"") -> 0.05 | AO140: =IF(C140<>"",IF(VLOOKUP(C140,Reference!$M$3:$Q$188,5,FALSE)=" ",0,VLOOKUP(C140,Reference!$M$3:$Q$188,5,FALSE)),"") -> 0
C141: Endrin | M141: < | T141: =IF(C141<>"",IF(VLOOKUP(C141,Reference!$A$3:$B$188,2,FALSE)="","N/A",VLOOKUP(C141,Reference!$A$3:$B$188,2,FALSE)),"") -> 0.036 | AN141: =IF(C141<>"",IF(VLOOKUP(C141,Reference!$I$3:$J$188,2,FALSE)=" ",0,VLOOKUP(C141,Reference!$I$3:$J$188,2,FALSE)),"") -> 0.05 | AO141: =IF(C141<>"",IF(VLOOKUP(C141,Reference!$M$3:$Q$188,5,FALSE)=" ",0,VLOOKUP(C141,Reference!$M$3:$Q$188,5,FALSE)),"") -> 0
C142: Endrin Aldehyde | M142: < | T142: =IF(C142<>"",IF(VLOOKUP(C142,Reference!$A$3:$B$188,2,FALSE)="","N/A",VLOOKUP(C142,Reference!$A$3:$B$188,2,FALSE)),"") -> 0.29 | AN142: =IF(C142<>"",IF(VLOOKUP(C142,Reference!$I$3:$J$188,2,FALSE)=" ",0,VLOOKUP(C142,Reference!$I$3:$J$188,2,FALSE)),"") -> 0.05 | AO142: =IF(C142<>"",IF(VLOOKUP(C142,Reference!$M$3:$Q$188,5,FALSE)=" ",0,VLOOKUP(C142,Reference!$M$3:$Q$188,5,FALSE)),"") -> 0
C143: Heptachlor | M143: < | T143: =IF(C143<>"",IF(VLOOKUP(C143,Reference!$A$3:$B$188,2,FALSE)="","N/A",VLOOKUP(C143,Reference!$A$3:$B$188,2,FALSE)),"") -> 7.9e-05 | AN143: =IF(C143<>"",IF(VLOOKUP(C143,Reference!$I$3:$J$188,2,FALSE)=" ",0,VLOOKUP(C143,Reference!$I$3:$J$188,2,FALSE)),"") -> 0.05 | AO143: =IF(C143<>"",IF(VLOOKUP(C143,Reference!$M$3:$Q$188,5,FALSE)=" ",0,VLOOKUP(C143,Reference!$M$3:$Q$188,5,FALSE)),"") -> 0
C144: Heptachlor Epoxide | M144: < | T144: =IF(C144<>"",IF(VLOOKUP(C144,Reference!$A$3:$B$188,2,FALSE)="","N/A",VLOOKUP(C144,Reference!$A$3:$B$188,2,FALSE)),"") -> 3.9e-05 | AN144: =IF(C144<>"",IF(VLOOKUP(C144,Reference!$I$3:$J$188,2,FALSE)=" ",0,VLOOKUP(C144,Reference!$I$3:$J$188,2,FALSE)),"") -> 0.05 | AO144: =IF(C144<>"",IF(VLOOKUP(C144,Reference!$M$3:$Q$188,5,FALSE)=" ",0,VLOOKUP(C144,Reference!$M$3:$Q$188,5,FALSE)),"") -> 0
C145: PCB-1242 | M145: < | T145: =IF(C145<>"",IF(VLOOKUP(C145,Reference!$A$3:$B$188,2,FALSE)="","N/A",VLOOKUP(C145,Reference!$A$3:$B$188,2,FALSE)),"") -> N/A | AO145: =IF(C145<>"",IF(VLOOKUP(C145,Reference!$M$3:$Q$188,5,FALSE)=" ",0,VLOOKUP(C145,Reference!$M$3:$Q$188,5,FALSE)),"") -> 0
C146: PCB-1254 | M146: < | T146: =IF(C146<>"",IF(VLOOKUP(C146,Reference!$A$3:$B$188,2,FALSE)="","N/A",VLOOKUP(C146,Reference!$A$3:$B$188,2,FALSE)),"") -> N/A | X146: =IF(AND(C146<>"",N146<>"",$J$8<>"",$Z$7<>""),IF(T146<>"N/A",IF(AND(N146<=VALUE(AN146),M146="<"),"No (Value < QL)",IF($AP$9="No",IF(N146>=(0.5*T146),IF(AND(M146="<",N146=(0.5*T146)),"No","Yes"),"No"),IF(N146>=T146,IF(AND(M146="<",N146=T146),"No","Yes"),"No"))),"No"),"") ->  | AG146: =IF($N146<>"",IF(AND(X146="Yes",AC146<>""),IF(($N146/$AC146)>=0.5,"Establish Limits",IF(AND($AO146="Y",($N146/$AC146)>0.1),"Monitor",IF(AND($AO146<>"Y",($N146/$AC146)>0.25),"Monitor","No Limits/Monitoring"))),""),"") ->  | AO146: =IF(C146<>"",IF(VLOOKUP(C146,Reference!$M$3:$Q$188,5,FALSE)=" ",0,VLOOKUP(C146,Reference!$M$3:$Q$188,5,FALSE)),"") -> 0
C147: PCB-1221 | M147: < | T147: =IF(C147<>"",IF(VLOOKUP(C147,Reference!$A$3:$B$188,2,FALSE)="","N/A",VLOOKUP(C147,Reference!$A$3:$B$188,2,FALSE)),"") -> N/A | AO147: =IF(C147<>"",IF(VLOOKUP(C147,Reference!$M$3:$Q$188,5,FALSE)=" ",0,VLOOKUP(C147,Reference!$M$3:$Q$188,5,FALSE)),"") -> 0
C148: PCB-1232 | M148: < | T148: =IF(C148<>"",IF(VLOOKUP(C148,Reference!$A$3:$B$188,2,FALSE)="","N/A",VLOOKUP(C148,Reference!$A$3:$B$188,2,FALSE)),"") -> N/A | AO148: =IF(C148<>"",IF(VLOOKUP(C148,Reference!$M$3:$Q$188,5,FALSE)=" ",0,VLOOKUP(C148,Reference!$M$3:$Q$188,5,FALSE)),"") -> 0
C149: PCB-1248 | M149: < | T149: =IF(C149<>"",IF(VLOOKUP(C149,Reference!$A$3:$B$188,2,FALSE)="","N/A",VLOOKUP(C149,Reference!$A$3:$B$188,2,FALSE)),"") -> N/A | AO149: =IF(C149<>"",IF(VLOOKUP(C149,Reference!$M$3:$Q$188,5,FALSE)=" ",0,VLOOKUP(C149,Reference!$M$3:$Q$188,5,FALSE)),"") -> 0
C150: PCB-1260 | M150: < | T150: =IF(C150<>"",IF(VLOOKUP(C150,Reference!$A$3:$B$188,2,FALSE)="","N/A",VLOOKUP(C150,Reference!$A$3:$B$188,2,FALSE)),"") -> N/A | AO150: =IF(C150<>"",IF(VLOOKUP(C150,Reference!$M$3:$Q$188,5,FALSE)=" ",0,VLOOKUP(C150,Reference!$M$3:$Q$188,5,FALSE)),"") -> 0
C151: PCB-1016 | M151: < | T151: =IF(C151<>"",IF(VLOOKUP(C151,Reference!$A$3:$B$188,2,FALSE)="","N/A",VLOOKUP(C151,Reference!$A$3:$B$188,2,FALSE)),"") -> N/A | AO151: =IF(C151<>"",IF(VLOOKUP(C151,Reference!$M$3:$Q$188,5,FALSE)=" ",0,VLOOKUP(C151,Reference!$M$3:$Q$188,5,FALSE)),"") -> 0
C152: Toxaphene | M152: < | T152: =IF(C152<>"",IF(VLOOKUP(C152,Reference!$A$3:$B$188,2,FALSE)="","N/A",VLOOKUP(C152,Reference!$A$3:$B$188,2,FALSE)),"") -> 0.0002 | AN152: =IF(C152<>"",IF(VLOOKUP(C152,Reference!$I$3:$J$188,2,FALSE)=" ",0,VLOOKUP(C152,Reference!$I$3:$J$188,2,FALSE)),"") -> 0.5 | AO152: =IF(C152<>"",IF(VLOOKUP(C152,Reference!$M$3:$Q$188,5,FALSE)=" ",0,VLOOKUP(C152,Reference!$M$3:$Q$188,5,FALSE)),"") -> 0
C153: 2,3,7,8-TCDD | M153: < | T153: =IF(C153<>"",IF(VLOOKUP(C153,Reference!$A$3:$B$188,2,FALSE)="","N/A",VLOOKUP(C153,Reference!$A$3:$B$188,2,FALSE)),"") -> 5e-09 | AN153: =IF(C153<>"",IF(VLOOKUP(C153,Reference!$I$3:$J$188,2,FALSE)=" ",0,VLOOKUP(C153,Reference!$I$3:$J$188,2,FALSE)),"") -> 5e-06 | AO153: =IF(C153<>"",IF(VLOOKUP(C153,Reference!$M$3:$Q$188,5,FALSE)=" ",0,VLOOKUP(C153,Reference!$M$3:$Q$188,5,FALSE)),"") -> 0
B154: Group 7 | C154: Gross Alpha (pCi/L) | M154: < | T154: =IF(C154<>"",IF(VLOOKUP(C154,Reference!$A$3:$B$188,2,FALSE)="","N/A",VLOOKUP(C154,Reference!$A$3:$B$188,2,FALSE)),"") -> N/A | AN154: =IF(C154<>"",IF(VLOOKUP(C154,Reference!$I$3:$J$188,2,FALSE)=" ",0,VLOOKUP(C154,Reference!$I$3:$J$188,2,FALSE)),"") -> 3 | AO154: =IF(C154<>"",IF(VLOOKUP(C154,Reference!$M$3:$Q$188,5,FALSE)=" ",0,VLOOKUP(C154,Reference!$M$3:$Q$188,5,FALSE)),"") -> 0
C155: Total Beta (pCi/L) | M155: < | T155: =IF(C155<>"",IF(VLOOKUP(C155,Reference!$A$3:$B$188,2,FALSE)="","N/A",VLOOKUP(C155,Reference!$A$3:$B$188,2,FALSE)),"") -> N/A | AN155: =IF(C155<>"",IF(VLOOKUP(C155,Reference!$I$3:$J$188,2,FALSE)=" ",0,VLOOKUP(C155,Reference!$I$3:$J$188,2,FALSE)),"") -> 4 | AO155: =IF(C155<>"",IF(VLOOKUP(C155,Reference!$M$3:$Q$188,5,FALSE)=" ",0,VLOOKUP(C155,Reference!$M$3:$Q$188,5,FALSE)),"") -> 0
C156: Radium 226/228 (pCi/L) | M156: < | T156: =IF(C156<>"",IF(VLOOKUP(C156,Reference!$A$3:$B$188,2,FALSE)="","N/A",VLOOKUP(C156,Reference!$A$3:$B$188,2,FALSE)),"") -> N/A | AN156: =IF(C156<>"",IF(VLOOKUP(C156,Reference!$I$3:$J$188,2,FALSE)=" ",0,VLOOKUP(C156,Reference!$I$3:$J$188,2,FALSE)),"") -> 1 | AO156: =IF(C156<>"",IF(VLOOKUP(C156,Reference!$M$3:$Q$188,5,FALSE)=" ",0,VLOOKUP(C156,Reference!$M$3:$Q$188,5,FALSE)),"") -> 0
C157: Total Strontium | M157: < | T157: =IF(C157<>"",IF(VLOOKUP(C157,Reference!$A$3:$B$188,2,FALSE)="","N/A",VLOOKUP(C157,Reference!$A$3:$B$188,2,FALSE)),"") -> 4000 | AN157: =IF(C157<>"",IF(VLOOKUP(C157,Reference!$I$3:$J$188,2,FALSE)=" ",0,VLOOKUP(C157,Reference!$I$3:$J$188,2,FALSE)),"") -> 10 | AO157: =IF(C157<>"",IF(VLOOKUP(C157,Reference!$M$3:$Q$188,5,FALSE)=" ",0,VLOOKUP(C157,Reference!$M$3:$Q$188,5,FALSE)),"") -> Y
C158: Total Uranium | M158: < | T158: =IF(C158<>"",IF(VLOOKUP(C158,Reference!$A$3:$B$188,2,FALSE)="","N/A",VLOOKUP(C158,Reference!$A$3:$B$188,2,FALSE)),"") -> N/A | AN158: =IF(C158<>"",IF(VLOOKUP(C158,Reference!$I$3:$J$188,2,FALSE)=" ",0,VLOOKUP(C158,Reference!$I$3:$J$188,2,FALSE)),"") -> 2 | AO158: =IF(C158<>"",IF(VLOOKUP(C158,Reference!$M$3:$Q$188,5,FALSE)=" ",0,VLOOKUP(C158,Reference!$M$3:$Q$188,5,FALSE)),"") -> Y
T159: =IF(C159<>"",IF(VLOOKUP(C159,Reference!$A$3:$B$188,2,FALSE)="","N/A",VLOOKUP(C159,Reference!$A$3:$B$188,2,FALSE)),"") ->  | AN159: =IF(C159<>"",IF(VLOOKUP(C159,Reference!$I$3:$J$188,2,FALSE)=" ",0,VLOOKUP(C159,Reference!$I$3:$J$188,2,FALSE)),"") ->  | AO159: =IF(C159<>"",IF(VLOOKUP(C159,Reference!$M$3:$Q$188,5,FALSE)=" ",0,VLOOKUP(C159,Reference!$M$3:$Q$188,5,FALSE)),"") -> 
T160: =IF(C160<>"",IF(VLOOKUP(C160,Reference!$A$3:$B$188,2,FALSE)="","N/A",VLOOKUP(C160,Reference!$A$3:$B$188,2,FALSE)),"") ->  | AN160: =IF(C160<>"",IF(VLOOKUP(C160,Reference!$I$3:$J$188,2,FALSE)=" ",0,VLOOKUP(C160,Reference!$I$3:$J$188,2,FALSE)),"") ->  | AO160: =IF(C160<>"",IF(VLOOKUP(C160,Reference!$M$3:$Q$188,5,FALSE)=" ",0,VLOOKUP(C160,Reference!$M$3:$Q$188,5,FALSE)),"") -> 
T161: =IF(C161<>"",IF(VLOOKUP(C161,Reference!$A$3:$B$188,2,FALSE)="","N/A",VLOOKUP(C161,Reference!$A$3:$B$188,2,FALSE)),"") ->  | AN161: =IF(C161<>"",IF(VLOOKUP(C161,Reference!$I$3:$J$188,2,FALSE)=" ",0,VLOOKUP(C161,Reference!$I$3:$J$188,2,FALSE)),"") ->  | AO161: =IF(C161<>"",IF(VLOOKUP(C161,Reference!$M$3:$Q$188,5,FALSE)=" ",0,VLOOKUP(C161,Reference!$M$3:$Q$188,5,FALSE)),"") -> 
T162: =IF(C162<>"",IF(VLOOKUP(C162,Reference!$A$3:$B$188,2,FALSE)="","N/A",VLOOKUP(C162,Reference!$A$3:$B$188,2,FALSE)),"") ->  | AN162: =IF(C162<>"",IF(VLOOKUP(C162,Reference!$I$3:$J$188,2,FALSE)=" ",0,VLOOKUP(C162,Reference!$I$3:$J$188,2,FALSE)),"") ->  | AO162: =IF(C162<>"",IF(VLOOKUP(C162,Reference!$M$3:$Q$188,5,FALSE)=" ",0,VLOOKUP(C162,Reference!$M$3:$Q$188,5,FALSE)),"") -> 
T163: =IF(C163<>"",IF(VLOOKUP(C163,Reference!$A$3:$B$188,2,FALSE)="","N/A",VLOOKUP(C163,Reference!$A$3:$B$188,2,FALSE)),"") ->  | AN163: =IF(C163<>"",IF(VLOOKUP(C163,Reference!$I$3:$J$188,2,FALSE)=" ",0,VLOOKUP(C163,Reference!$I$3:$J$188,2,FALSE)),"") ->  | AO163: =IF(C163<>"",IF(VLOOKUP(C163,Reference!$M$3:$Q$188,5,FALSE)=" ",0,VLOOKUP(C163,Reference!$M$3:$Q$188,5,FALSE)),"") -> 
T164: =IF(C164<>"",IF(VLOOKUP(C164,Reference!$A$3:$B$188,2,FALSE)="","N/A",VLOOKUP(C164,Reference!$A$3:$B$188,2,FALSE)),"") ->  | AN164: =IF(C164<>"",IF(VLOOKUP(C164,Reference!$I$3:$J$188,2,FALSE)=" ",0,VLOOKUP(C164,Reference!$I$3:$J$188,2,FALSE)),"") ->  | AO164: =IF(C164<>"",IF(VLOOKUP(C164,Reference!$M$3:$Q$188,5,FALSE)=" ",0,VLOOKUP(C164,Reference!$M$3:$Q$188,5,FALSE)),"") -> 
T165: =IF(C165<>"",IF(VLOOKUP(C165,Reference!$A$3:$B$188,2,FALSE)="","N/A",VLOOKUP(C165,Reference!$A$3:$B$188,2,FALSE)),"") ->  | AN165: =IF(C165<>"",IF(VLOOKUP(C165,Reference!$I$3:$J$188,2,FALSE)=" ",0,VLOOKUP(C165,Reference!$I$3:$J$188,2,FALSE)),"") ->  | AO165: =IF(C165<>"",IF(VLOOKUP(C165,Reference!$M$3:$Q$188,5,FALSE)=" ",0,VLOOKUP(C165,Reference!$M$3:$Q$188,5,FALSE)),"") -> 
T166: =IF(C166<>"",IF(VLOOKUP(C166,Reference!$A$3:$B$188,2,FALSE)="","N/A",VLOOKUP(C166,Reference!$A$3:$B$188,2,FALSE)),"") ->  | AN166: =IF(C166<>"",IF(VLOOKUP(C166,Reference!$I$3:$J$188,2,FALSE)=" ",0,VLOOKUP(C166,Reference!$I$3:$J$188,2,FALSE)),"") ->  | AO166: =IF(C166<>"",IF(VLOOKUP(C166,Reference!$M$3:$Q$188,5,FALSE)=" ",0,VLOOKUP(C166,Reference!$M$3:$Q$188,5,FALSE)),"") -> 
T167: =IF(C167<>"",IF(VLOOKUP(C167,Reference!$A$3:$B$188,2,FALSE)="","N/A",VLOOKUP(C167,Reference!$A$3:$B$188,2,FALSE)),"") ->  | AN167: =IF(C167<>"",IF(VLOOKUP(C167,Reference!$I$3:$J$188,2,FALSE)=" ",0,VLOOKUP(C167,Reference!$I$3:$J$188,2,FALSE)),"") ->  | AO167: =IF(C167<>"",IF(VLOOKUP(C167,Reference!$M$3:$Q$188,5,FALSE)=" ",0,VLOOKUP(C167,Reference!$M$3:$Q$188,5,FALSE)),"") -> 
T168: =IF(C168<>"",IF(VLOOKUP(C168,Reference!$A$3:$B$188,2,FALSE)="","N/A",VLOOKUP(C168,Reference!$A$3:$B$188,2,FALSE)),"") ->  | AN168: =IF(C168<>"",IF(VLOOKUP(C168,Reference!$I$3:$J$188,2,FALSE)=" ",0,VLOOKUP(C168,Reference!$I$3:$J$188,2,FALSE)),"") ->  | AO168: =IF(C168<>"",IF(VLOOKUP(C168,Reference!$M$3:$Q$188,5,FALSE)=" ",0,VLOOKUP(C168,Reference!$M$3:$Q$188,5,FALSE)),"") -> 
T169: =IF(C169<>"",IF(VLOOKUP(C169,Reference!$A$3:$B$188,2,FALSE)="","N/A",VLOOKUP(C169,Reference!$A$3:$B$188,2,FALSE)),"") ->  | AN169: =IF(C169<>"",IF(VLOOKUP(C169,Reference!$I$3:$J$188,2,FALSE)=" ",0,VLOOKUP(C169,Reference!$I$3:$J$188,2,FALSE)),"") ->  | AO169: =IF(C169<>"",IF(VLOOKUP(C169,Reference!$M$3:$Q$188,5,FALSE)=" ",0,VLOOKUP(C169,Reference!$M$3:$Q$188,5,FALSE)),"") -> 
T170: =IF(C170<>"",IF(VLOOKUP(C170,Reference!$A$3:$B$188,2,FALSE)="","N/A",VLOOKUP(C170,Reference!$A$3:$B$188,2,FALSE)),"") ->  | AN170: =IF(C170<>"",IF(VLOOKUP(C170,Reference!$I$3:$J$188,2,FALSE)=" ",0,VLOOKUP(C170,Reference!$I$3:$J$188,2,FALSE)),"") ->  | AO170: =IF(C170<>"",IF(VLOOKUP(C170,Reference!$M$3:$Q$188,5,FALSE)=" ",0,VLOOKUP(C170,Reference!$M$3:$Q$188,5,FALSE)),"") -> 

Sheet Other Discharges
AM1: <
B2: TOXICS SCREENING ANALYSIS
B3: WATER QUALITY POLLUTANTS OF CONCERN
B4: VERSION 2.7
B6: Facility: | S6: NPDES Permit No.: | AG6: Outfall: | AM6: Stream Flow (MGD) | AO6: =IF(I8<>"",IF(I8<>0,I8*0.64631,0.000001),"") -> 
B7: Analysis Hardness (mg/L): | I7: 100 | S7: Discharge Flow (MGD): | AD7: Analysis pH (SU): | AI7: 7 | AM7: Stream:Discharge | AO7: =IF(AND(AO6<>"",Y7<>""),AO6/Y7,"") -> 
B8: Stream Flow, Q7-10 (cfs): | AM8: Assimilative Capacity? | AO8: =IF(AO6=0,"No",IF(AO7<3,"No","Yes")) -> Yes
B10: Parameter | L10: Maximum Concentration in Application or DMRs (µg/L) | S10: Most Stringent Criterion (µg/L) | W10: Candidate for PENTOXSD Modeling? | AB10: Most Stringent WQBEL (µg/L) | AF10: Screening Recommendation
AM11: QL | AN11: Conservative? | AO11: BCS1M Screen 1 | AP11: Screening Low | AQ11: Screening High | AR11: BCS1M Screen 2 | AS11: Final Rec.
B12: Total Dissolved Solids | S12: =IF(B12<>"",IF(VLOOKUP(B12,Reference!$A$3:$B$188,2,FALSE)="","N/A",VLOOKUP(B12,Reference!$A$3:$B$188,2,FALSE)),"") -> 500000 | W12: =IF(AND(B12<>"",M12<>"",$I$8<>"",$Y$7<>""),IF(S12<>"N/A",IF(AND(M12<=VALUE(AM12),L12="<"),"No (Value < QL)",IF($AO$8="No",IF(M12>=(0.5*S12),IF(AND(M12="<",N12=(0.5*T12)),"No","Yes"),"No"),IF(M12>=S12,IF(AND(M12="<",N12=T12),"No","Yes"),"No"))),"No"),"") ->  | AF12: =IF(M12<>"",AS12,"") ->  | AM12: =IF(B12<>"",IF(VLOOKUP(B12,Reference!$I$3:$J$188,2,FALSE)=" ",0,VLOOKUP(B12,Reference!$I$3:$J$188,2,FALSE)),"") -> 2000 | AN12: =IF(B12<>"",IF(VLOOKUP(B12,Reference!$M$3:$Q$188,5,FALSE)=" ",0,VLOOKUP(B12,Reference!$M$3:$Q$188,5,FALSE)),"") -> Y | AO12: =IF(AND(W12="Yes",AB12<>""),IF((M12/AB12)>=0.5,"Establish Limits",IF(AND(AN12="Y",(M12/AB12)>0.1),"Monitor",IF(AND(AN12<>"Y",(M12/AB12)>0.25),"Monitor","No Limits/Monitoring"))),"") ->  | AP12: 1000000 | AQ12: 5000000 | AR12: =IF(AND(M12<>"",$Y$7<>""),IF(OR(AND($Y$7>0.1,M12>AP12),AND($Y$7<=0.1,M12>AQ12),(($Y$7*(M12/1000)*8.34)>20000)),"Monitor",""),"") ->  | AS12: =IF(OR(AO12="Establish Limits",AO12="Monitor"),AO12,IF(AND(AO12="No Limits/Monitoring",AR12="Monitor"),AR12,IF(AND(AO12="",AR12=""),"",IF(AND(AO12="",AR12="Monitor"),"Monitor",IF(AND(AO12="No Limits/Monitoring",AR12=""),"No Limits/Monitoring",""))))) -> 
B13: Chloride | S13: =IF(B13<>"",IF(VLOOKUP(B13,Reference!$A$3:$B$188,2,FALSE)="","N/A",VLOOKUP(B13,Reference!$A$3:$B$188,2,FALSE)),"") -> 250000 | W13: =IF(AND(B13<>"",M13<>"",$I$8<>"",$Y$7<>""),IF(S13<>"N/A",IF(AND(M13<=VALUE(AM13),L13="<"),"No (Value < QL)",IF($AO$8="No",IF(M13>=(0.5*S13),IF(AND(M13="<",N13=(0.5*T13)),"No","Yes"),"No"),IF(M13>=S13,IF(AND(M13="<",N13=T13),"No","Yes"),"No"))),"No"),"") ->  | AF13: =AS13 ->  | AM13: =IF(B13<>"",IF(VLOOKUP(B13,Reference!$I$3:$J$188,2,FALSE)=" ",0,VLOOKUP(B13,Reference!$I$3:$J$188,2,FALSE)),"") -> 500 | AN13: =IF(B13<>"",IF(VLOOKUP(B13,Reference!$M$3:$Q$188,5,FALSE)=" ",0,VLOOKUP(B13,Reference!$M$3:$Q$188,5,FALSE)),"") -> Y | AO13: =IF(AND(W13="Yes",AB13<>""),IF((M13/AB13)>=0.5,"Establish Limits",IF(AND(AN13="Y",(M13/AB13)>0.1),"Monitor",IF(AND(AN13<>"Y",(M13/AB13)>0.25),"Monitor","No Limits/Monitoring"))),"") ->  | AS13: =IF(OR(AO13="Establish Limits",AO13="Monitor"),AO13,IF(AND(AO13="",OR($AS$12="No Limits/Monitoring",$AS$12="")),"",IF(AND(OR(AO13="",AO13="No Limits/Monitoring"),OR($AS$12="Monitor",$AS$12="Establish Limits")),"Monitor",IF(AND(AO13="No Limits/Monitoring",$AS$12=""),AO13)))) -> 
B14: Bromide | S14: =IF(B14<>"",IF(VLOOKUP(B14,Reference!$A$3:$B$188,2,FALSE)="","N/A",VLOOKUP(B14,Reference!$A$3:$B$188,2,FALSE)),"") -> N/A | AF14: =AS14 ->  | AM14: =IF(B14<>"",IF(VLOOKUP(B14,Reference!$I$3:$J$188,2,FALSE)=" ",0,VLOOKUP(B14,Reference!$I$3:$J$188,2,FALSE)),"") -> 200 | AN14: =IF(B14<>"",IF(VLOOKUP(B14,Reference!$M$3:$Q$188,5,FALSE)=" ",0,VLOOKUP(B14,Reference!$M$3:$Q$188,5,FALSE)),"") -> Y | AP14: 1000 | AQ14: 10000 | AR14: =IF(AND(M14<>"",$Y$7<>""),IF(OR(AND($Y$7>0.1,M14>AP14),AND($Y$7<=0.1,M14>AQ14)),"Monitor",""),"") ->  | AS14: =IF(OR(AO14="Establish Limits",AO14="Monitor"),AO14,IF(AND(AO14="No Limits/Monitoring",AR14="Monitor"),AR14,IF(AND(AO14="",AR14="",$AS$12=""),"",IF(AND(AO14="",AR14="Monitor"),"Monitor",IF(AND(AO14="",AR14="",OR($AS$12="Monitor",$AS$12="Establish Limits")),"Monitor",""))))) -> 
B15: Sulfate | S15: =IF(B15<>"",IF(VLOOKUP(B15,Reference!$A$3:$B$188,2,FALSE)="","N/A",VLOOKUP(B15,Reference!$A$3:$B$188,2,FALSE)),"") -> 250000 | AF15: =AS15 ->  | AM15: =IF(B15<>"",IF(VLOOKUP(B15,Reference!$I$3:$J$188,2,FALSE)=" ",0,VLOOKUP(B15,Reference!$I$3:$J$188,2,FALSE)),"") -> 1000 | AN15: =IF(B15<>"",IF(VLOOKUP(B15,Reference!$M$3:$Q$188,5,FALSE)=" ",0,VLOOKUP(B15,Reference!$M$3:$Q$188,5,FALSE)),"") -> Y | AS15: =IF(OR(AO15="Establish Limits",AO15="Monitor"),AO15,IF(AND(AO15="",OR($AS$12="No Limits/Monitoring",$AS$12="")),"",IF(AND(OR(AO15="",AO15="No Limits/Monitoring"),OR($AS$12="Monitor",$AS$12="Establish Limits")),"Monitor",IF(AND(AO15="No Limits/Monitoring",$AS$12=""),AO15)))) -> 
B16: 1,4-Dioxane | S16: =IF(B16<>"",IF(VLOOKUP(B16,Reference!$A$3:$B$188,2,FALSE)="","N/A",VLOOKUP(B16,Reference!$A$3:$B$188,2,FALSE)),"") -> N/A | AF16: =IF(M16<>"",AS16,"") ->  | AM16: =IF(B16<>"",IF(VLOOKUP(B16,Reference!$I$3:$J$188,2,FALSE)=" ",0,VLOOKUP(B16,Reference!$I$3:$J$188,2,FALSE)),"") -> 1 | AN16: =IF(B16<>"",IF(VLOOKUP(B16,Reference!$M$3:$Q$188,5,FALSE)=" ",0,VLOOKUP(B16,Reference!$M$3:$Q$188,5,FALSE)),"") -> 0 | AP16: 10 | AQ16: 100 | AR16: =IF(AND($Y$7<>"",M16<>""),IF(OR(AND($Y$7>0.1,M16>AP16),(AND($Y$7<=0.1,M16>AQ16))),"Monitor",""),"") ->  | AS16: =IF(OR(AO16="Establish Limits",AO16="Monitor"),AO16,IF(AND(AO16="No Limits/Monitoring",AR16="Monitor"),AR16,IF(AND(AO16="",AR16=""),"",IF(AND(AO16="",AR16="Monitor"),"Monitor",IF(AND(AO16="",AR16=""),"Monitor",""))))) -> 
S17: =IF(B17<>"",IF(VLOOKUP(B17,Reference!$A$3:$B$188,2,FALSE)="","N/A",VLOOKUP(B17,Reference!$A$3:$B$188,2,FALSE)),"") ->  | AF17: =IF(M17<>"",IF(AND(W17="Yes",AB17<>""),IF((M17/AB17)>=0.5,"Establish Limits",IF(AND(AN17="Y",(M17/AB17)>0.1),"Monitor",IF(AND(AN17<>"Y",(M17/AB17)>0.25),"Monitor","No Limits/Monitoring"))),""),"") ->  | AM17: =IF(B17<>"",IF(VLOOKUP(B17,Reference!$I$3:$J$188,2,FALSE)=" ",0,VLOOKUP(B17,Reference!$I$3:$J$188,2,FALSE)),"") ->  | AN17: =IF(B17<>"",IF(VLOOKUP(B17,Reference!$M$3:$Q$188,5,FALSE)=" ",0,VLOOKUP(B17,Reference!$M$3:$Q$188,5,FALSE)),"") -> 
S18: =IF(B18<>"",IF(VLOOKUP(B18,Reference!$A$3:$B$188,2,FALSE)="","N/A",VLOOKUP(B18,Reference!$A$3:$B$188,2,FALSE)),"") ->  | AF18: =IF(M18<>"",IF(AND(W18="Yes",AB18<>""),IF((M18/AB18)>=0.5,"Establish Limits",IF(AND(AN18="Y",(M18/AB18)>0.1),"Monitor",IF(AND(AN18<>"Y",(M18/AB18)>0.25),"Monitor","No Limits/Monitoring"))),""),"") ->  | AM18: =IF(B18<>"",IF(VLOOKUP(B18,Reference!$I$3:$J$188,2,FALSE)=" ",0,VLOOKUP(B18,Reference!$I$3:$J$188,2,FALSE)),"") ->  | AN18: =IF(B18<>"",IF(VLOOKUP(B18,Reference!$M$3:$Q$188,5,FALSE)=" ",0,VLOOKUP(B18,Reference!$M$3:$Q$188,5,FALSE)),"") -> 
S19: =IF(B19<>"",IF(VLOOKUP(B19,Reference!$A$3:$B$188,2,FALSE)="","N/A",VLOOKUP(B19,Reference!$A$3:$B$188,2,FALSE)),"") ->  | AM19: =IF(B19<>"",IF(VLOOKUP(B19,Reference!$I$3:$J$188,2,FALSE)=" ",0,VLOOKUP(B19,Reference!$I$3:$J$188,2,FALSE)),"") ->  | AN19: =IF(B19<>"",IF(VLOOKUP(B19,Reference!$M$3:$Q$188,5,FALSE)=" ",0,VLOOKUP(B19,Reference!$M$3:$Q$188,5,FALSE)),"") -> 
S20: =IF(B20<>"",IF(VLOOKUP(B20,Reference!$A$3:$B$188,2,FALSE)="","N/A",VLOOKUP(B20,Reference!$A$3:$B$188,2,FALSE)),"") ->  | AM20: =IF(B20<>"",IF(VLOOKUP(B20,Reference!$I$3:$J$188,2,FALSE)=" ",0,VLOOKUP(B20,Reference!$I$3:$J$188,2,FALSE)),"") ->  | AN20: =IF(B20<>"",IF(VLOOKUP(B20,Reference!$M$3:$Q$188,5,FALSE)=" ",0,VLOOKUP(B20,Reference!$M$3:$Q$188,5,FALSE)),"") -> 
S21: =IF(B21<>"",IF(VLOOKUP(B21,Reference!$A$3:$B$188,2,FALSE)="","N/A",VLOOKUP(B21,Reference!$A$3:$B$188,2,FALSE)),"") ->  | AM21: =IF(B21<>"",IF(VLOOKUP(B21,Reference!$I$3:$J$188,2,FALSE)=" ",0,VLOOKUP(B21,Reference!$I$3:$J$188,2,FALSE)),"") ->  | AN21: =IF(B21<>"",IF(VLOOKUP(B21,Reference!$M$3:$Q$188,5,FALSE)=" ",0,VLOOKUP(B21,Reference!$M$3:$Q$188,5,FALSE)),"") -> 
S22: =IF(B22<>"",IF(VLOOKUP(B22,Reference!$A$3:$B$188,2,FALSE)="","N/A",VLOOKUP(B22,Reference!$A$3:$B$188,2,FALSE)),"") ->  | AM22: =IF(B22<>"",IF(VLOOKUP(B22,Reference!$I$3:$J$188,2,FALSE)=" ",0,VLOOKUP(B22,Reference!$I$3:$J$188,2,FALSE)),"") ->  | AN22: =IF(B22<>"",IF(VLOOKUP(B22,Reference!$M$3:$Q$188,5,FALSE)=" ",0,VLOOKUP(B22,Reference!$M$3:$Q$188,5,FALSE)),"") -> 
S23: =IF(B23<>"",IF(VLOOKUP(B23,Reference!$A$3:$B$188,2,FALSE)="","N/A",VLOOKUP(B23,Reference!$A$3:$B$188,2,FALSE)),"") ->  | AM23: =IF(B23<>"",IF(VLOOKUP(B23,Reference!$I$3:$J$188,2,FALSE)=" ",0,VLOOKUP(B23,Reference!$I$3:$J$188,2,FALSE)),"") ->  | AN23: =IF(B23<>"",IF(VLOOKUP(B23,Reference!$M$3:$Q$188,5,FALSE)=" ",0,VLOOKUP(B23,Reference!$M$3:$Q$188,5,FALSE)),"") -> 
S24: =IF(B24<>"",IF(VLOOKUP(B24,Reference!$A$3:$B$188,2,FALSE)="","N/A",VLOOKUP(B24,Reference!$A$3:$B$188,2,FALSE)),"") ->  | AM24: =IF(B24<>"",IF(VLOOKUP(B24,Reference!$I$3:$J$188,2,FALSE)=" ",0,VLOOKUP(B24,Reference!$I$3:$J$188,2,FALSE)),"") ->  | AN24: =IF(B24<>"",IF(VLOOKUP(B24,Reference!$M$3:$Q$188,5,FALSE)=" ",0,VLOOKUP(B24,Reference!$M$3:$Q$188,5,FALSE)),"") -> 
S25: =IF(B25<>"",IF(VLOOKUP(B25,Reference!$A$3:$B$188,2,FALSE)="","N/A",VLOOKUP(B25,Reference!$A$3:$B$188,2,FALSE)),"") ->  | AM25: =IF(B25<>"",IF(VLOOKUP(B25,Reference!$I$3:$J$188,2,FALSE)=" ",0,VLOOKUP(B25,Reference!$I$3:$J$188,2,FALSE)),"") ->  | AN25: =IF(B25<>"",IF(VLOOKUP(B25,Reference!$M$3:$Q$188,5,FALSE)=" ",0,VLOOKUP(B25,Reference!$M$3:$Q$188,5,FALSE)),"") -> 
S26: =IF(B26<>"",IF(VLOOKUP(B26,Reference!$A$3:$B$188,2,FALSE)="","N/A",VLOOKUP(B26,Reference!$A$3:$B$188,2,FALSE)),"") ->  | AM26: =IF(B26<>"",IF(VLOOKUP(B26,Reference!$I$3:$J$188,2,FALSE)=" ",0,VLOOKUP(B26,Reference!$I$3:$J$188,2,FALSE)),"") ->  | AN26: =IF(B26<>"",IF(VLOOKUP(B26,Reference!$M$3:$Q$188,5,FALSE)=" ",0,VLOOKUP(B26,Reference!$M$3:$Q$188,5,FALSE)),"") -> 
S27: =IF(B27<>"",IF(VLOOKUP(B27,Reference!$A$3:$B$188,2,FALSE)="","N/A",VLOOKUP(B27,Reference!$A$3:$B$188,2,FALSE)),"") ->  | AM27: =IF(B27<>"",IF(VLOOKUP(B27,Reference!$I$3:$J$188,2,FALSE)=" ",0,VLOOKUP(B27,Reference!$I$3:$J$188,2,FALSE)),"") ->  | AN27: =IF(B27<>"",IF(VLOOKUP(B27,Reference!$M$3:$Q$188,5,FALSE)=" ",0,VLOOKUP(B27,Reference!$M$3:$Q$188,5,FALSE)),"") -> 
S28: =IF(B28<>"",IF(VLOOKUP(B28,Reference!$A$3:$B$188,2,FALSE)="","N/A",VLOOKUP(B28,Reference!$A$3:$B$188,2,FALSE)),"") ->  | AM28: =IF(B28<>"",IF(VLOOKUP(B28,Reference!$I$3:$J$188,2,FALSE)=" ",0,VLOOKUP(B28,Reference!$I$3:$J$188,2,FALSE)),"") ->  | AN28: =IF(B28<>"",IF(VLOOKUP(B28,Reference!$M$3:$Q$188,5,FALSE)=" ",0,VLOOKUP(B28,Reference!$M$3:$Q$188,5,FALSE)),"") -> 
S29: =IF(B29<>"",IF(VLOOKUP(B29,Reference!$A$3:$B$188,2,FALSE)="","N/A",VLOOKUP(B29,Reference!$A$3:$B$188,2,FALSE)),"") ->  | AM29: =IF(B29<>"",IF(VLOOKUP(B29,Reference!$I$3:$J$188,2,FALSE)=" ",0,VLOOKUP(B29,Reference!$I$3:$J$188,2,FALSE)),"") ->  | AN29: =IF(B29<>"",IF(VLOOKUP(B29,Reference!$M$3:$Q$188,5,FALSE)=" ",0,VLOOKUP(B29,Reference!$M$3:$Q$188,5,FALSE)),"") -> 
S30: =IF(B30<>"",IF(VLOOKUP(B30,Reference!$A$3:$B$188,2,FALSE)="","N/A",VLOOKUP(B30,Reference!$A$3:$B$188,2,FALSE)),"") ->  | AM30: =IF(B30<>"",IF(VLOOKUP(B30,Reference!$I$3:$J$188,2,FALSE)=" ",0,VLOOKUP(B30,Reference!$I$3:$J$188,2,FALSE)),"") ->  | AN30: =IF(B30<>"",IF(VLOOKUP(B30,Reference!$M$3:$Q$188,5,FALSE)=" ",0,VLOOKUP(B30,Reference!$M$3:$Q$188,5,FALSE)),"") -> 
S31: =IF(B31<>"",IF(VLOOKUP(B31,Reference!$A$3:$B$188,2,FALSE)="","N/A",VLOOKUP(B31,Reference!$A$3:$B$188,2,FALSE)),"") ->  | AM31: =IF(B31<>"",IF(VLOOKUP(B31,Reference!$I$3:$J$188,2,FALSE)=" ",0,VLOOKUP(B31,Reference!$I$3:$J$188,2,FALSE)),"") ->  | AN31: =IF(B31<>"",IF(VLOOKUP(B31,Reference!$M$3:$Q$188,5,FALSE)=" ",0,VLOOKUP(B31,Reference!$M$3:$Q$188,5,FALSE)),"") -> 
S32: =IF(B32<>"",IF(VLOOKUP(B32,Reference!$A$3:$B$188,2,FALSE)="","N/A",VLOOKUP(B32,Reference!$A$3:$B$188,2,FALSE)),"") ->  | AM32: =IF(B32<>"",IF(VLOOKUP(B32,Reference!$I$3:$J$188,2,FALSE)=" ",0,VLOOKUP(B32,Reference!$I$3:$J$188,2,FALSE)),"") ->  | AN32: =IF(B32<>"",IF(VLOOKUP(B32,Reference!$M$3:$Q$188,5,FALSE)=" ",0,VLOOKUP(B32,Reference!$M$3:$Q$188,5,FALSE)),"") -> 
S33: =IF(B33<>"",IF(VLOOKUP(B33,Reference!$A$3:$B$188,2,FALSE)="","N/A",VLOOKUP(B33,Reference!$A$3:$B$188,2,FALSE)),"") ->  | AM33: =IF(B33<>"",IF(VLOOKUP(B33,Reference!$I$3:$J$188,2,FALSE)=" ",0,VLOOKUP(B33,Reference!$I$3:$J$188,2,FALSE)),"") ->  | AN33: =IF(B33<>"",IF(VLOOKUP(B33,Reference!$M$3:$Q$188,5,FALSE)=" ",0,VLOOKUP(B33,Reference!$M$3:$Q$188,5,FALSE)),"") -> 
S34: =IF(B34<>"",IF(VLOOKUP(B34,Reference!$A$3:$B$188,2,FALSE)="","N/A",VLOOKUP(B34,Reference!$A$3:$B$188,2,FALSE)),"") ->  | AM34: =IF(B34<>"",IF(VLOOKUP(B34,Reference!$I$3:$J$188,2,FALSE)=" ",0,VLOOKUP(B34,Reference!$I$3:$J$188,2,FALSE)),"") ->  | AN34: =IF(B34<>"",IF(VLOOKUP(B34,Reference!$M$3:$Q$188,5,FALSE)=" ",0,VLOOKUP(B34,Reference!$M$3:$Q$188,5,FALSE)),"") -> 
S35: =IF(B35<>"",IF(VLOOKUP(B35,Reference!$A$3:$B$188,2,FALSE)="","N/A",VLOOKUP(B35,Reference!$A$3:$B$188,2,FALSE)),"") ->  | AM35: =IF(B35<>"",IF(VLOOKUP(B35,Reference!$I$3:$J$188,2,FALSE)=" ",0,VLOOKUP(B35,Reference!$I$3:$J$188,2,FALSE)),"") ->  | AN35: =IF(B35<>"",IF(VLOOKUP(B35,Reference!$M$3:$Q$188,5,FALSE)=" ",0,VLOOKUP(B35,Reference!$M$3:$Q$188,5,FALSE)),"") -> 
S36: =IF(B36<>"",IF(VLOOKUP(B36,Reference!$A$3:$B$188,2,FALSE)="","N/A",VLOOKUP(B36,Reference!$A$3:$B$188,2,FALSE)),"") ->  | AM36: =IF(B36<>"",IF(VLOOKUP(B36,Reference!$I$3:$J$188,2,FALSE)=" ",0,VLOOKUP(B36,Reference!$I$3:$J$188,2,FALSE)),"") ->  | AN36: =IF(B36<>"",IF(VLOOKUP(B36,Reference!$M$3:$Q$188,5,FALSE)=" ",0,VLOOKUP(B36,Reference!$M$3:$Q$188,5,FALSE)),"") -> 
S37: =IF(B37<>"",IF(VLOOKUP(B37,Reference!$A$3:$B$188,2,FALSE)="","N/A",VLOOKUP(B37,Reference!$A$3:$B$188,2,FALSE)),"") ->  | AM37: =IF(B37<>"",IF(VLOOKUP(B37,Reference!$I$3:$J$188,2,FALSE)=" ",0,VLOOKUP(B37,Reference!$I$3:$J$188,2,FALSE)),"") ->  | AN37: =IF(B37<>"",IF(VLOOKUP(B37,Reference!$M$3:$Q$188,5,FALSE)=" ",0,VLOOKUP(B37,Reference!$M$3:$Q$188,5,FALSE)),"") -> 
S38: =IF(B38<>"",IF(VLOOKUP(B38,Reference!$A$3:$B$188,2,FALSE)="","N/A",VLOOKUP(B38,Reference!$A$3:$B$188,2,FALSE)),"") ->  | AM38: =IF(B38<>"",IF(VLOOKUP(B38,Reference!$I$3:$J$188,2,FALSE)=" ",0,VLOOKUP(B38,Reference!$I$3:$J$188,2,FALSE)),"") ->  | AN38: =IF(B38<>"",IF(VLOOKUP(B38,Reference!$M$3:$Q$188,5,FALSE)=" ",0,VLOOKUP(B38,Reference!$M$3:$Q$188,5,FALSE)),"") -> 
S39: =IF(B39<>"",IF(VLOOKUP(B39,Reference!$A$3:$B$188,2,FALSE)="","N/A",VLOOKUP(B39,Reference!$A$3:$B$188,2,FALSE)),"") ->  | AM39: =IF(B39<>"",IF(VLOOKUP(B39,Reference!$I$3:$J$188,2,FALSE)=" ",0,VLOOKUP(B39,Reference!$I$3:$J$188,2,FALSE)),"") ->  | AN39: =IF(B39<>"",IF(VLOOKUP(B39,Reference!$M$3:$Q$188,5,FALSE)=" ",0,VLOOKUP(B39,Reference!$M$3:$Q$188,5,FALSE)),"") -> 
S40: =IF(B40<>"",IF(VLOOKUP(B40,Reference!$A$3:$B$188,2,FALSE)="","N/A",VLOOKUP(B40,Reference!$A$3:$B$188,2,FALSE)),"") ->  | AM40: =IF(B40<>"",IF(VLOOKUP(B40,Reference!$I$3:$J$188,2,FALSE)=" ",0,VLOOKUP(B40,Reference!$I$3:$J$188,2,FALSE)),"") ->  | AN40: =IF(B40<>"",IF(VLOOKUP(B40,Reference!$M$3:$Q$188,5,FALSE)=" ",0,VLOOKUP(B40,Reference!$M$3:$Q$188,5,FALSE)),"") -> 
S41: =IF(B41<>"",IF(VLOOKUP(B41,Reference!$A$3:$B$188,2,FALSE)="","N/A",VLOOKUP(B41,Reference!$A$3:$B$188,2,FALSE)),"") ->  | AM41: =IF(B41<>"",IF(VLOOKUP(B41,Reference!$I$3:$J$188,2,FALSE)=" ",0,VLOOKUP(B41,Reference!$I$3:$J$188,2,FALSE)),"") ->  | AN41: =IF(B41<>"",IF(VLOOKUP(B41,Reference!$M$3:$Q$188,5,FALSE)=" ",0,VLOOKUP(B41,Reference!$M$3:$Q$188,5,FALSE)),"") -> 
S42: =IF(B42<>"",IF(VLOOKUP(B42,Reference!$A$3:$B$188,2,FALSE)="","N/A",VLOOKUP(B42,Reference!$A$3:$B$188,2,FALSE)),"") ->  | AM42: =IF(B42<>"",IF(VLOOKUP(B42,Reference!$I$3:$J$188,2,FALSE)=" ",0,VLOOKUP(B42,Reference!$I$3:$J$188,2,FALSE)),"") ->  | AN42: =IF(B42<>"",IF(VLOOKUP(B42,Reference!$M$3:$Q$188,5,FALSE)=" ",0,VLOOKUP(B42,Reference!$M$3:$Q$188,5,FALSE)),"") -> 
S43: =IF(B43<>"",IF(VLOOKUP(B43,Reference!$A$3:$B$188,2,FALSE)="","N/A",VLOOKUP(B43,Reference!$A$3:$B$188,2,FALSE)),"") ->  | AM43: =IF(B43<>"",IF(VLOOKUP(B43,Reference!$I$3:$J$188,2,FALSE)=" ",0,VLOOKUP(B43,Reference!$I$3:$J$188,2,FALSE)),"") ->  | AN43: =IF(B43<>"",IF(VLOOKUP(B43,Reference!$M$3:$Q$188,5,FALSE)=" ",0,VLOOKUP(B43,Reference!$M$3:$Q$188,5,FALSE)),"") -> 
S44: =IF(B44<>"",IF(VLOOKUP(B44,Reference!$A$3:$B$188,2,FALSE)="","N/A",VLOOKUP(B44,Reference!$A$3:$B$188,2,FALSE)),"") ->  | AM44: =IF(B44<>"",IF(VLOOKUP(B44,Reference!$I$3:$J$188,2,FALSE)=" ",0,VLOOKUP(B44,Reference!$I$3:$J$188,2,FALSE)),"") ->  | AN44: =IF(B44<>"",IF(VLOOKUP(B44,Reference!$M$3:$Q$188,5,FALSE)=" ",0,VLOOKUP(B44,Reference!$M$3:$Q$188,5,FALSE)),"") -> 
S45: =IF(B45<>"",IF(VLOOKUP(B45,Reference!$A$3:$B$188,2,FALSE)="","N/A",VLOOKUP(B45,Reference!$A$3:$B$188,2,FALSE)),"") ->  | AM45: =IF(B45<>"",IF(VLOOKUP(B45,Reference!$I$3:$J$188,2,FALSE)=" ",0,VLOOKUP(B45,Reference!$I$3:$J$188,2,FALSE)),"") ->  | AN45: =IF(B45<>"",IF(VLOOKUP(B45,Reference!$M$3:$Q$188,5,FALSE)=" ",0,VLOOKUP(B45,Reference!$M$3:$Q$188,5,FALSE)),"") -> 
S46: =IF(B46<>"",IF(VLOOKUP(B46,Reference!$A$3:$B$188,2,FALSE)="","N/A",VLOOKUP(B46,Reference!$A$3:$B$188,2,FALSE)),"") ->  | AM46: =IF(B46<>"",IF(VLOOKUP(B46,Reference!$I$3:$J$188,2,FALSE)=" ",0,VLOOKUP(B46,Reference!$I$3:$J$188,2,FALSE)),"") ->  | AN46: =IF(B46<>"",IF(VLOOKUP(B46,Reference!$M$3:$Q$188,5,FALSE)=" ",0,VLOOKUP(B46,Reference!$M$3:$Q$188,5,FALSE)),"") -> 
S47: =IF(B47<>"",IF(VLOOKUP(B47,Reference!$A$3:$B$188,2,FALSE)="","N/A",VLOOKUP(B47,Reference!$A$3:$B$188,2,FALSE)),"") ->  | AM47: =IF(B47<>"",IF(VLOOKUP(B47,Reference!$I$3:$J$188,2,FALSE)=" ",0,VLOOKUP(B47,Reference!$I$3:$J$188,2,FALSE)),"") ->  | AN47: =IF(B47<>"",IF(VLOOKUP(B47,Reference!$M$3:$Q$188,5,FALSE)=" ",0,VLOOKUP(B47,Reference!$M$3:$Q$188,5,FALSE)),"") -> 
S48: =IF(B48<>"",IF(VLOOKUP(B48,Reference!$A$3:$B$188,2,FALSE)="","N/A",VLOOKUP(B48,Reference!$A$3:$B$188,2,FALSE)),"") ->  | AM48: =IF(B48<>"",IF(VLOOKUP(B48,Reference!$I$3:$J$188,2,FALSE)=" ",0,VLOOKUP(B48,Reference!$I$3:$J$188,2,FALSE)),"") ->  | AN48: =IF(B48<>"",IF(VLOOKUP(B48,Reference!$M$3:$Q$188,5,FALSE)=" ",0,VLOOKUP(B48,Reference!$M$3:$Q$188,5,FALSE)),"") -> 
S49: =IF(B49<>"",IF(VLOOKUP(B49,Reference!$A$3:$B$188,2,FALSE)="","N/A",VLOOKUP(B49,Reference!$A$3:$B$188,2,FALSE)),"") ->  | AM49: =IF(B49<>"",IF(VLOOKUP(B49,Reference!$I$3:$J$188,2,FALSE)=" ",0,VLOOKUP(B49,Reference!$I$3:$J$188,2,FALSE)),"") ->  | AN49: =IF(B49<>"",IF(VLOOKUP(B49,Reference!$M$3:$Q$188,5,FALSE)=" ",0,VLOOKUP(B49,Reference!$M$3:$Q$188,5,FALSE)),"") -> 
S50: =IF(B50<>"",IF(VLOOKUP(B50,Reference!$A$3:$B$188,2,FALSE)="","N/A",VLOOKUP(B50,Reference!$A$3:$B$188,2,FALSE)),"") ->  | AM50: =IF(B50<>"",IF(VLOOKUP(B50,Reference!$I$3:$J$188,2,FALSE)=" ",0,VLOOKUP(B50,Reference!$I$3:$J$188,2,FALSE)),"") ->  | AN50: =IF(B50<>"",IF(VLOOKUP(B50,Reference!$M$3:$Q$188,5,FALSE)=" ",0,VLOOKUP(B50,Reference!$M$3:$Q$188,5,FALSE)),"") -> 
S51: =IF(B51<>"",IF(VLOOKUP(B51,Reference!$A$3:$B$188,2,FALSE)="","N/A",VLOOKUP(B51,Reference!$A$3:$B$188,2,FALSE)),"") ->  | AM51: =IF(B51<>"",IF(VLOOKUP(B51,Reference!$I$3:$J$188,2,FALSE)=" ",0,VLOOKUP(B51,Reference!$I$3:$J$188,2,FALSE)),"") ->  | AN51: =IF(B51<>"",IF(VLOOKUP(B51,Reference!$M$3:$Q$188,5,FALSE)=" ",0,VLOOKUP(B51,Reference!$M$3:$Q$188,5,FALSE)),"") -> 

Sheet Reference
A1: Calculate Hardness-Based Criteria Using Hardness for: | C1: Major Sewage | V1: Major Sewage
V2: Industrial
A3: Pollutant Name | B3: Most Stringent Criterion (µg/L) | C3: Aquatic Life - CCC (µg/L) | D3: Aquatic Life - CMC (µg/L) | E3: Human Health (µg/L) | F3: Parameter Name | G3: Carcinogen? | H3: Lowest Ch. 16 MDL (µg/L) | I3: Parameter Name | J3: Target QL (µg/L) | K3: Target QL Method | L3: Target QL Basis | M3: Parameter Name | N3: Target QL < MSC? | O3: Target QL < Ch 16 MDL? | P3: EPA Minimum Level (µg/L) | Q3: Conservative? | R3: Screening Level - Low | S3: Screening Level - High | T3: Y | V3: Other Discharges
A4: 1,1,1-Trichloroethane | B4: =IF(SUM(C4:E4)>0,MIN(C4:E4),"") -> 610 | C4: 610 | D4: 3000 | F4: 1,1,1-Trichloroethane | H4: 0.03 | I4: 1,1,1-Trichloroethane | J4: 0.5 | K4: EPA 624 | L4: BOL reporting limit | M4: 1,1,1-Trichloroethane | N4: =IF(B4<>"",IF(J4<B4,"Y",""),"") -> Y | O4: =IF(J4<H4,"Y","") ->  | P4: 10
A5: 1,1,2,2-Tetrachloroethane | B5: =IF(SUM(C5:E5)>0,MIN(C5:E5),"") -> 0.17 | C5: 210 | D5: 1000 | E5: 0.17 | F5: 1,1,2,2-Tetrachloroethane | G5: Y | H5: 0.03 | I5: 1,1,2,2-Tetrachloroethane | J5: 0.5 | K5: EPA 624 | L5: BOL reporting limit | M5: 1,1,2,2-Tetrachloroethane | N5: =IF(B5<>"",IF(J5<B5,"Y",""),"") ->  | O5: =IF(J5<H5,"Y","") ->  | P5: 10
A6: 1,1,2-Trichloroethane | B6: 0.59 | C6: 680 | D6: 3400 | E6: 0.59 | F6: 1,1,2-Trichloroethane | G6: Y | H6: 0.02 | I6: 1,1,2-Trichloroethane | J6: 0.5 | K6: EPA 624 | L6: BOL reporting limit | M6: 1,1,2-Trichloroethane | N6: Y | P6: 10
A7: 1,1-Dichloroethane | F7: 1,1-Dichloroethane | I7: 1,1-Dichloroethane | J7: 0.5 | K7: EPA 624 | L7: BOL reporting limit | M7: 1,1-Dichloroethane | P7: 10
A8: 1,1-Dichloroethylene | B8: 33 | C8: 1500 | D8: 7500 | E8: 33 | F8: 1,1-Dichloroethylene | H8: 0.13 | I8: 1,1-Dichloroethylene | J8: 0.5 | K8: EPA 624 | L8: BOL reporting limit | M8: 1,1-Dichloroethylene | N8: Y | P8: 10
A9: 1,2,3-Trichloropropane | B9: 210 | E9: 210 | F9: 1,2,3-Trichloropropane | I9: 1,2,3-Trichloropropane | J9: 0.5 | K9: EPA 624 | L9: BOL reporting limit | M9: 1,2,3-Trichloropropane | N9: Y
A10: 1,2,4-Trichlorobenzene | B10: 26 | C10: 26 | D10: 130 | E10: 35 | F10: 1,2,4-Trichlorobenzene | H10: 0.05 | I10: 1,2,4-Trichlorobenzene | J10: 0.5 | K10: EPA 624 | L10: BOL reporting limit | M10: 1,2,4-Trichlorobenzene | N10: Y | P10: 10
A11: 1,2,4-Trimethylbenzene | B11: 72 | E11: 72 | F11: 1,2,4-Trimethylbenzene | I11: 1,2,4-Trimethylbenzene | J11: 0.5 | K11: EPA 624 | M11: 1,2,4-Trimethylbenzene | N11: Y
A12: 1,2-Dichlorobenzene | B12: 160 | C12: 160 | D12: 820 | E12: 420 | F12: 1,2-Dichlorobenzene | H12: 0.15 | I12: 1,2-Dichlorobenzene | J12: 0.5 | K12: EPA 624 | L12: BOL reporting limit | M12: 1,2-Dichlorobenzene | N12: Y | P12: 10
A13: 1,2-Dichloroethane | B13: 0.38 | C13: 3100 | D13: 15000 | E13: 0.38 | F13: 1,2-Dichloroethane | G13: Y | H13: 0.03 | I13: 1,2-Dichloroethane | J13: 0.5 | K13: EPA 624 | L13: BOL reporting limit | M13: 1,2-Dichloroethane | P13: 10
A14: 1,2-Dichloropropane | B14: 2200 | C14: 2200 | D14: 11000 | F14: 1,2-Dichloropropane | H14: 0.04 | I14: 1,2-Dichloropropane | J14: 0.5 | K14: EPA 624 | L14: BOL reporting limit | M14: 1,2-Dichloropropane | N14: Y | P14: 10
A15: 1,2-Diphenylhydrazine | B15: 0.036 | C15: 3 | D15: 15 | E15: 0.036 | F15: 1,2-Diphenylhydrazine | G15: Y | H15: 10 | I15: 1,2-Diphenylhydrazine | J15: 10 | K15: EPA 8270C | L15: Reasonable reporting limit from commercial laboratory. | M15: 1,2-Diphenylhydrazine | P15: 20
A16: 1,2-cis-Dichloroethylene | B16: 12 | E16: 12 | F16: 1,2-cis-Dichloroethylene | I16: 1,2-cis-Dichloroethylene | J16: 0.5 | K16: EPA 624 | M16: 1,2-cis-Dichloroethylene | N16: Y
A17: 1,2-trans-Dichloroethylene | B17: 140 | C17: 1400 | D17: 6800 | E17: 140 | F17: 1,2-trans-Dichloroethylene | H17: 0.1 | I17: 1,2-trans-Dichloroethylene | J17: 0.5 | K17: EPA 624 | L17: BOL reporting limit | M17: 1,2-trans-Dichloroethylene | N17: Y | P17: 10
A18: 1,3,5-Trimethylbenzene | B18: 72 | E18: 72 | F18: 1,3,5-Trimethylbenzene | I18: 1,3,5-Trimethylbenzene | J18: 0.5 | K18: EPA 624 | M18: 1,3,5-Trimethylbenzene | N18: Y
A19: 1,3-Dichlorobenzene | B19: 69 | C19: 69 | D19: 350 | E19: 420 | F19: 1,3-Dichlorobenzene | H19: 0.32 | I19: 1,3-Dichlorobenzene | J19: 0.5 | K19: EPA 624 | L19: BOL reporting limit | M19: 1,3-Dichlorobenzene | N19: Y | P19: 10
A20: 1,3-Dichloropropylene | B20: 0.34 | C20: 61 | D20: 310 | E20: 0.34 | F20: 1,3-Dichloropropylene | G20: Y | H20: 0.2 | I20: 1,3-Dichloropropylene | J20: 0.5 | K20: EPA 624 | L20: This parameter should be split into cis and trans isomers, then the BoL reporting limit of 0.50 can be applied to each. | M20: 1,3-Dichloropropylene | P20: 10
A21: 1,4-Dichlorobenzene | B21: 150 | C21: 150 | D21: 730 | E21: 420 | F21: 1,4-Dichlorobenzene | H21: 0.24 | I21: 1,4-Dichlorobenzene | J21: 0.5 | K21: EPA 624 | L21: BOL reporting limit | M21: 1,4-Dichlorobenzene | N21: Y | P21: 10
A22: 1,4-Dioxane | F22: 1,4-Dioxane | I22: 1,4-Dioxane | J22: 1 | K22: EPA 624 | L22: BOL reporting limit | M22: 1,4-Dioxane | R22: 10 | S22: 100
A23: 1-Propanol | B23: 46000 | C23: 46000 | D23: 230000 | F23: 1-Propanol | I23: 1-Propanol | J23: 100 | K23: EPA 8015C | L23: Reasonable reporting limit from commercial laboratory. | M23: 1-Propanol | N23: Y
A24: 2,3,7,8-TCDD | B24: 5e-09 | E24: 5e-09 | F24: 2,3,7,8-TCDD | G24: Y | H24: 0.002 | I24: 2,3,7,8-TCDD | J24: 5e-06 | K24: EPA 1613 | L24: Reasonable reporting limit from commercial laboratory. | M24: 2,3,7,8-TCDD | O24: Y | P24: 1e-05
A25: 2,4,6-Trichlorophenol | B25: 1.4 | C25: 91 | D25: 460 | E25: 1.4 | F25: 2,4,6-Trichlorophenol | G25: Y | H25: 0.58 | I25: 2,4,6-Trichlorophenol | J25: 10 | K25: EPA 625 | L25: BOL reporting limit | M25: 2,4,6-Trichlorophenol | P25: 10
A26: 2,4-Dichlorophenol | B26: 77 | C26: 340 | D26: 1700 | E26: 77 | F26: 2,4-Dichlorophenol | H26: 0.39 | I26: 2,4-Dichlorophenol | J26: 10 | K26: EPA 625 | L26: BOL reporting limit | M26: 2,4-Dichlorophenol | N26: Y | P26: 10
A27: 2,4-Dimethylphenol | B27: 130 | C27: 130 | D27: 660 | E27: 380 | F27: 2,4-Dimethylphenol | H27: 0.32 | I27: 2,4-Dimethylphenol | J27: 10 | K27: EPA 625 | L27: BOL reporting limit | M27: 2,4-Dimethylphenol | N27: Y | P27: 10
A28: 2,4-Dinitrophenol | B28: 69 | C28: 130 | D28: 660 | E28: 69 | F28: 2,4-Dinitrophenol | H28: 13 | I28: 2,4-Dinitrophenol | J28: 10 | K28: EPA 625 | L28: BOL reporting limit | M28: 2,4-Dinitrophenol | N28: Y | O28: Y | P28: 50
A29: 2,4-Dinitrotoluene | B29: 0.05 | C29: 320 | D29: 1600 | E29: 0.05 | F29: 2,4-Dinitrotoluene | G29: Y | H29: 0.02 | I29: 2,4-Dinitrotoluene | J29: 5 | K29: EPA 625 | L29: BOL reporting limit | M29: 2,4-Dinitrotoluene | P29: 10
A30: 2,6-Dinitrotoluene | B30: 0.05 | C30: 200 | D30: 990 | E30: 0.05 | F30: 2,6-Dinitrotoluene | G30: Y | H30: 0.01 | I30: 2,6-Dinitrotoluene | J30: 5 | K30: EPA 625 | L30: BOL reporting limit | M30: 2,6-Dinitrotoluene | P30: 10
A31: 2-Butoxyethanol | B31: 700 | E31: 700 | F31: 2-Butoxyethanol | I31: 2-Butoxyethanol | J31: 2 | K31: EPA Method currently being researched | M31: 2-Butoxyethanol | N31: Y
A32: 2-Chloroethyl Vinyl Ether | B32: 3500 | C32: 3500 | D32: 18000 | F32: 2-Chloroethyl Vinyl Ether | H32: 0.13 | I32: 2-Chloroethyl Vinyl Ether | J32: 5 | K32: EPA 8260B | L32: Reasonable reporting limit from commercial laboratory. | M32: 2-Chloroethyl Vinyl Ether | N32: Y | P32: 10
A33: 2-Chloronaphthalene | B33: 1000 | E33: 1000 | F33: 2-Chloronaphthalene | H33: 0.94 | I33: 2-Chloronaphthalene | J33: 5 | K33: EPA 625 | L33: BOL reporting limit | M33: 2-Chloronaphthalene | N33: Y
A34: 2-Chlorophenol | B34: 81 | C34: 110 | D34: 560 | E34: 81 | F34: 2-Chlorophenol | H34: 0.31 | I34: 2-Chlorophenol | J34: 10 | K34: EPA 625 | L34: BOL reporting limit | M34: 2-Chlorophenol | N34: Y | P34: 10
A35: 2-Hexanone | B35: 4300 | C35: 4300 | D35: 21000 | F35: 2-Hexanone | I35: 2-Hexanone | J35: 2.5 | K35: EPA 624 | L35: BOL reporting limit | M35: 2-Hexanone | N35: Y
A36: 2-Nitrophenol | B36: 1600 | C36: 1600 | D36: 8000 | F36: 2-Nitrophenol | H36: 0.45 | I36: 2-Nitrophenol | J36: 10 | K36: EPA 625 | L36: BOL reporting limit | M36: 2-Nitrophenol | N36: Y | P36: 20
A37: 2-Propanol | B37: 89000 | C37: 89000 | D37: 440000 | F37: 2-Propanol | I37: 2-Propanol | J37: 0.5 | K37: EPA 8260B | L37: Reasonable reporting limit from commercial laboratory. | M37: 2-Propanol | N37: Y
A38: 3,3-Dichlorobenzidine | B38: 0.021 | E38: 0.021 | F38: 3,3-Dichlorobenzidine | G38: Y | H38: 0.13 | I38: 3,3-Dichlorobenzidine | J38: 5 | K38: EPA 625 | L38: BOL reporting limit | M38: 3,3-Dichlorobenzidine | P38: 50
A39: 3,4-Benzofluoranthene | B39: 0.0038 | E39: 0.0038 | F39: 3,4-Benzofluoranthene | G39: Y | H39: 0.018 | I39: 3,4-Benzofluoranthene | J39: 2.5 | K39: EPA 625 | L39: BOL reporting limit | M39: 3,4-Benzofluoranthene
A40: 4,4-DDD | B40: 0.00031 | C40: 0.001 | D40: 1.1 | E40: 0.00031 | F40: 4,4-DDD | G40: Y | H40: 0.011 | I40: 4,4-DDD | J40: 0.05 | K40: EPA 625 | L40: BOL reporting limit | M40: 4,4-DDD
A41: 4,4-DDE | B41: 0.00022 | C41: 0.001 | D41: 1.1 | E41: 0.00022 | F41: 4,4-DDE | G41: Y | H41: 0.004 | I41: 4,4-DDE | J41: 0.05 | K41: EPA 625 | L41: BOL reporting limit | M41: 4,4-DDE
A42: 4,4-DDT | B42: 0.00022 | C42: 0.001 | D42: 1.1 | E42: 0.00022 | F42: 4,4-DDT | G42: Y | H42: 0.012 | I42: 4,4-DDT | J42: 0.05 | K42: EPA 625 | L42: BOL reporting limit | M42: 4,4-DDT
A43: 4,6-Dinitro-o-Cresol | B43: 13 | C43: 16 | D43: 80 | E43: 13 | F43: 4,6-Dinitro-o-Cresol | I43: 4,6-Dinitro-o-Cresol | J43: 10 | K43: EPA 625 | L43: BOL reporting limit | M43: 4,6-Dinitro-o-Cresol | N43: Y
A44: 4-Bromophenyl Phenyl Ether | B44: 54 | C44: 54 | D44: 270 | F44: 4-Bromophenyl Phenyl Ether | H44: 1.9 | I44: 4-Bromophenyl Phenyl Ether | J44: 5 | K44: EPA 625 | L44: BOL reporting limit | M44: 4-Bromophenyl Phenyl Ether | N44: Y | P44: 10
A45: 4-Chlorophenyl Phenyl Ether | F45: 4-Chlorophenyl Phenyl Ether | I45: 4-Chlorophenyl Phenyl Ether | J45: 5 | K45: EPA 625 | L45: BOL reporting limit | M45: 4-Chlorophenyl Phenyl Ether | P45: 10
A46: 4-Nitrophenol | B46: 470 | C46: 470 | D46: 2300 | F46: 4-Nitrophenol | H46: 0.7 | I46: 4-Nitrophenol | J46: 10 | K46: EPA 625 | L46: BOL reporting limit | M46: 4-Nitrophenol | N46: Y | P46: 50
A47: Acenaphthene | B47: 17 | C47: 17 | D47: 83 | E47: 670 | F47: Acenaphthene | H47: 1.8 | I47: Acenaphthene | J47: 2.5 | K47: EPA 625 | L47: BOL reporting limit | M47: Acenaphthene | N47: Y | P47: 10
A48: Acenaphthylene | F48: Acenaphthylene | I48: Acenaphthylene | J48: 2.5 | K48: EPA 625 | L48: BOL reporting limit | M48: Acenaphthylene | P48: 10
A49: Acetone | B49: 3500 | C49: 86000 | D49: 450000 | E49: 3500 | F49: Acetone | I49: Acetone | J49: 2.5 | K49: EPA 624 | L49: BOL reporting limit | M49: Acetone | N49: Y | P49: 50
A50: Acrolein | B50: 3 | C50: 3 | D50: 3 | E50: 6 | F50: Acrolein | H50: 0.7 | I50: Acrolein | J50: 2 | K50: EPA 8260B | L50: Reasonable reporting limit from commercial laboratory. | M50: Acrolein | N50: Y | P50: 50
A51: Acrylamide | B51: 0.07 | E51: 0.07 | F51: Acrylamide | G51: Y | I51: Acrylamide | J51: 0.1 | K51: ALS Environmental Method | M51: Acrylamide
A52: Acrylonitrile | B52: 0.051 | C52: 130 | D52: 650 | E52: 0.051 | F52: Acrylonitrile | G52: Y | H52: 0.5 | I52: Acrylonitrile | J52: 5 | K52: EPA 8260B | L52: Reasonable reporting limit from commercial laboratory. | M52: Acrylonitrile | P52: 50
A53: Aldrin | B53: 4.9e-05 | C53: 0.1 | D53: 3 | E53: 4.9e-05 | F53: Aldrin | G53: Y | H53: 0.004 | I53: Aldrin | J53: 0.05 | K53: EPA 608 | L53: BOL reporting limit | M53: Aldrin
A54: alpha-BHC | B54: 0.0026 | E54: 0.0026 | F54: alpha-BHC | G54: Y | H54: 0.003 | I54: alpha-BHC | J54: 0.05 | K54: EPA 625 | L54: BOL reporting limit | M54: alpha-BHC
A55: alpha-Endosulfan | B55: 0.056 | C55: 0.056 | D55: 0.22 | E55: 62 | F55: alpha-Endosulfan | H55: 0.014 | I55: alpha-Endosulfan | J55: 0.05 | K55: EPA 608 | L55: BOL reporting limit | M55: alpha-Endosulfan | N55: Y
A56: Anthracene | B56: 8300 | E56: 8300 | F56: Anthracene | H56: 0.66 | I56: Anthracene | J56: 2.5 | K56: EPA 625 | L56: BOL reporting limit | M56: Anthracene | N56: Y | P56: 10
A57: Benzene | B57: 1.2 | C57: 130 | D57: 640 | E57: 1.2 | F57: Benzene | G57: Y | H57: 0.2 | I57: Benzene | J57: 0.5 | K57: EPA 624 | L57: BOL reporting limit | M57: Benzene | N57: Y | P57: 10
A58: Benzene Metadisulfonic Acid | B58: 1600000 | C58: 1600000 | D58: 2600000 | F58: Benzene Metadisulfonic Acid | I58: Benzene Metadisulfonic Acid | M58: Benzene Metadisulfonic Acid | N58: Y
A59: Benzene Monosulfonic Acid | B59: 1200000 | C59: 1200000 | D59: 2000000 | F59: Benzene Monosulfonic Acid | I59: Benzene Monosulfonic Acid | M59: Benzene Monosulfonic Acid | N59: Y
A60: Benzidine | B60: 8.6e-05 | C60: 59 | D60: 300 | E60: 8.6e-05 | F60: Benzidine | G60: Y | H60: 44 | I60: Benzidine | J60: 50 | K60: EPA 625 | L60: Reasonable reporting limit from commercial laboratory. | M60: Benzidine | P60: 50
A61: Benzo(a)Anthracene | B61: 0.0038 | C61: 0.1 | D61: 0.5 | E61: 0.0038 | F61: Benzo(a)Anthracene | G61: Y | H61: 0.013 | I61: Benzo(a)Anthracene | J61: 2.5 | K61: EPA 625 | L61: BOL reporting limit | M61: Benzo(a)Anthracene | P61: 10
A62: Benzo(a)Pyrene | B62: 0.0038 | E62: 0.0038 | F62: Benzo(a)Pyrene | G62: Y | H62: 0.023 | I62: Benzo(a)Pyrene | J62: 2.5 | K62: EPA 625 | L62: BOL reporting limit | M62: Benzo(a)Pyrene | P62: 10
A63: Benzo(ghi)Perylene | F63: Benzo(ghi)Perylene | I63: Benzo(ghi)Perylene | J63: 2.5 | K63: EPA 625 | L63: BOL reporting limit | M63: Benzo(ghi)Perylene | P63: 20
A64: Benzo(k)Fluoranthene | B64: 0.0038 | E64: 0.0038 | F64: Benzo(k)Fluoranthene | G64: Y | H64: 0.017 | I64: Benzo(k)Fluoranthene | J64: 2.5 | K64: EPA 625 | L64: BOL reporting limit | M64: Benzo(k)Fluoranthene | P64: 10
A65: Benzyl Chloride | B65: 0.2 | E65: 0.2 | F65: Benzyl Chloride | G65: Y | I65: Benzyl Chloride | J65: 0.5 | K65: EPA 8260B | M65: Benzyl Chloride
A66: beta-BHC | B66: 0.0091 | E66: 0.0091 | F66: beta-BHC | G66: Y | H66: 0.006 | I66: beta-BHC | J66: 0.05 | K66: EPA 625 | L66: BOL reporting limit | M66: beta-BHC
A67: beta-Endosulfan | B67: 0.056 | C67: 0.056 | D67: 0.22 | E67: 62 | F67: beta-Endosulfan | H67: 0.004 | I67: beta-Endosulfan | J67: 0.05 | K67: EPA 608 | L67: BOL reporting limit | M67: beta-Endosulfan | N67: Y
A68: Bis(2-Chloroethoxy)Methane | F68: Bis(2-Chloroethoxy)Methane | I68: Bis(2-Chloroethoxy)Methane | J68: 5 | K68: EPA 625 | L68: BOL reporting limit | M68: Bis(2-Chloroethoxy)Methane
A69: Bis(2-Chloroethyl)Ether | B69: =IF(SUM(C69:E69)>0,MIN(C69:E69),"") -> 0.03 | C69: 6000 | D69: 30000 | E69: 0.03 | F69: Bis(2-Chloroethyl)Ether | G69: Y | H69: 0.3 | I69: Bis(2-Chloroethyl)Ether | J69: 5 | K69: EPA 625 | L69: BOL reporting limit | M69: Bis(2-Chloroethyl)Ether | N69: =IF(B69<>"",IF(J69<B69,"Y",""),"") ->  | O69: =IF(J69<H69,"Y","") ->  | P69: 10
A70: Bis(2-Chloroisopropyl)Ether | B70: 1400 | E70: 1400 | F70: Bis(2-Chloroisopropyl)Ether | H70: 0.8 | I70: Bis(2-Chloroisopropyl)Ether | J70: 5 | K70: EPA 625 | L70: BOL reporting limit | M70: Bis(2-Chloroisopropyl)Ether | N70: Y | P70: 10
A71: Bis(2-Ethylhexyl)Phthalate | B71: 1.2 | C71: 910 | D71: 4500 | E71: 1.2 | F71: Bis(2-Ethylhexyl)Phthalate | G71: Y | H71: 2 | I71: Bis(2-Ethylhexyl)Phthalate | J71: 5 | K71: EPA 625 | L71: BOL reporting limit | M71: Bis(2-Ethylhexyl)Phthalate | P71: 10
A72: Bromide | F72: Bromide | I72: Bromide | J72: 200 | K72: EPA 300.0 | L72: BOL reporting limit | M72: Bromide | Q72: Y | R72: 1000 | S72: 10000
A73: Bromoform | B73: 4.3 | C73: 370 | D73: 1800 | E73: 4.3 | F73: Bromoform | G73: Y | H73: 0.2 | I73: Bromoform | J73: 0.5 | K73: EPA 624 | L73: BOL reporting limit | M73: Bromoform | N73: Y
A74: Butyl Benzyl Phthalate | B74: 35 | C74: 35 | D74: 140 | E74: 150 | F74: Butyl Benzyl Phthalate | H74: 0.34 | I74: Butyl Benzyl Phthalate | J74: 5 | K74: EPA 625 | L74: BOL reporting limit | M74: Butyl Benzyl Phthalate | N74: Y | P74: 10
A75: Carbon Tetrachloride | B75: 0.23 | C75: 560 | D75: 2800 | E75: 0.23 | F75: Carbon Tetrachloride | G75: Y | H75: 0.12 | I75: Carbon Tetrachloride | J75: 0.5 | K75: EPA 624 | L75: BOL reporting limit | M75: Carbon Tetrachloride | P75: 10
A76: Chlordane | B76: 0.0008 | C76: 0.0043 | D76: 2.4 | E76: 0.0008 | F76: Chlordane | G76: Y | H76: 0.014 | I76: Chlordane | J76: 1 | K76: EPA 608 | L76: Reasonable reporting limit from commercial laboratory. | M76: Chlordane
A77: Chloride | B77: 250000 | E77: 250000 | F77: Chloride | I77: Chloride | J77: 500 | K77: EPA 300.0 | L77: BOL reporting limit | M77: Chloride | N77: Y | Q77: Y | R77: 250000 | S77: 2000000
A78: Chlorobenzene | B78: 130 | C78: 240 | D78: 1200 | E78: 130 | F78: Chlorobenzene | H78: 0.2 | I78: Chlorobenzene | J78: 0.5 | K78: EPA 624 | L78: BOL reporting limit | M78: Chlorobenzene | N78: Y | P78: 10
A79: Chlorodibromomethane | B79: 0.4 | E79: 0.4 | F79: Chlorodibromomethane | G79: Y | H79: 0.09 | I79: Chlorodibromomethane | J79: 0.5 | K79: EPA 624 | L79: BOL reporting limit | M79: Chlorodibromomethane | P79: 10
A80: Chloroethane | F80: Chloroethane | I80: Chloroethane | J80: 0.5 | K80: EPA 624 | L80: BOL reporting limit | M80: Chloroethane | P80: 50
A81: Chloroform | B81: 5.7 | C81: 390 | D81: 1900 | E81: 5.7 | F81: Chloroform | G81: Y | H81: 0.05 | I81: Chloroform | J81: 0.5 | K81: EPA 624 | L81: BOL reporting limit | M81: Chloroform | N81: Y | P81: 10
A82: Chrysene | B82: 0.0038 | E82: 0.0038 | F82: Chrysene | G82: Y | H82: 0.15 | I82: Chrysene | J82: 2.5 | K82: EPA 625 | L82: BOL reporting limit | M82: Chrysene | P82: 10
A83: Color (Pt-Co) | B83: 75000 | E83: 75000 | F83: Color (Pt-Co) | I83: Color (Pt-Co) | J83: 5 | K83: SM 2120B | L83: BOL reporting limit | M83: Color (Pt-Co) | N83: Y | Q83: Y
A84: Cyclohexylamine | B84: 1000 | E84: 1000 | F84: Cyclohexylamine | I84: Cyclohexylamine | M84: Cyclohexylamine | N84: Y
A85: delta BHC | F85: Delta BHC | I85: Delta BHC | J85: 0.05 | K85: EPA 625 | L85: BOL reporting limit | M85: Delta BHC
A86: Diazinon | B86: 0.17 | C86: 0.17 | D86: 0.17 | F86: Diazinon | I86: Diazinon | J86: 0.0015 | K86: CalTest Method "Pyrethroids by GCMS-NCI-SIM" | L86: Reasonable reporting limit from commercial laboratory. | M86: Diazinon | N86: Y
A87: Dibenzo(a,h)Anthrancene | B87: 0.0038 | E87: 0.0038 | F87: Dibenzo(a,h)Anthrancene | G87: Y | H87: 0.03 | I87: Dibenzo(a,h)Anthrancene | J87: 2.5 | K87: EPA 625 | L87: BOL reporting limit | M87: Dibenzo(a,h)Anthrancene
A88: Dibromochloromethane | F88: Dibromochloromethane | I88: Dibromochloromethane | J88: 0.5 | K88: EPA 624 | L88: BOL reporting limit | M88: Dibromochloromethane
A89: Dibromomethane | F89: Dibromomethane | I89: Dibromomethane | J89: 0.5 | K89: EPA 624 | L89: BOL reporting limit | M89: Dibromomethane
A90: Dichlorobromomethane | B90: 0.55 | E90: 0.55 | F90: Dichlorobromomethane | G90: Y | I90: Dichlorobromomethane | J90: 0.5 | K90: EPA 624 | L90: BOL reporting limit | M90: Dichlorobromomethane | N90: Y | P90: 10
A91: Dichlorodifluoromethane | F91: Dichlorodifluoromethane | I91: Dichlorodifluoromethane | J91: 0.5 | K91: EPA 624 | L91: BOL reporting limit | M91: Dichlorodifluoromethane
A92: Dieldrin | B92: 5.2e-05 | C92: 0.056 | D92: 0.24 | E92: 5.2e-05 | F92: Dieldrin | H92: 0.002 | I92: Dieldrin | J92: 0.05 | K92: EPA 608 | L92: BOL reporting limit | M92: Dieldrin
A93: Diethyl Phthalate | B93: 800 | C93: 800 | D93: 4000 | E93: 17000 | F93: Diethyl Phthalate | H93: 0.49 | I93: Diethyl Phthalate | J93: 5 | K93: EPA 625 | L93: BOL reporting limit | M93: Diethyl Phthalate | N93: Y | P93: 10
A94: Dimethyl Phthalate | B94: 500 | C94: 500 | D94: 2500 | E94: 270000 | F94: Dimethyl Phthalate | H94: 0.29 | I94: Dimethyl Phthalate | J94: 5 | K94: EPA 625 | L94: BOL reporting limit | M94: Dimethyl Phthalate | N94: Y | P94: 10
A95: Di-n-Butyl Phthalate | B95: 21 | C95: 21 | D95: 110 | E95: 2000 | F95: Di-n-Butyl Phthalate | H95: 0.36 | I95: Di-n-Butyl Phthalate | J95: 5 | K95: EPA 625 | L95: BOL reporting limit | M95: Di-n-Butyl Phthalate | N95: Y | P95: 10
A96: Di-n-Octyl Phthalate | F96: Di-n-Octyl Phthalate | I96: Di-n-Octyl Phthalate | J96: 5 | K96: EPA 625 | L96: BOL reporting limit | M96: Di-n-Octyl Phthalate | P96: 10
A97: Dissolved Iron | B97: 300 | E97: 300 | F97: Dissolved Iron | H97: 1 | I97: Dissolved Iron | J97: 20 | K97: EPA 200.7 | L97: BOL reporting limit | M97: Dissolved Iron | N97: Y | Q97: Y
A98: Endosulfan Sulfate | F98: Endosulfan Sulfate | I98: Endosulfan Sulfate | J98: 0.05 | K98: EPA 608 | L98: BOL reporting limit | M98: Endosulfan Sulfate
A99: Endrin | B99: 0.036 | C99: 0.036 | D99: 0.086 | E99: 0.059 | F99: Endrin | H99: 0.006 | I99: Endrin | J99: 0.05 | K99: EPA 608 | L99: BOL reporting limit | M99: Endrin
A100: Endrin Aldehyde | B100: 0.29 | E100: 0.29 | F100: Endrin Aldehyde | H100: 0.023 | I100: Endrin Aldehyde | J100: 0.05 | K100: EPA 608 | L100: BOL reporting limit | M100: Endrin Aldehyde | N100: Y
A101: Ethylbenzene | B101: 530 | C101: 580 | D101: 2900 | E101: 530 | F101: Ethylbenzene | H101: 0.2 | I101: Ethylbenzene | J101: 0.5 | K101: EPA 624 | L101: BOL reporting limit | M101: Ethylbenzene | N101: Y | P101: 10
A102: Ethylene Glycol | F102: Ethylene Glycol | I102: Ethylene Glycol | J102: 1000 | K102: EPA 8015D | L102: BOL reporting limit | M102: Ethylene Glycol
A103: Fluoranthene | B103: 40 | C103: 40 | D103: 200 | E103: 130 | F103: Fluoranthene | H103: 0.21 | I103: Fluoranthene | J103: 2.5 | K103: EPA 625 | L103: BOL reporting limit | M103: Fluoranthene | N103: Y | P103: 10
A104: Fluorene | B104: 1100 | E104: 1100 | F104: Fluorene | H104: 0.21 | I104: Fluorene | J104: 2.5 | K104: EPA 625 | L104: BOL reporting limit | M104: Fluorene | N104: Y | P104: 10
A105: Fluoride | B105: 2000 | E105: 2000 | F105: Fluoride | I105: Fluoride | J105: 200 | K105: EPA 300.0 | L105: BOL reporting limit | M105: Fluoride | N105: Y | Q105: Y
A106: Formaldehyde | B106: 440 | C106: 440 | D106: 2200 | E106: 700 | F106: Formaldehyde | I106: Formaldehyde | J106: 21.5 | K106: EPA 8315A | L106: BOL reporting limit | M106: Formaldehyde | N106: Y
A107: Free Available Cyanide | B107: 5.2 | C107: 5.2 | D107: 22 | E107: 140 | F107: Free Available Cyanide | H107: 1 | I107: Free Available Cyanide | J107: 1 | K107: BoL Method | L107: BOL reporting limit | M107: Free Available Cyanide | N107: Y
A108: gamma-BHC | B108: 0.098 | D108: 0.95 | E108: 0.098 | F108: gamma-BHC | H108: 0.004 | I108: gamma-BHC | J108: 0.05 | K108: EPA 625 | L108: BOL reporting limit | M108: gamma-BHC | N108: Y
A109: Gross Alpha (pCi/L) | F109: Gross Alpha (pCi/L) | I109: Gross Alpha (pCi/L) | J109: 3 | K109: EPA 900.0 | L109: BOL reporting limit | M109: Gross Alpha (pCi/L)
A110: Heptachlor | B110: 7.9e-05 | C110: 0.0038 | D110: 0.52 | E110: 7.9e-05 | F110: Heptachlor | G110: Y | H110: 0.003 | I110: Heptachlor | J110: 0.05 | K110: EPA 608 | L110: BOL reporting limit | M110: Heptachlor
A111: Heptachlor Epoxide | B111: 3.9e-05 | C111: 0.0038 | D111: 0.5 | E111: 3.9e-05 | F111: Heptachlor Epoxide | G111: Y | H111: 0.083 | I111: Heptachlor Epoxide | J111: 0.05 | K111: EPA 608 | L111: BOL reporting limit | M111: Heptachlor Epoxide | O111: Y
A112: Hexachlorobenzene | B112: 0.00028 | E112: 0.00028 | F112: Hexachlorobenzene | G112: Y | H112: 0.05 | I112: Hexachlorobenzene | J112: 5 | K112: EPA 625 | L112: BOL reporting limit | M112: Hexachlorobenzene | P112: 10
A113: Hexachlorobutadiene | B113: 0.44 | C113: 2 | D113: 10 | E113: 0.44 | F113: Hexachlorobutadiene | G113: Y | H113: 0.34 | I113: Hexachlorobutadiene | J113: 0.5 | K113: EPA 624 | L113: BOL reporting limit | M113: Hexachlorobutadiene | P113: 10
A114: Hexachlorocyclopentadiene | B114: 1 | C114: 1 | D114: 5 | E114: 40 | F114: Hexachlorocyclopentadiene | H114: 0.4 | I114: Hexachlorocyclopentadiene | J114: 5 | K114: EPA 625 | L114: BOL reporting limit | M114: Hexachlorocyclopentadiene | P114: 10
A115: Hexachloroethane | B115: 1.4 | C115: 12 | D115: 60 | E115: 1.4 | F115: Hexachloroethane | G115: Y | H115: 0.03 | I115: Hexachloroethane | J115: 5 | K115: EPA 625 | L115: BOL reporting limit | M115: Hexachloroethane | P115: 10
A116: Hexavalent Chromium | B116: 10.3950104 | C116: =10/0.962 -> 10.3950104 | D116: =16/0.982 -> 16.29327902 | F116: Hexavalent Chromium | H116: 7 | I116: Hexavalent Chromium | J116: 1 | K116: EPA 218.6 | L116: BOL reporting limit | M116: Hexavalent Chromium | N116: Y | O116: Y | Q116: Y
A117: Indeno(1,2,3-cd)Pyrene | B117: 0.0038 | E117: 0.0038 | F117: Indeno(1,2,3-cd)Pyrene | H117: 0.043 | I117: Indeno(1,2,3-cd)Pyrene | J117: 2.5 | K117: EPA 625 | L117: BOL reporting limit | M117: Indeno(1,2,3-cd)Pyrene | P117: 20
A118: Isophorone | B118: 35 | C118: 2100 | D118: 10000 | E118: 35 | F118: Isophorone | H118: 2.2 | I118: Isophorone | J118: 5 | K118: EPA 625 | L118: BOL reporting limit | M118: Isophorone | N118: Y | P118: 10
A119: Methyl Bromide | B119: 47 | C119: 110 | D119: 550 | E119: 47 | F119: Methyl Bromide | H119: 1.18 | I119: Methyl Bromide | J119: 0.5 | K119: EPA 624 | L119: BOL reporting limit | M119: Methyl Bromide | N119: Y | O119: Y
A120: Methyl Chloride | B120: 5500 | C120: 5500 | D120: 28000 | F120: Methyl Chloride | H120: 0.08 | I120: Methyl Chloride | J120: 0.5 | K120: EPA 624 | L120: BOL reporting limit | M120: Methyl Chloride | N120: Y
A121: Methyl Ethyl Ketone | B121: 21000 | C121: 32000 | D121: 230000 | E121: 21000 | F121: Methyl Ethyl Ketone | I121: Methyl Ethyl Ketone | J121: 2.5 | K121: EPA 624 | L121: BOL reporting limit | M121: Methyl Ethyl Ketone | N121: Y | P121: 50
A122: Methyl Isobutyl Ketone | B122: 5000 | C122: 5000 | D122: 26000 | F122: Methyl Isobutyl Ketone | I122: Methyl Isobutyl Ketone | J122: 2.5 | K122: EPA 624 | L122: BOL reporting limit | M122: Methyl Isobutyl Ketone | N122: Y
A123: Methylene Chloride | B123: 4.6 | C123: 2400 | D123: 12000 | E123: 4.6 | F123: Methylene Chloride | G123: Y | H123: 0.25 | I123: Methylene Chloride | J123: 0.5 | K123: EPA 624 | L123: BOL reporting limit | M123: Methylene Chloride | N123: Y | P123: 10
A124: Metolachlor | B124: 69 | E124: 69 | F124: Metolachlor | I124: Metolachlor | J124: 0.05 | K124: EPA 608 | L124: BOL reporting limit | M124: Metolachlor | N124: Y
A125: MTBE | F125: MTBE | I125: MTBE | J125: 0.5 | K125: EPA 624 | L125: BOL reporting limit | M125: MTBE
A126: Naphthalene | B126: 43 | C126: 43 | D126: 140 | F126: Naphthalene | H126: 1.6 | I126: Naphthalene | J126: 0.5 | K126: EPA 624 | L126: BOL reporting limit | M126: Naphthalene | N126: Y | O126: Y | P126: 10
A127: Nitrite plus Nitrate as N | B127: 10000 | E127: 10000 | F127: Nitrite plus Nitrate as N | I127: Nitrite plus Nitrate as N | J127: 40 | K127: EPA 353.2 | L127: BOL reporting limit | M127: Nitrite plus Nitrate as N | N127: Y
A128: Nitrobenzene | B128: 17 | C128: 810 | D128: 4000 | E128: 17 | F128: Nitrobenzene | H128: 1.9 | I128: Nitrobenzene | J128: 5 | K128: EPA 625 | L128: BOL reporting limit | M128: Nitrobenzene | N128: Y | P128: 10
A129: n-Nitrosodimethylamine | B129: 0.00069 | C129: 3400 | D129: 17000 | E129: 0.00069 | F129: N-Nitrosodimethylamine | G129: Y | H129: 0.15 | I129: N-Nitrosodimethylamine | J129: 5 | K129: EPA 625 | L129: BOL reporting limit | M129: N-Nitrosodimethylamine
A130: n-Nitrosodi-n-Propylamine | B130: 0.005 | E130: 0.005 | F130: N-Nitrosodi-N-Propylamine | G130: Y | H130: 0.46 | I130: N-Nitrosodi-N-Propylamine | J130: 5 | K130: EPA 625 | L130: BOL reporting limit | M130: N-Nitrosodi-N-Propylamine | P130: 20
A131: n-Nitrosodiphenylamine | B131: 3.3 | C131: 59 | D131: 300 | E131: 3.3 | F131: N-Nitrosodiphenylamine | G131: Y | H131: 0.81 | I131: N-Nitrosodiphenylamine | J131: 5 | K131: EPA 625 | L131: Reasonable reporting limit from commercial laboratory. | M131: N-Nitrosodiphenylamine | P131: 20
A132: Nonylphenol | B132: 6.6 | C132: 6.6 | D132: 28 | F132: Nonylphenol | I132: Nonylphenol | J132: 5 | K132: USGS "Determination of Wastewater Compounds in Whole Water by Continuous Liquid–Liquid Extraction and Capillary-Column Gas Chromatography/ Mass Spectrometry" | M132: Nonylphenol | N132: Y
A133: Osmotic Pressure (mOs/kg) | B133: 50 | D133: 50 | F133: Osmotic Pressure (mOs/kg) | I133: Osmotic Pressure (mOs/kg) | K133: BoL Method | L133: BOL reporting limit | M133: Osmotic Pressure (mOs/kg) | N133: =IF(B133<>"",IF(J133<B133,"Y",""),"") -> Y | O133: =IF(J133<H133,"Y","") ->  | Q133: Y
A134: PCB-1016 | B134: =IF(SUM(C134:E134)>0,MIN(C134:E134),"") ->  | F134: PCB-1016 | I134: PCB-1016 | J134: 0.25 | K134: EPA 608 | L134: BOL reporting limit | M134: PCB-1016
A135: PCB-1221 | F135: PCB-1221 | H135: 30 | I135: PCB-1221 | J135: 0.25 | K135: EPA 608 | L135: BOL reporting limit | M135: PCB-1221
A136: PCB-1232 | F136: PCB-1232 | I136: PCB-1232 | J136: 0.25 | K136: EPA 608 | L136: BOL reporting limit | M136: PCB-1232
A137: PCB-1242 | F137: PCB-1242 | H137: 0.065 | I137: PCB-1242 | J137: 0.25 | K137: EPA 608 | L137: BOL reporting limit | M137: PCB-1242
A138: PCB-1248 | F138: PCB-1248 | I138: PCB-1248 | J138: 0.25 | K138: EPA 608 | L138: BOL reporting limit | M138: PCB-1248
A139: PCB-1254 | F139: PCB-1254 | I139: PCB-1254 | J139: 0.25 | K139: EPA 608 | L139: BOL reporting limit | M139: PCB-1254
A140: PCB-1260 | F140: PCB-1260 | I140: PCB-1260 | J140: 0.25 | K140: EPA 608 | L140: BOL reporting limit | M140: PCB-1260
A141: PCBs, Total | B141: 6.4e-05 | C141: 0.014 | E141: 6.4e-05 | F141: PCBs, Total | G141: Y | I141: PCBs, Total | J141: 1.75 | K141: EPA 608 | L141: The RL should at least be the combination of the other RLs involved. | M141: PCBs, Total
A142: p-Chloro-m-Cresol | B142: 30 | C142: 30 | D142: 160 | F142: p-Chloro-m-Cresol | H142: 0.36 | I142: p-Chloro-m-Cresol | J142: 10 | K142: EPA 625 | L142: BOL reporting limit | M142: p-Chloro-m-Cresol | N142: Y
A143: p-Cresol | B143: 160 | C143: 160 | D143: 800 | F143: p-Cresol | I143: p-Cresol | J143: 20 | K143: EPA 625 | L143: BOL reporting limit | M143: p-Cresol | N143: Y | P143: 20
A144: p-Phenol Sulfonic Acid | B144: 1400000 | C144: 1400000 | D144: 3500000 | F144: p-Phenol Sulfonic Acid | I144: p-Phenol Sulfonic Acid | M144: p-Phenol Sulfonic Acid | N144: Y
A145: Pentachlorophenol | B145: =IF(SUM(C145:E145)>0,ROUND(MIN(C145:E145),5),"") -> 0.27 | C145: =EXP(1.005*(A221)-5.134) -> 6.692583681 | D145: =EXP(1.005*(A221)-4.869) -> 8.723320878 | E145: 0.27 | F145: Pentachlorophenol | G145: Y | H145: 0.59 | I145: Pentachlorophenol | J145: 10 | K145: EPA 625 | L145: BOL reporting limit | M145: Pentachlorophenol | P145: 50
A146: Phenanthrene | B146: 1 | C146: 1 | D146: 5 | F146: Phenanthrene | H146: 0.64 | I146: Phenanthrene | J146: 2.5 | K146: EPA 625 | L146: BOL reporting limit | M146: Phenanthrene | P146: 10
A147: Phenol | B147: 10400 | E147: 10400 | F147: Phenol | H147: 0.14 | I147: Phenol | J147: 10 | K147: EPA 625 | L147: BOL reporting limit | M147: Phenol | N147: Y | P147: 10
A148: Pyrene | B148: 830 | E148: 830 | F148: Pyrene | H148: 0.27 | I148: Pyrene | J148: 2.5 | K148: EPA 625 | L148: BOL reporting limit | M148: Pyrene | N148: Y | P148: 10
A149: Radium 226/228 (pCi/L) | F149: Radium 226/228 (pCi/L) | I149: Radium 226/228 (pCi/L) | J149: 1 | K149: EPA 903.1 | L149: BOL reporting limit | M149: Radium 226/228 (pCi/L)
A150: Resorcinol | B150: 2700 | C150: 7200 | D150: 28000 | E150: 2700 | F150: Resorcinol | I150: Resorcinol | M150: Resorcinol | N150: Y
A151: Sulfate | B151: 250000 | E151: 250000 | F151: Sulfate | I151: Sulfate | J151: 1000 | K151: EPA 300.0 | L151: BOL reporting limit | M151: Sulfate | N151: Y | Q151: Y | R151: 250000 | S151: 2000000
A152: Tetrachloroethylene | B152: 0.69 | C152: 140 | D152: 700 | E152: 0.69 | F152: Tetrachloroethylene | G152: Y | H152: 0.03 | I152: Tetrachloroethylene | J152: 0.5 | K152: EPA 624 | L152: BOL reporting limit | M152: Tetrachloroethylene | N152: Y | P152: 10
A153: Toluene | B153: 330 | C153: 330 | D153: 1700 | E153: 1300 | F153: Toluene | H153: 0.2 | I153: Toluene | J153: 0.5 | K153: EPA 624 | L153: BOL reporting limit | M153: Toluene | N153: Y | P153: 10
A154: Total Aluminum | B154: 750 | D154: 750 | F154: Total Aluminum | H154: 1 | I154: Total Aluminum | J154: 10 | K154: EPA 200.8 | L154: BOL reporting limit | M154: Total Aluminum | N154: Y | Q154: Y
A155: Total Antimony | B155: 5.6 | C155: 220 | D155: 1100 | E155: 5.6 | F155: Total Antimony | H155: 0.4 | I155: Total Antimony | J155: 2 | K155: EPA 200.8 | L155: BOL reporting limit | M155: Total Antimony | N155: Y | Q155: Y
A156: Total Arsenic | B156: 10 | C156: 150 | D156: 340 | E156: 10 | F156: Total Arsenic | H156: 0.5 | I156: Total Arsenic | J156: 3 | K156: EPA 200.8 | L156: BOL reporting limit | M156: Total Arsenic | N156: Y | Q156: Y
A157: Total Barium | B157: 2400 | C157: 4100 | D157: 21000 | E157: 2400 | F157: Total Barium | H157: 1 | I157: Total Barium | J157: 2 | K157: EPA 200.8 | L157: BOL reporting limit | M157: Total Barium | N157: Y | Q157: Y
A158: Total Beryllium | F158: Total Beryllium | I158: Total Beryllium | J158: 1 | K158: EPA 200.7 | L158: BOL reporting limit | M158: Total Beryllium | Q158: Y
A159: Total Beta (pCi/L) | F159: Total Beta (pCi/L) | I159: Total Beta (pCi/L) | J159: 4 | K159: EPA 900.0 | L159: BOL reporting limit | M159: Total Beta (pCi/L)
A160: Total Boron | B160: 1600 | C160: 1600 | D160: 8100 | E160: 3100 | F160: Total Boron | H160: 0.2 | I160: Total Boron | J160: 200 | K160: EPA 200.7 | L160: BOL reporting limit | M160: Total Boron | N160: Y | Q160: Y
A161: Total Cadmium | B161: =IF(SUM(C161:E161)>0,ROUND(MIN(C161:E161),3),"") -> 0.271 | C161: =EXP(0.7409*LN(A220)-4.719) -> 0.270622773 | D161: =EXP(1.0166*LN(A220)-3.924) -> 2.133184665 | F161: Total Cadmium | H161: 0.05 | I161: Total Cadmium | J161: 0.2 | K161: EPA 200.8 | L161: BOL reporting limit | M161: Total Cadmium | N161: Y | Q161: Y
A162: Total Chromium | F162: Total Chromium | I162: Total Chromium | J162: 4 | K162: EPA 200.8 | L162: BOL reporting limit | M162: Total Chromium | Q162: Y
A163: Total Chromium (III) | B163: =IF(SUM(C163:E163)>0,ROUND(MIN(C163:E163),1),"") -> 86.2 | C163: =EXP(0.819*LN(A220)+0.6848) -> 86.17967684 | D163: =EXP(0.819*LN(A220)+3.7256) -> 1803.048969 | F163: Total Chromium (III) | H163: 0.1 | I163: Total Chromium (III) | J163: 4 | K163: EPA 200.8 | L163: The RL should at least be the combination of the other RLs involved. | M163: Total Chromium (III) | N163: Y | Q163: Y
A164: Total Cobalt | B164: 19 | C164: 19 | D164: 95 | F164: Total Cobalt | H164: 0.09 | I164: Total Cobalt | J164: 1 | K164: EPA 200.8 | L164: BOL reporting limit | M164: Total Cobalt | N164: Y | Q164: Y
A165: Total Copper | B165: =IF(SUM(C165:E165)>0,ROUND(MIN(C165:E165),2),"") -> 9.33 | C165: =EXP(0.8545*LN(A220)-1.702) -> 9.328907606 | D165: =EXP(0.9422*LN(A220)-1.7) -> 13.99907631 | F165: Total Copper | H165: 0.5 | I165: Total Copper | J165: 4 | K165: EPA 200.8 | L165: BOL reporting limit | M165: Total Copper | N165: Y | Q165: Y
A166: Total Cyanide | F166: Total Cyanide | I166: Total Cyanide | J166: 10 | K166: EPA 335.4 | L166: BOL reporting limit | M166: Total Cyanide
A167: Total Dissolved Solids | B167: 500000 | E167: 500000 | F167: Total Dissolved Solids | I167: Total Dissolved Solids | J167: 2000 | K167: USGS-I-1749 | L167: BOL reporting limit | M167: Total Dissolved Solids | N167: Y | Q167: Y | R167: 1000000 | S167: 5000000
A168: Total Iron | B168: 1500 | C168: 1500 | F168: Total Iron | H168: 1 | I168: Total Iron | J168: 20 | K168: EPA 200.7 | L168: BOL reporting limit | M168: Total Iron | N168: Y | Q168: Y
A169: Total Lead | B169: =IF(SUM(C169:E169)>0,ROUND(MIN(C169:E169),2),"") -> 3.18 | C169: =EXP(1.273*LN(A220)-4.705) -> 3.181591829 | D169: =EXP(1.273*LN(A220)-1.46) -> 81.64508705 | F169: Total Lead | H169: 0.6 | I169: Total Lead | J169: 1 | K169: EPA 200.8 | L169: BOL reporting limit | M169: Total Lead | N169: Y | Q169: Y
A170: Total Manganese | B170: 1000 | E170: 1000 | F170: Total Manganese | H170: 0.1 | I170: Total Manganese | J170: 2 | K170: EPA 200.8 | L170: BOL reporting limit | M170: Total Manganese | N170: Y | Q170: Y
A171: Total Mercury | B171: 0.05 | C171: =0.77/0.85 -> 0.9058823529 | D171: =1.4/0.85 -> 1.647058824 | E171: 0.05 | F171: Total Mercury | H171: 0.0002 | I171: Total Mercury | J171: 0.2 | K171: EPA 245.1 | L171: BOL reporting limit | M171: Total Mercury | Q171: Y
A172: Total Molybdenum | F172: Total Molybdenum | I172: Total Molybdenum | J172: 4 | K172: EPA 200.8 | L172: BOL reporting limit | M172: Total Molybdenum | Q172: Y | R172: 500 | S172: 5000
A173: Total Nickel | B173: =IF(SUM(C173:E173)>0,ROUND(MIN(C173:E173),1),"") -> 52.2 | C173: =EXP(0.846*LN(A220)+0.0584) -> 52.16302848 | D173: =EXP(0.846*LN(A220)+2.255) -> 469.1741293 | E173: 610 | F173: Total Nickel | H173: 0.5 | I173: Total Nickel | J173: 4 | K173: EPA 200.8 | L173: BOL reporting limit | M173: Total Nickel | N173: Y | Q173: Y
A174: Total Phenols (Phenolics) | B174: 5 | E174: 5 | F174: Total Phenols (Phenolics) | H174: 2 | I174: Total Phenols (Phenolics) | J174: 5 | K174: EPA 420.4 | L174: BOL reporting limit | M174: Total Phenols (Phenolics)
A175: Total Residual Chlorine | B175: 0.011 | C175: 0.011 | D175: 0.019 | F175: Total Residual Chlorine | I175: Total Residual Chlorine | J175: 20 | K175: Reaserch from accredited labs from 2011. See document TRC MDL for NPDES Permits (May 2011) | L175: BOL reporting limit | M175: Total Residual Chlorine
A176: Total Selenium | B176: 4.989154013 | C176: =4.6/0.922 -> 4.989154013 | F176: Total Selenium | H176: 0.6 | I176: Total Selenium | J176: 5 | K176: EPA 200.8 | L176: BOL reporting limit | M176: Total Selenium | Q176: Y
A177: Total Silver | B177: =IF(SUM(C177:E177)>0,ROUND(MIN(C177:E177),2),"") -> 3.78 | D177: =EXP(1.72*LN(A220)-6.59) -> 3.784420307 | F177: Total Silver | H177: 0.1 | I177: Total Silver | J177: 0.4 | K177: EPA 200.8 | L177: BOL reporting limit | M177: Total Silver | N177: Y | Q177: Y
A178: Total Strontium | B178: 4000 | E178: 4000 | F178: Total Strontium | I178: Total Strontium | J178: 10 | K178: EPA 200.7 | L178: BOL reporting limit | M178: Total Strontium | N178: Y | Q178: Y
A179: Total Thallium | B179: 0.24 | C179: 13 | D179: 65 | E179: 0.24 | F179: Total Thallium | H179: 0.3 | I179: Total Thallium | J179: 2 | K179: EPA 200.8 | L179: BOL reporting limit | M179: Total Thallium | Q179: Y
A180: Total Tungsten | F180: Total Tungsten | I180: Total Tungsten | J180: 1000 | K180: EPA 200.7 | L180: BOL reporting limit | M180: Total Tungsten | Q180: Y
A181: Total Uranium | F181: Total Uranium | I181: Total Uranium | J181: 2 | K181: This number is by Total Uranium Analysis via a UA-3 Uranium analizer, but that may be obsolete now. I have a call into the Radiation Measurements to see if they have a different method they are using now. If anything, I think our QL could be lowered. | L181: BOL reporting limit | M181: Total Uranium | Q181: Y
A182: Total Vanadium | B182: 100 | C182: 100 | D182: 510 | F182: Total Vanadium | I182: Total Vanadium | J182: 13 | K182: EPA 200.8 | L182: BOL reporting limit | M182: Total Vanadium | N182: Y | Q182: Y
A183: Total Xylenes | B183: 210 | C183: 210 | D183: 1100 | E183: 70000 | F183: Total Xylenes | I183: Total Xylenes | J183: 1.5 | K183: EPA 624 | L183: The RL should at least be the combination of the other RLs involved. | M183: Total Xylenes | N183: Y
A184: Total Zinc | B184: =IF(SUM(C184:E184)>0,ROUND(MIN(C184:E184),1),"") -> 119.8 | C184: =EXP(0.8473*LN(A220)+0.884) -> 119.8164153 | D184: =EXP(0.8473*LN(A220)+0.884) -> 119.8164153 | F184: Total Zinc | H184: 0.05 | I184: Total Zinc | J184: 5 | K184: EPA 200.8 | L184: BOL reporting limit | M184: Total Zinc | N184: Y | Q184: Y
A185: Toxaphene | B185: 0.0002 | C185: 0.0002 | D185: 0.73 | E185: 0.00028 | F185: Toxaphene | G185: Y | H185: 0.24 | I185: Toxaphene | J185: 0.5 | K185: EPA 608 | L185: BOL reporting limit | M185: Toxaphene
A186: Trichloroethylene | B186: 2.5 | C186: 450 | D186: 2300 | E186: 2.5 | F186: Trichloroethylene | G186: Y | H186: 0.12 | I186: Trichloroethylene | J186: 0.5 | K186: EPA 624 | L186: BOL reporting limit | M186: Trichloroethylene | N186: Y | P186: 10
A187: Trichlorofluoromethane | F187: Trichlorofluoromethane | I187: Trichlorofluoromethane | J187: 0.5 | K187: EPA 624 | L187: BOL reporting limit | M187: Trichlorofluoromethane
A188: Vinyl Chloride | B188: 0.025 | E188: 0.025 | F188: Vinyl Chloride | G188: Y | H188: 0.18 | I188: Vinyl Chloride | J188: 0.5 | K188: EPA 624 | L188: BOL reporting limit | M188: Vinyl Chloride | P188: 10
A189: Other (TYPE HERE) | F189: =A189 -> Other (TYPE HERE) | I189: =A189 -> Other (TYPE HERE) | M189: =A189 -> Other (TYPE HERE)
A190: Other (TYPE HERE) | F190: =A190 -> Other (TYPE HERE) | I190: =A190 -> Other (TYPE HERE) | M190: =A190 -> Other (TYPE HERE)
A191: Other (TYPE HERE) | F191: =A191 -> Other (TYPE HERE) | I191: =A191 -> Other (TYPE HERE) | M191: =A191 -> Other (TYPE HERE)
A192: Other (TYPE HERE) | F192: Other (TYPE HERE) | I192: Other (TYPE HERE) | M192: Other (TYPE HERE)
A193: Other (TYPE HERE) | F193: Other (TYPE HERE) | I193: Other (TYPE HERE) | M193: Other (TYPE HERE)
A194: Other (TYPE HERE) | F194: Other (TYPE HERE) | I194: Other (TYPE HERE) | M194: Other (TYPE HERE)
A195: Other (TYPE HERE) | F195: Other (TYPE HERE) | I195: Other (TYPE HERE) | M195: Other (TYPE HERE)
A196: Other (TYPE HERE) | F196: Other (TYPE HERE) | I196: Other (TYPE HERE) | M196: Other (TYPE HERE)
A197: Other (TYPE HERE) | B197: =IF(SUM(C197:E197)>0,MIN(C197:E197),"") ->  | F197: Other (TYPE HERE) | I197: Other (TYPE HERE) | M197: Other (TYPE HERE)
A198: Other (TYPE HERE) | F198: Other (TYPE HERE) | I198: Other (TYPE HERE) | M198: Other (TYPE HERE)
A199: Other (TYPE HERE) | F199: Other (TYPE HERE) | I199: Other (TYPE HERE) | M199: Other (TYPE HERE)
A200: Other (TYPE HERE) | F200: Other (TYPE HERE) | I200: Other (TYPE HERE) | M200: Other (TYPE HERE)
... 21 more rows
